Workbook

Sheet __snloffice (hidden)

Sheet ___snlqueryparms (hidden)

Sheet ___snlqueryparms2 (hidden)
A3: PendingCases | B3: 238101 | C3: 1 | G3: <SavedQuery Version="1" DateCreated="2012-09-04T18:45:41.3686943+05:30" Perspective="238101" Name="PendingCases" Currency="USD" Magnitude="" ConversionMethod="Snl" UnitOfMeasure="USCustomary" Comment="" Language="0"><CriteriaGroups><CriteriaGroup k="3051" c="Available Rate Case Types" o="1"><CriteriaItem k="238141" c="Natural Gas" o="0" v="1" r="True" id="3052" mask="" masktype="" maskkey="" enabled="" /><CriteriaItem k="238141" c="Electric" o="0" v="0" r="True" id="3053" mask="" masktype="" maskkey="" enabled="" /><CriteriaItem k="238141" c="Steam" o="0" v="4" r="True" id="3054" mask="" masktype="" maskkey="" enabled="" /></CriteriaGroup><CriteriaGroup k="3055" c="Rate Case Status" o="1"><CriteriaItem k="238147" c="Pending" o="0" v="0" r="True" id="3056" mask="" masktype="" maskkey="" enabled="" /><CriteriaItem k="238147" c="Completed" o="0" v="1" r="False" id="3057" mask="" masktype="" maskkey="" enabled="" /></CriteriaGroup><CriteriaGroup k="3058" c="Jurisdiction" o="1"><CriteriaItem k="" c="All Jurisdictions" o="" v="" r="True" id="3059" mask="" masktype="" maskkey="" enabled=""><CriteriaItem k="" c="United States" o="" v="" r="True" id="3060" mask="" masktype="" maskkey="" enabled=""><CriteriaItem k="" c="Mid Atlantic" o="" v="" r="True" id="3061" mask="" masktype="" maskkey="" enabled=""><CriteriaItem k="238140" c="Delaware PSC" o="0" v="4081613" r="True" id="3067" mask="" masktype="" maskkey="" enabled="" /><CriteriaItem k="238140" c="District of Columbia PSC" o="0" v="4081616" r="True" id="3068" mask="" masktype="" maskkey="" enabled="" /><CriteriaItem k="238140" c="Maryland PSC" o="0" v="4081615" r="True" id="3069" mask="" masktype="" maskkey="" enabled="" /><CriteriaItem k="238140" c="New Jersey BPU" o="0" v="4081611" r="True" id="3070" mask="" masktype="" maskkey="" enabled="" /><CriteriaItem k="238140" c="New York PSC" o="0" v="4081607" r="True" id="3071" mask="" masktype="" maskkey="" enabled="" /><CriteriaItem k="238140" c="Pennsylvania PUC" o="0" v="4081610" r="True" id="3072" mask="" masktype="" maskkey="" enabled="" /></CriteriaItem><CriteriaItem k="" c="Midwest" o="" v="" r="True" id="3062" mask="" masktype="" maskkey="" enabled=""><CriteriaItem k="238140" c="Illinois CC" o="0" v="4081571" r="True" id="3073" mask="" masktype="" maskkey="" enabled="" /><CriteriaItem k="238140" c="Indiana URC" o="0" v="4081575" r="True" id="3074" mask="" masktype="" maskkey="" enabled="" /><CriteriaItem k="238140" c="Iowa Utilities Board" o="0" v="4081563" r="True" id="3075" mask="" masktype="" maskkey="" enabled="" /><CriteriaItem k="238140" c="Kansas CC" o="0" v="4081558" r="True" id="3076" mask="" masktype="" maskkey="" enabled="" /><CriteriaItem k="238140" c="Kentucky PSC" o="0" v="4081576" r="True" id="3077" mask="" masktype="" maskkey="" enabled="" /><CriteriaItem k="238140" c="Michigan PSC" o="0" v="4081574" r="True" id="3078" mask="" masktype="" maskkey="" enabled="" /><CriteriaItem k="238140" c="Minnesota PUC" o="0" v="4081562" r="True" id="3079" mask="" masktype="" maskkey="" enabled="" /><CriteriaItem k="238140" c="Missouri PSC" o="0" v="4081566" r="True" id="3080" mask="" masktype="" maskkey="" enabled="" /><CriteriaItem k="238140" c="Nebraska PSC" o="0" v="4081556" r="True" id="3081" mask="" masktype="" maskkey="" enabled="" /><CriteriaItem k="238140" c="North Dakota PSC" o="0" v="4081554" r="True" id="3082" mask="" masktype="" maskkey="" enabled="" /><CriteriaItem k="238140" c="Ohio PUC" o="0" v="4081580" r="True" id="3083" mask="" masktype="" maskkey="" enabled="" /><CriteriaItem k="238140" c="South Dakota PUC" o="0" v="4081555" r="True" id="3084" mask="" masktype="" maskkey="" enabled="" /><CriteriaItem k="238140" c="Wisconsin PSC" o="0" v="4081570" r="True" id="3085" mask="" masktype="" maskkey="" enabled="" /></CriteriaItem><CriteriaItem k="" c="Northeast" o="" v="" r="True" id="3063" mask="" masktype="" maskkey="" enabled=""><CriteriaItem k="238140" c="Connecticut PURA" o="0" v="4081608" r="True" id="3086" mask="" masktype="" maskkey="" enabled="" /><CriteriaItem k="238140" c="Maine PUC" o="0" v="4081599" r="True" id="3087" mask="" masktype="" maskkey="" enabled="" /><CriteriaItem k="238140" c="Massachusetts DPU" o="0" v="4081605" r="True" id="3088" mask="" masktype="" maskkey="" enabled="" /><CriteriaItem k="238140" c="New Hampshire PUC" o="0" v="4081601" r="True" id="3089" mask="" masktype="" maskkey="" enabled="" /><CriteriaItem k="238140" c="Rhode Island PUC" o="0" v="4081609" r="True" id="3090" mask="" masktype="" maskkey="" enabled="" /><CriteriaItem k="238140" c="Vermont PSB" o="0" v="4081602" r="True" id="3091" mask="" masktype="" maskkey="" enabled="" /></CriteriaItem><CriteriaItem k="" c="Southeast" o="" v="" r="True" id="3064" mask="" masktype="" maskkey="" enabled=""><CriteriaItem k="238140" c="Alabama PSC" o="0" v="4081578" r="True" id="3092" mask="" masktype="" maskkey="" enabled="" /><CriteriaItem k="238140" c="Arkansas PSC" o="0" v="4081567" r="True" id="3093" mask="" masktype="" maskkey="" enabled="" /><CriteriaItem k="238140" c="Florida PSC" o="0" v="4081598" r="True" id="3094" mask="" masktype="" maskkey="" enabled="" /><CriteriaItem k="238140" c="Georgia PSC" o="0" v="4081595" r="True" id="3095" mask="" masktype="" maskkey="" enabled="" /><CriteriaItem k="238140" c="Mississippi PSC" o="0" v="4081573" r="True" id="3096" mask="" masktype="" maskkey="" enabled="" /><CriteriaItem k="238140" c="North Carolina UC" o="0" v="4081590" r="True" id="3097" mask="" masktype="" maskkey="" enabled="" /><CriteriaItem k="238140" c="South Carolina PSC" o="0" v="4081594" r="True" id="3098" mask="" masktype="" maskkey="" enabled="" /><CriteriaItem k="238140" c="Tennessee RA" o="0" v="4081577" r="True" id="3099" mask="" masktype="" maskkey="" enabled="" /><CriteriaItem k="238140" c="Virginia SCC" o="0" v="4081583" r="True" id="3100" mask="" masktype="" maskkey="" enabled="" /><CriteriaItem k="238140" c="West Virginia PSC" o="0" v="4081581" r="True" id="3101" mask="" masktype="" maskkey="" enabled="" /></CriteriaItem><CriteriaItem k="" c="Southwest" o="" v="" r="True" id="3065" mask="" masktype="" maskkey="" enabled=""><CriteriaItem k="238140" c="Colorado PUC" o="0" v="4081552" r="True" id="3102" mask="" masktype="" maskkey="" enabled="" /><CriteriaItem k="238140" c="Louisiana PSC" o="0" v="4081569" r="True" id="3103" mask="" masktype="" maskkey="" enabled="" /><CriteriaItem k="238140" c="Louisiana NOCC" o="0" v="4315460" r="True" id="3104" mask="" masktype="" maskkey="" enabled="" /><CriteriaItem k="238140" c="New Mexico PRC" o="0" v="4081553" r="True" id="3105" mask="" masktype="" maskkey="" enabled="" /><CriteriaItem k="238140" c="Oklahoma CC" o="0" v="4081559" r="True" id="3106" mask="" masktype="" maskkey="" enabled="" /><CriteriaItem k="238140" c="Texas PUC" o="0" v="4081560" r="True" id="3107" mask="" masktype="" maskkey="" enabled="" /><CriteriaItem k="238140" c="Texas RRC" o="0" v="4081952" r="True" id="3108" mask="" masktype="" maskkey="" enabled="" /><CriteriaItem k="238140" c="Utah PSC" o="0" v="4081520" r="True" id="3109" mask="" masktype="" maskkey="" enabled="" /></CriteriaItem><CriteriaItem k="" c="West" o="" v="" r="True" id="3066" mask="" masktype="" maskkey="" enabled=""><CriteriaItem k="238140" c="Alaska RC" o="0" v="4081617" r="True" id="3110" mask="" masktype="" maskkey="" enabled="" /><CriteriaItem k="238140" c="Arizona CC" o="0" v="4081521" r="True" id="3111" mask="" masktype="" maskkey="" enabled="" /><CriteriaItem k="238140" c="California PUC" o="0" v="4081517" r="True" id="3112" mask="" masktype="" maskkey="" enabled="" /><CriteriaItem k="238140" c="Hawaii PUC" o="0" v="4136041" r="True" id="3113" mask="" masktype="" maskkey="" enabled="" /><CriteriaItem k="238140" c="Idaho PUC" o="0" v="4081519" r="True" id="3114" mask="" masktype="" maskkey="" enabled="" /><CriteriaItem k="238140" c="Montana PSC" o="0" v="4081522" r="True" id="3115" mask="" masktype="" maskkey="" enabled="" /><CriteriaItem k="238140" c="Nevada PUC" o="0" v="4081518" r="True" id="3116" mask="" masktype="" maskkey="" enabled="" /><CriteriaItem k="238140" c="Oregon PUC" o="0" v="4081516" r="True" id="3117" mask="" masktype="" maskkey="" enabled="" /><CriteriaItem k="238140" c="Washington UTC" o="0" v="4081515" r="True" id="3118" mask="" masktype="" maskkey="" enabled="" /><CriteriaItem k="238140" c="Wyoming PSC" o="0" v="4081538" r="True" id="3119" mask="" masktype="" maskkey="" enabled="" /></CriteriaItem></CriteriaItem></CriteriaItem></CriteriaGroup></CriteriaGroups><QueryStatements><Statement DisplayText="Company Name "><QueryLine BeginGroup="False" EndGroup="False" Connector="None" Operator="Equal" Value="SelCompany" EnglishValue="SelCompany"><Field KeyProductQueryItem="238108" /></QueryLine><Field Name="Company Name " Type="varchar" Units="" /></Statement><Statement DisplayText="Parent Company Name "><QueryLine BeginGroup="False" EndGroup="False" Connector="Or" Operator="Equal" Value="SelCompany" EnglishValue="SelCompany"><Field KeyProductQueryItem="238110" /></QueryLine><Field Name="Parent Company Name " Type="varchar" Units="" /></Statement><Statement DisplayText="Ultimate Parent Company Name "><QueryLine BeginGroup="False" EndGroup="False" Connector="Or" Operator="Equal" Value="SelCompany" EnglishValue="SelCompany"><Field KeyProductQueryItem="238111" /></QueryLine><Field Name="Ultimate Parent Company Name " Type="varchar" Units="" /></Statement><Statement DisplayText="State "><QueryLine BeginGroup="False" EndGroup="False" Connector="None" Operator="TopNOrderByAscending" Value="5000" EnglishValue="5000"><Field KeyProductQueryItem="238539" /></QueryLine><Field Name="State " Type="varchar" Units=""><Lookup><LookupItem Description="Alabama" Value="AL" Relative="" Mask="Alabama" /><LookupItem Description="Alaska" Value="AK" Relative="" Mask="Alaska" /><LookupItem Description="American Samoa" Value="AS" Relative="" Mask="American Samoa" /><LookupItem Description="Arizona" Value="AZ" Relative="" Mask="Arizona" /><LookupItem Description="Arkansas" Value="AR" Relative="" Mask="Arkansas" /><LookupItem Description="California" Value="CA" Relative="" Mask="California" /><LookupItem Description="Colorado" Value="CO" Relative="" Mask="Colorado" /><LookupItem Description="Connecticut" Value="CT" Relative="" Mask="Connecticut" /><LookupItem Description="Delaware" Value="DE" Relative="" Mask="Delaware" /><LookupItem Description="District of Columbia" Value="DC" Relative="" Mask="District of Columbia" /><LookupItem Description="Federated States of Micronesia" Value="FM" Relative="" Mask="Federated States of Micronesia" /><LookupItem Description="Florida" Value="FL" Relative="" Mask="Florida" /><LookupItem Description="Georgia" Value="GA" Relative="" Mask="Georgia" /><LookupItem Description="Guam" Value="GU" Relative="" Mask="Guam" /><LookupItem Description="Hawaii" Value="HI" Relative="" Mask="Hawaii" /><LookupItem Description="Idaho" Value="ID" Relative="" Mask="Idaho" /><LookupItem Description="Illinois" Value="IL" Relative="" Mask="Illinois" /><LookupItem Description="Indiana" Value="IN" Relative="" Mask="Indiana" /><LookupItem Description="Iowa" Value="IA" Relative="" Mask="Iowa" /><LookupItem Description="Kansas" Value="KS" Relative="" Mask="Kansas" /><LookupItem Description="Kentucky" Value="KY" Relative="" Mask="Kentucky" /><LookupItem Description="Louisiana" Value="LA" Relative="" Mask="Louisiana" /><LookupItem Description="Maine" Value="ME" Relative="" Mask="Maine" /><LookupItem Description="Marshall Islands" Value="MH" Relative="" Mask="Marshall Islands" /><LookupItem Description="Maryland" Value="MD" Relative="" Mask="Maryland" /><LookupItem Description="Massachusetts" Value="MA" Relative="" Mask="Massachusetts" /><LookupItem Description="Michigan" Value="MI" Relative="" Mask="Michigan" /><LookupItem Description="Minnesota" Value="MN" Relative="" Mask="Minnesota" /><LookupItem Description="Mississippi" Value="MS" Relative="" Mask="Mississippi" /><LookupItem Description="Missouri" Value="MO" Relative="" Mask="Missouri" /><LookupItem Description="Montana" Value="MT" Relative="" Mask="Montana" /><LookupItem Description="Nebraska" Value="NE" Relative="" Mask="Nebraska" /><LookupItem Description="Nevada" Value="NV" Relative="" Mask="Nevada" /><LookupItem Description="New Hampshire" Value="NH" Relative="" Mask="New Hampshire" /><LookupItem Description="New Jersey" Value="NJ" Relative="" Mask="New Jersey" /><LookupItem Description="New Mexico" Value="NM" Relative="" Mask="New Mexico" /><LookupItem Description="New York" Value="NY" Relative="" Mask="New York" /><LookupItem Description="North Carolina" Value="NC" Relative="" Mask="North Carolina" /><LookupItem Description="North Dakota" Value="ND" Relative="" Mask="North Dakota" /><LookupItem Description="Northern Mariana Islands" Value="MP" Relative="" Mask="Northern Mariana Islands" /><LookupItem Description="Ohio" Value="OH" Relative="" Mask="Ohio" /><LookupItem Description="Oklahoma" Value="OK" Relative="" Mask="Oklahoma" /><LookupItem Description="Oregon" Value="OR" Relative="" Mask="Oregon" /><LookupItem Description="Palau" Value="PW" Relative="" Mask="Palau" /><LookupItem Description="Pennsylvania" Value="PA" Relative="" Mask="Pennsylvania" /><LookupItem Description="Puerto Rico" Value="PR" Relative="" Mask="Puerto Rico" /><LookupItem Description="Rhode Island" Value="RI" Relative="" Mask="Rhode Island" /><LookupItem Description="South Carolina" Value="SC" Relative="" Mask="South Carolina" /><LookupItem Description="South Dakota" Value="SD" Relative="" Mask="South Dakota" /><LookupItem Description="Tennessee" Value="TN" Relative="" Mask="Tennessee" /><LookupItem Description="Texas" Value="TX" Relative="" Mask="Texas" /><LookupItem Description="U.S. Minor Outlying Islands" Value="UM" Relative="" Mask="U.S. Minor Outlying Islands" /><LookupItem Description="Utah" Value="UT" Relative="" Mask="Utah" /><LookupItem Description="Vermont" Value="VT" Relative="" Mask="Vermont" /><LookupItem Description="Virgin Islands" Value="VI" Relative="" Mask="Virgin Islands" /><LookupItem Description="Virginia" Value="VA" Relative="" Mask="Virginia" /><LookupItem Description="Washington" Value="WA" Relative="" Mask="Washington" /><LookupItem Description="West Virginia" Value="WV" Relative="" Mask="West Virginia" /><LookupItem Description="Wisconsin" Value="WI" Relative="" Mask="Wisconsin" /><LookupItem Description="Wyoming" Value="WY" Relative="" Mask="Wyoming" /></Lookup></Field></Statement></QueryStatements></SavedQuery> | I3: =SUBSTITUTE(G3,"SelCompany",CompanyName) -> <SavedQuery Version="1" DateCreated="2012-09-04T18:45:41.3686943+05:30" Perspective="238101" Name="PendingCases" Currency="USD" Magnitude="" ConversionMethod="Snl" UnitOfMeasure="USCustomary" Comment="" Language="0"><CriteriaGroups><CriteriaGroup k="3051" c="Available Rate Case Types" o="1"><CriteriaItem k="238141" c="Natural Gas" o="0" v="1" r="True" id="3052" mask="" masktype="" maskkey="" enabled="" /><CriteriaItem k="238141" c="Electric" o="0" v="0" r="True" id="3053" mask="" masktype="" maskkey="" enabled="" /><CriteriaItem k="238141" c="Steam" o="0" v="4" r="True" id="3054" mask="" masktype="" maskkey="" enabled="" /></CriteriaGroup><CriteriaGroup k="3055" c="Rate Case Status" o="1"><CriteriaItem k="238147" c="Pending" o="0" v="0" r="True" id="3056" mask="" masktype="" maskkey="" enabled="" /><CriteriaItem k="238147" c="Completed" o="0" v="1" r="False" id="3057" mask="" masktype="" maskkey="" enabled="" /></CriteriaGroup><CriteriaGroup k="3058" c="Jurisdiction" o="1"><CriteriaItem k="" c="All Jurisdictions" o="" v="" r="True" id="3059" mask="" masktype="" maskkey="" enabled=""><CriteriaItem k="" c="United States" o="" v="" r="True" id="3060" mask="" masktype="" maskkey="" enabled=""><CriteriaItem k="" c="Mid Atlantic" o="" v="" r="True" id="3061" mask="" masktype="" maskkey="" enabled=""><CriteriaItem k="238140" c="Delaware PSC" o="0" v="4081613" r="True" id="3067" mask="" masktype="" maskkey="" enabled="" /><CriteriaItem k="238140" c="District of Columbia PSC" o="0" v="4081616" r="True" id="3068" mask="" masktype="" maskkey="" enabled="" /><CriteriaItem k="238140" c="Maryland PSC" o="0" v="4081615" r="True" id="3069" mask="" masktype="" maskkey="" enabled="" /><CriteriaItem k="238140" c="New Jersey BPU" o="0" v="4081611" r="True" id="3070" mask="" masktype="" maskkey="" enabled="" /><CriteriaItem k="238140" c="New York PSC" o="0" v="4081607" r="True" id="3071" mask="" masktype="" maskkey="" enabled="" /><CriteriaItem k="238140" c="Pennsylvania PUC" o="0" v="4081610" r="True" id="3072" mask="" masktype="" maskkey="" enabled="" /></CriteriaItem><CriteriaItem k="" c="Midwest" o="" v="" r="True" id="3062" mask="" masktype="" maskkey="" enabled=""><CriteriaItem k="238140" c="Illinois CC" o="0" v="4081571" r="True" id="3073" mask="" masktype="" maskkey="" enabled="" /><CriteriaItem k="238140" c="Indiana URC" o="0" v="4081575" r="True" id="3074" mask="" masktype="" maskkey="" enabled="" /><CriteriaItem k="238140" c="Iowa Utilities Board" o="0" v="4081563" r="True" id="3075" mask="" masktype="" maskkey="" enabled="" /><CriteriaItem k="238140" c="Kansas CC" o="0" v="4081558" r="True" id="3076" mask="" masktype="" maskkey="" enabled="" /><CriteriaItem k="238140" c="Kentucky PSC" o="0" v="4081576" r="True" id="3077" mask="" masktype="" maskkey="" enabled="" /><CriteriaItem k="238140" c="Michigan PSC" o="0" v="4081574" r="True" id="3078" mask="" masktype="" maskkey="" enabled="" /><CriteriaItem k="238140" c="Minnesota PUC" o="0" v="4081562" r="True" id="3079" mask="" masktype="" maskkey="" enabled="" /><CriteriaItem k="238140" c="Missouri PSC" o="0" v="4081566" r="True" id="3080" mask="" masktype="" maskkey="" enabled="" /><CriteriaItem k="238140" c="Nebraska PSC" o="0" v="4081556" r="True" id="3081" mask="" masktype="" maskkey="" enabled="" /><CriteriaItem k="238140" c="North Dakota PSC" o="0" v="4081554" r="True" id="3082" mask="" masktype="" maskkey="" enabled="" /><CriteriaItem k="238140" c="Ohio PUC" o="0" v="4081580" r="True" id="3083" mask="" masktype="" maskkey="" enabled="" /><CriteriaItem k="238140" c="South Dakota PUC" o="0" v="4081555" r="True" id="3084" mask="" masktype="" maskkey="" enabled="" /><CriteriaItem k="238140" c="Wisconsin PSC" o="0" v="4081570" r="True" id="3085" mask="" masktype="" maskkey="" enabled="" /></CriteriaItem><CriteriaItem k="" c="Northeast" o="" v="" r="True" id="3063" mask="" masktype="" maskkey="" enabled=""><CriteriaItem k="238140" c="Connecticut PURA" o="0" v="4081608" r="True" id="3086" mask="" masktype="" maskkey="" enabled="" /><CriteriaItem k="238140" c="Maine PUC" o="0" v="4081599" r="True" id="3087" mask="" masktype="" maskkey="" enabled="" /><CriteriaItem k="238140" c="Massachusetts DPU" o="0" v="4081605" r="True" id="3088" mask="" masktype="" maskkey="" enabled="" /><CriteriaItem k="238140" c="New Hampshire PUC" o="0" v="4081601" r="True" id="3089" mask="" masktype="" maskkey="" enabled="" /><CriteriaItem k="238140" c="Rhode Island PUC" o="0" v="4081609" r="True" id="3090" mask="" masktype="" maskkey="" enabled="" /><CriteriaItem k="238140" c="Vermont PSB" o="0" v="4081602" r="True" id="3091" mask="" masktype="" maskkey="" enabled="" /></CriteriaItem><CriteriaItem k="" c="Southeast" o="" v="" r="True" id="3064" mask="" masktype="" maskkey="" enabled=""><CriteriaItem k="238140" c="Alabama PSC" o="0" v="4081578" r="True" id="3092" mask="" masktype="" maskkey="" enabled="" /><CriteriaItem k="238140" c="Arkansas PSC" o="0" v="4081567" r="True" id="3093" mask="" masktype="" maskkey="" enabled="" /><CriteriaItem k="238140" c="Florida PSC" o="0" v="4081598" r="True" id="3094" mask="" masktype="" maskkey="" enabled="" /><CriteriaItem k="238140" c="Georgia PSC" o="0" v="4081595" r="True" id="3095" mask="" masktype="" maskkey="" enabled="" /><CriteriaItem k="238140" c="Mississippi PSC" o="0" v="4081573" r="True" id="3096" mask="" masktype="" maskkey="" enabled="" /><CriteriaItem k="238140" c="North Carolina UC" o="0" v="4081590" r="True" id="3097" mask="" masktype="" maskkey="" enabled="" /><CriteriaItem k="238140" c="South Carolina PSC" o="0" v="4081594" r="True" id="3098" mask="" masktype="" maskkey="" enabled="" /><CriteriaItem k="238140" c="Tennessee RA" o="0" v="4081577" r="True" id="3099" mask="" masktype="" maskkey="" enabled="" /><CriteriaItem k="238140" c="Virginia SCC" o="0" v="4081583" r="True" id="3100" mask="" masktype="" maskkey="" enabled="" /><CriteriaItem k="238140" c="West Virginia PSC" o="0" v="4081581" r="True" id="3101" mask="" masktype="" maskkey="" enabled="" /></CriteriaItem><CriteriaItem k="" c="Southwest" o="" v="" r="True" id="3065" mask="" masktype="" maskkey="" enabled=""><CriteriaItem k="238140" c="Colorado PUC" o="0" v="4081552" r="True" id="3102" mask="" masktype="" maskkey="" enabled="" /><CriteriaItem k="238140" c="Louisiana PSC" o="0" v="4081569" r="True" id="3103" mask="" masktype="" maskkey="" enabled="" /><CriteriaItem k="238140" c="Louisiana NOCC" o="0" v="4315460" r="True" id="3104" mask="" masktype="" maskkey="" enabled="" /><CriteriaItem k="238140" c="New Mexico PRC" o="0" v="4081553" r="True" id="3105" mask="" masktype="" maskkey="" enabled="" /><CriteriaItem k="238140" c="Oklahoma CC" o="0" v="4081559" r="True" id="3106" mask="" masktype="" maskkey="" enabled="" /><CriteriaItem k="238140" c="Texas PUC" o="0" v="4081560" r="True" id="3107" mask="" masktype="" maskkey="" enabled="" /><CriteriaItem k="238140" c="Texas RRC" o="0" v="4081952" r="True" id="3108" mask="" masktype="" maskkey="" enabled="" /><CriteriaItem k="238140" c="Utah PSC" o="0" v="4081520" r="True" id="3109" mask="" masktype="" maskkey="" enabled="" /></CriteriaItem><CriteriaItem k="" c="West" o="" v="" r="True" id="3066" mask="" masktype="" maskkey="" enabled=""><CriteriaItem k="238140" c="Alaska RC" o="0" v="4081617" r="True" id="3110" mask="" masktype="" maskkey="" enabled="" /><CriteriaItem k="238140" c="Arizona CC" o="0" v="4081521" r="True" id="3111" mask="" masktype="" maskkey="" enabled="" /><CriteriaItem k="238140" c="California PUC" o="0" v="4081517" r="True" id="3112" mask="" masktype="" maskkey="" enabled="" /><CriteriaItem k="238140" c="Hawaii PUC" o="0" v="4136041" r="True" id="3113" mask="" masktype="" maskkey="" enabled="" /><CriteriaItem k="238140" c="Idaho PUC" o="0" v="4081519" r="True" id="3114" mask="" masktype="" maskkey="" enabled="" /><CriteriaItem k="238140" c="Montana PSC" o="0" v="4081522" r="True" id="3115" mask="" masktype="" maskkey="" enabled="" /><CriteriaItem k="238140" c="Nevada PUC" o="0" v="4081518" r="True" id="3116" mask="" masktype="" maskkey="" enabled="" /><CriteriaItem k="238140" c="Oregon PUC" o="0" v="4081516" r="True" id="3117" mask="" masktype="" maskkey="" enabled="" /><CriteriaItem k="238140" c="Washington UTC" o="0" v="4081515" r="True" id="3118" mask="" masktype="" maskkey="" enabled="" /><CriteriaItem k="238140" c="Wyoming PSC" o="0" v="4081538" r="True" id="3119" mask="" masktype="" maskkey="" enabled="" /></CriteriaItem></CriteriaItem></CriteriaItem></CriteriaGroup></CriteriaGroups><QueryStatements><Statement DisplayText="Company Name "><QueryLine BeginGroup="False" EndGroup="False" Connector="None" Operator="Equal" Value="Atmos Energy Corporation" EnglishValue="Atmos Energy Corporation"><Field KeyProductQueryItem="238108" /></QueryLine><Field Name="Company Name " Type="varchar" Units="" /></Statement><Statement DisplayText="Parent Company Name "><QueryLine BeginGroup="False" EndGroup="False" Connector="Or" Operator="Equal" Value="Atmos Energy Corporation" EnglishValue="Atmos Energy Corporation"><Field KeyProductQueryItem="238110" /></QueryLine><Field Name="Parent Company Name " Type="varchar" Units="" /></Statement><Statement DisplayText="Ultimate Parent Company Name "><QueryLine BeginGroup="False" EndGroup="False" Connector="Or" Operator="Equal" Value="Atmos Energy Corporation" EnglishValue="Atmos Energy Corporation"><Field KeyProductQueryItem="238111" /></QueryLine><Field Name="Ultimate Parent Company Name " Type="varchar" Units="" /></Statement><Statement DisplayText="State "><QueryLine BeginGroup="False" EndGroup="False" Connector="None" Operator="TopNOrderByAscending" Value="5000" EnglishValue="5000"><Field KeyProductQueryItem="238539" /></QueryLine><Field Name="State " Type="varchar" Units=""><Lookup><LookupItem Description="Alabama" Value="AL" Relative="" Mask="Alabama" /><LookupItem Description="Alaska" Value="AK" Relative="" Mask="Alaska" /><LookupItem Description="American Samoa" Value="AS" Relative="" Mask="American Samoa" /><LookupItem Description="Arizona" Value="AZ" Relative="" Mask="Arizona" /><LookupItem Description="Arkansas" Value="AR" Relative="" Mask="Arkansas" /><LookupItem Description="California" Value="CA" Relative="" Mask="California" /><LookupItem Description="Colorado" Value="CO" Relative="" Mask="Colorado" /><LookupItem Description="Connecticut" Value="CT" Relative="" Mask="Connecticut" /><LookupItem Description="Delaware" Value="DE" Relative="" Mask="Delaware" /><LookupItem Description="District of Columbia" Value="DC" Relative="" Mask="District of Columbia" /><LookupItem Description="Federated States of Micronesia" Value="FM" Relative="" Mask="Federated States of Micronesia" /><LookupItem Description="Florida" Value="FL" Relative="" Mask="Florida" /><LookupItem Description="Georgia" Value="GA" Relative="" Mask="Georgia" /><LookupItem Description="Guam" Value="GU" Relative="" Mask="Guam" /><LookupItem Description="Hawaii" Value="HI" Relative="" Mask="Hawaii" /><LookupItem Description="Idaho" Value="ID" Relative="" Mask="Idaho" /><LookupItem Description="Illinois" Value="IL" Relative="" Mask="Illinois" /><LookupItem Description="Indiana" Value="IN" Relative="" Mask="Indiana" /><LookupItem Description="Iowa" Value="IA" Relative="" Mask="Iowa" /><LookupItem Description="Kansas" Value="KS" Relative="" Mask="Kansas" /><LookupItem Description="Kentucky" Value="KY" Relative="" Mask="Kentucky" /><LookupItem Description="Louisiana" Value="LA" Relative="" Mask="Louisiana" /><LookupItem Description="Maine" Value="ME" Relative="" Mask="Maine" /><LookupItem Description="Marshall Islands" Value="MH" Relative="" Mask="Marshall Islands" /><LookupItem Description="Maryland" Value="MD" Relative="" Mask="Maryland" /><LookupItem Description="Massachusetts" Value="MA" Relative="" Mask="Massachusetts" /><LookupItem Description="Michigan" Value="MI" Relative="" Mask="Michigan" /><LookupItem Description="Minnesota" Value="MN" Relative="" Mask="Minnesota" /><LookupItem Description="Mississippi" Value="MS" Relative="" Mask="Mississippi" /><LookupItem Description="Missouri" Value="MO" Relative="" Mask="Missouri" /><LookupItem Description="Montana" Value="MT" Relative="" Mask="Montana" /><LookupItem Description="Nebraska" Value="NE" Relative="" Mask="Nebraska" /><LookupItem Description="Nevada" Value="NV" Relative="" Mask="Nevada" /><LookupItem Description="New Hampshire" Value="NH" Relative="" Mask="New Hampshire" /><LookupItem Description="New Jersey" Value="NJ" Relative="" Mask="New Jersey" /><LookupItem Description="New Mexico" Value="NM" Relative="" Mask="New Mexico" /><LookupItem Description="New York" Value="NY" Relative="" Mask="New York" /><LookupItem Description="North Carolina" Value="NC" Relative="" Mask="North Carolina" /><LookupItem Description="North Dakota" Value="ND" Relative="" Mask="North Dakota" /><LookupItem Description="Northern Mariana Islands" Value="MP" Relative="" Mask="Northern Mariana Islands" /><LookupItem Description="Ohio" Value="OH" Relative="" Mask="Ohio" /><LookupItem Description="Oklahoma" Value="OK" Relative="" Mask="Oklahoma" /><LookupItem Description="Oregon" Value="OR" Relative="" Mask="Oregon" /><LookupItem Description="Palau" Value="PW" Relative="" Mask="Palau" /><LookupItem Description="Pennsylvania" Value="PA" Relative="" Mask="Pennsylvania" /><LookupItem Description="Puerto Rico" Value="PR" Relative="" Mask="Puerto Rico" /><LookupItem Description="Rhode Island" Value="RI" Relative="" Mask="Rhode Island" /><LookupItem Description="South Carolina" Value="SC" Relative="" Mask="South Carolina" /><LookupItem Description="South Dakota" Value="SD" Relative="" Mask="South Dakota" /><LookupItem Description="Tennessee" Value="TN" Relative="" Mask="Tennessee" /><LookupItem Description="Texas" Value="TX" Relative="" Mask="Texas" /><LookupItem Description="U.S. Minor Outlying Islands" Value="UM" Relative="" Mask="U.S. Minor Outlying Islands" /><LookupItem Description="Utah" Value="UT" Relative="" Mask="Utah" /><LookupItem Description="Vermont" Value="VT" Relative="" Mask="Vermont" /><LookupItem Description="Virgin Islands" Value="VI" Relative="" Mask="Virgin Islands" /><LookupItem Description="Virginia" Value="VA" Relative="" Mask="Virginia" /><LookupItem Description="Washington" Value="WA" Relative="" Mask="Washington" /><LookupItem Description="West Virginia" Value="WV" Relative="" Mask="West Virginia" /><LookupItem Description="Wisconsin" Value="WI" Relative="" Mask="Wisconsin" /><LookupItem Description="Wyoming" Value="WY" Relative="" Mask="Wyoming" /></Lookup></Field></Statement></QueryStatements></SavedQuery>
A4: CompletedCases | B4: 238101 | C4: 1 | G4: <SavedQuery Version="1" DateCreated="2012-09-04T18:46:28.9160966+05:30" Perspective="238101" Name="CompletedCases" Currency="USD" Magnitude="" ConversionMethod="Snl" UnitOfMeasure="USCustomary" Comment="" Language="0"><CriteriaGroups><CriteriaGroup k="3051" c="Available Rate Case Types" o="1"><CriteriaItem k="238141" c="Natural Gas" o="0" v="1" r="True" id="3052" mask="" masktype="" maskkey="" enabled="" /><CriteriaItem k="238141" c="Electric" o="0" v="0" r="True" id="3053" mask="" masktype="" maskkey="" enabled="" /><CriteriaItem k="238141" c="Steam" o="0" v="4" r="True" id="3054" mask="" masktype="" maskkey="" enabled="" /></CriteriaGroup><CriteriaGroup k="3055" c="Rate Case Status" o="1"><CriteriaItem k="238147" c="Pending" o="0" v="0" r="False" id="3056" mask="" masktype="" maskkey="" enabled="" /><CriteriaItem k="238147" c="Completed" o="0" v="1" r="True" id="3057" mask="" masktype="" maskkey="" enabled="" /></CriteriaGroup><CriteriaGroup k="3058" c="Jurisdiction" o="1"><CriteriaItem k="" c="All Jurisdictions" o="" v="" r="True" id="3059" mask="" masktype="" maskkey="" enabled=""><CriteriaItem k="" c="United States" o="" v="" r="True" id="3060" mask="" masktype="" maskkey="" enabled=""><CriteriaItem k="" c="Mid Atlantic" o="" v="" r="True" id="3061" mask="" masktype="" maskkey="" enabled=""><CriteriaItem k="238140" c="Delaware PSC" o="0" v="4081613" r="True" id="3067" mask="" masktype="" maskkey="" enabled="" /><CriteriaItem k="238140" c="District of Columbia PSC" o="0" v="4081616" r="True" id="3068" mask="" masktype="" maskkey="" enabled="" /><CriteriaItem k="238140" c="Maryland PSC" o="0" v="4081615" r="True" id="3069" mask="" masktype="" maskkey="" enabled="" /><CriteriaItem k="238140" c="New Jersey BPU" o="0" v="4081611" r="True" id="3070" mask="" masktype="" maskkey="" enabled="" /><CriteriaItem k="238140" c="New York PSC" o="0" v="4081607" r="True" id="3071" mask="" masktype="" maskkey="" enabled="" /><CriteriaItem k="238140" c="Pennsylvania PUC" o="0" v="4081610" r="True" id="3072" mask="" masktype="" maskkey="" enabled="" /></CriteriaItem><CriteriaItem k="" c="Midwest" o="" v="" r="True" id="3062" mask="" masktype="" maskkey="" enabled=""><CriteriaItem k="238140" c="Illinois CC" o="0" v="4081571" r="True" id="3073" mask="" masktype="" maskkey="" enabled="" /><CriteriaItem k="238140" c="Indiana URC" o="0" v="4081575" r="True" id="3074" mask="" masktype="" maskkey="" enabled="" /><CriteriaItem k="238140" c="Iowa Utilities Board" o="0" v="4081563" r="True" id="3075" mask="" masktype="" maskkey="" enabled="" /><CriteriaItem k="238140" c="Kansas CC" o="0" v="4081558" r="True" id="3076" mask="" masktype="" maskkey="" enabled="" /><CriteriaItem k="238140" c="Kentucky PSC" o="0" v="4081576" r="True" id="3077" mask="" masktype="" maskkey="" enabled="" /><CriteriaItem k="238140" c="Michigan PSC" o="0" v="4081574" r="True" id="3078" mask="" masktype="" maskkey="" enabled="" /><CriteriaItem k="238140" c="Minnesota PUC" o="0" v="4081562" r="True" id="3079" mask="" masktype="" maskkey="" enabled="" /><CriteriaItem k="238140" c="Missouri PSC" o="0" v="4081566" r="True" id="3080" mask="" masktype="" maskkey="" enabled="" /><CriteriaItem k="238140" c="Nebraska PSC" o="0" v="4081556" r="True" id="3081" mask="" masktype="" maskkey="" enabled="" /><CriteriaItem k="238140" c="North Dakota PSC" o="0" v="4081554" r="True" id="3082" mask="" masktype="" maskkey="" enabled="" /><CriteriaItem k="238140" c="Ohio PUC" o="0" v="4081580" r="True" id="3083" mask="" masktype="" maskkey="" enabled="" /><CriteriaItem k="238140" c="South Dakota PUC" o="0" v="4081555" r="True" id="3084" mask="" masktype="" maskkey="" enabled="" /><CriteriaItem k="238140" c="Wisconsin PSC" o="0" v="4081570" r="True" id="3085" mask="" masktype="" maskkey="" enabled="" /></CriteriaItem><CriteriaItem k="" c="Northeast" o="" v="" r="True" id="3063" mask="" masktype="" maskkey="" enabled=""><CriteriaItem k="238140" c="Connecticut PURA" o="0" v="4081608" r="True" id="3086" mask="" masktype="" maskkey="" enabled="" /><CriteriaItem k="238140" c="Maine PUC" o="0" v="4081599" r="True" id="3087" mask="" masktype="" maskkey="" enabled="" /><CriteriaItem k="238140" c="Massachusetts DPU" o="0" v="4081605" r="True" id="3088" mask="" masktype="" maskkey="" enabled="" /><CriteriaItem k="238140" c="New Hampshire PUC" o="0" v="4081601" r="True" id="3089" mask="" masktype="" maskkey="" enabled="" /><CriteriaItem k="238140" c="Rhode Island PUC" o="0" v="4081609" r="True" id="3090" mask="" masktype="" maskkey="" enabled="" /><CriteriaItem k="238140" c="Vermont PSB" o="0" v="4081602" r="True" id="3091" mask="" masktype="" maskkey="" enabled="" /></CriteriaItem><CriteriaItem k="" c="Southeast" o="" v="" r="True" id="3064" mask="" masktype="" maskkey="" enabled=""><CriteriaItem k="238140" c="Alabama PSC" o="0" v="4081578" r="True" id="3092" mask="" masktype="" maskkey="" enabled="" /><CriteriaItem k="238140" c="Arkansas PSC" o="0" v="4081567" r="True" id="3093" mask="" masktype="" maskkey="" enabled="" /><CriteriaItem k="238140" c="Florida PSC" o="0" v="4081598" r="True" id="3094" mask="" masktype="" maskkey="" enabled="" /><CriteriaItem k="238140" c="Georgia PSC" o="0" v="4081595" r="True" id="3095" mask="" masktype="" maskkey="" enabled="" /><CriteriaItem k="238140" c="Mississippi PSC" o="0" v="4081573" r="True" id="3096" mask="" masktype="" maskkey="" enabled="" /><CriteriaItem k="238140" c="North Carolina UC" o="0" v="4081590" r="True" id="3097" mask="" masktype="" maskkey="" enabled="" /><CriteriaItem k="238140" c="South Carolina PSC" o="0" v="4081594" r="True" id="3098" mask="" masktype="" maskkey="" enabled="" /><CriteriaItem k="238140" c="Tennessee RA" o="0" v="4081577" r="True" id="3099" mask="" masktype="" maskkey="" enabled="" /><CriteriaItem k="238140" c="Virginia SCC" o="0" v="4081583" r="True" id="3100" mask="" masktype="" maskkey="" enabled="" /><CriteriaItem k="238140" c="West Virginia PSC" o="0" v="4081581" r="True" id="3101" mask="" masktype="" maskkey="" enabled="" /></CriteriaItem><CriteriaItem k="" c="Southwest" o="" v="" r="True" id="3065" mask="" masktype="" maskkey="" enabled=""><CriteriaItem k="238140" c="Colorado PUC" o="0" v="4081552" r="True" id="3102" mask="" masktype="" maskkey="" enabled="" /><CriteriaItem k="238140" c="Louisiana PSC" o="0" v="4081569" r="True" id="3103" mask="" masktype="" maskkey="" enabled="" /><CriteriaItem k="238140" c="Louisiana NOCC" o="0" v="4315460" r="True" id="3104" mask="" masktype="" maskkey="" enabled="" /><CriteriaItem k="238140" c="New Mexico PRC" o="0" v="4081553" r="True" id="3105" mask="" masktype="" maskkey="" enabled="" /><CriteriaItem k="238140" c="Oklahoma CC" o="0" v="4081559" r="True" id="3106" mask="" masktype="" maskkey="" enabled="" /><CriteriaItem k="238140" c="Texas PUC" o="0" v="4081560" r="True" id="3107" mask="" masktype="" maskkey="" enabled="" /><CriteriaItem k="238140" c="Texas RRC" o="0" v="4081952" r="True" id="3108" mask="" masktype="" maskkey="" enabled="" /><CriteriaItem k="238140" c="Utah PSC" o="0" v="4081520" r="True" id="3109" mask="" masktype="" maskkey="" enabled="" /></CriteriaItem><CriteriaItem k="" c="West" o="" v="" r="True" id="3066" mask="" masktype="" maskkey="" enabled=""><CriteriaItem k="238140" c="Alaska RC" o="0" v="4081617" r="True" id="3110" mask="" masktype="" maskkey="" enabled="" /><CriteriaItem k="238140" c="Arizona CC" o="0" v="4081521" r="True" id="3111" mask="" masktype="" maskkey="" enabled="" /><CriteriaItem k="238140" c="California PUC" o="0" v="4081517" r="True" id="3112" mask="" masktype="" maskkey="" enabled="" /><CriteriaItem k="238140" c="Hawaii PUC" o="0" v="4136041" r="True" id="3113" mask="" masktype="" maskkey="" enabled="" /><CriteriaItem k="238140" c="Idaho PUC" o="0" v="4081519" r="True" id="3114" mask="" masktype="" maskkey="" enabled="" /><CriteriaItem k="238140" c="Montana PSC" o="0" v="4081522" r="True" id="3115" mask="" masktype="" maskkey="" enabled="" /><CriteriaItem k="238140" c="Nevada PUC" o="0" v="4081518" r="True" id="3116" mask="" masktype="" maskkey="" enabled="" /><CriteriaItem k="238140" c="Oregon PUC" o="0" v="4081516" r="True" id="3117" mask="" masktype="" maskkey="" enabled="" /><CriteriaItem k="238140" c="Washington UTC" o="0" v="4081515" r="True" id="3118" mask="" masktype="" maskkey="" enabled="" /><CriteriaItem k="238140" c="Wyoming PSC" o="0" v="4081538" r="True" id="3119" mask="" masktype="" maskkey="" enabled="" /></CriteriaItem></CriteriaItem></CriteriaItem></CriteriaGroup></CriteriaGroups><QueryStatements><Statement DisplayText="Company Name "><QueryLine BeginGroup="False" EndGroup="False" Connector="None" Operator="Equal" Value="SelCompany" EnglishValue="SelCompany"><Field KeyProductQueryItem="238108" /></QueryLine><Field Name="Company Name " Type="varchar" Units="" /></Statement><Statement DisplayText="Parent Company Name "><QueryLine BeginGroup="False" EndGroup="False" Connector="Or" Operator="Equal" Value="SelCompany" EnglishValue="SelCompany"><Field KeyProductQueryItem="238110" /></QueryLine><Field Name="Parent Company Name " Type="varchar" Units="" /></Statement><Statement DisplayText="Ultimate Parent Company Name "><QueryLine BeginGroup="False" EndGroup="False" Connector="Or" Operator="Equal" Value="SelCompany" EnglishValue="SelCompany"><Field KeyProductQueryItem="238111" /></QueryLine><Field Name="Ultimate Parent Company Name " Type="varchar" Units="" /></Statement><Statement DisplayText="State "><QueryLine BeginGroup="False" EndGroup="False" Connector="None" Operator="TopNOrderByAscending" Value="5000" EnglishValue="5000"><Field KeyProductQueryItem="238539" /></QueryLine><Field Name="State " Type="varchar" Units=""><Lookup><LookupItem Description="Alabama" Value="AL" Relative="" Mask="Alabama" /><LookupItem Description="Alaska" Value="AK" Relative="" Mask="Alaska" /><LookupItem Description="American Samoa" Value="AS" Relative="" Mask="American Samoa" /><LookupItem Description="Arizona" Value="AZ" Relative="" Mask="Arizona" /><LookupItem Description="Arkansas" Value="AR" Relative="" Mask="Arkansas" /><LookupItem Description="California" Value="CA" Relative="" Mask="California" /><LookupItem Description="Colorado" Value="CO" Relative="" Mask="Colorado" /><LookupItem Description="Connecticut" Value="CT" Relative="" Mask="Connecticut" /><LookupItem Description="Delaware" Value="DE" Relative="" Mask="Delaware" /><LookupItem Description="District of Columbia" Value="DC" Relative="" Mask="District of Columbia" /><LookupItem Description="Federated States of Micronesia" Value="FM" Relative="" Mask="Federated States of Micronesia" /><LookupItem Description="Florida" Value="FL" Relative="" Mask="Florida" /><LookupItem Description="Georgia" Value="GA" Relative="" Mask="Georgia" /><LookupItem Description="Guam" Value="GU" Relative="" Mask="Guam" /><LookupItem Description="Hawaii" Value="HI" Relative="" Mask="Hawaii" /><LookupItem Description="Idaho" Value="ID" Relative="" Mask="Idaho" /><LookupItem Description="Illinois" Value="IL" Relative="" Mask="Illinois" /><LookupItem Description="Indiana" Value="IN" Relative="" Mask="Indiana" /><LookupItem Description="Iowa" Value="IA" Relative="" Mask="Iowa" /><LookupItem Description="Kansas" Value="KS" Relative="" Mask="Kansas" /><LookupItem Description="Kentucky" Value="KY" Relative="" Mask="Kentucky" /><LookupItem Description="Louisiana" Value="LA" Relative="" Mask="Louisiana" /><LookupItem Description="Maine" Value="ME" Relative="" Mask="Maine" /><LookupItem Description="Marshall Islands" Value="MH" Relative="" Mask="Marshall Islands" /><LookupItem Description="Maryland" Value="MD" Relative="" Mask="Maryland" /><LookupItem Description="Massachusetts" Value="MA" Relative="" Mask="Massachusetts" /><LookupItem Description="Michigan" Value="MI" Relative="" Mask="Michigan" /><LookupItem Description="Minnesota" Value="MN" Relative="" Mask="Minnesota" /><LookupItem Description="Mississippi" Value="MS" Relative="" Mask="Mississippi" /><LookupItem Description="Missouri" Value="MO" Relative="" Mask="Missouri" /><LookupItem Description="Montana" Value="MT" Relative="" Mask="Montana" /><LookupItem Description="Nebraska" Value="NE" Relative="" Mask="Nebraska" /><LookupItem Description="Nevada" Value="NV" Relative="" Mask="Nevada" /><LookupItem Description="New Hampshire" Value="NH" Relative="" Mask="New Hampshire" /><LookupItem Description="New Jersey" Value="NJ" Relative="" Mask="New Jersey" /><LookupItem Description="New Mexico" Value="NM" Relative="" Mask="New Mexico" /><LookupItem Description="New York" Value="NY" Relative="" Mask="New York" /><LookupItem Description="North Carolina" Value="NC" Relative="" Mask="North Carolina" /><LookupItem Description="North Dakota" Value="ND" Relative="" Mask="North Dakota" /><LookupItem Description="Northern Mariana Islands" Value="MP" Relative="" Mask="Northern Mariana Islands" /><LookupItem Description="Ohio" Value="OH" Relative="" Mask="Ohio" /><LookupItem Description="Oklahoma" Value="OK" Relative="" Mask="Oklahoma" /><LookupItem Description="Oregon" Value="OR" Relative="" Mask="Oregon" /><LookupItem Description="Palau" Value="PW" Relative="" Mask="Palau" /><LookupItem Description="Pennsylvania" Value="PA" Relative="" Mask="Pennsylvania" /><LookupItem Description="Puerto Rico" Value="PR" Relative="" Mask="Puerto Rico" /><LookupItem Description="Rhode Island" Value="RI" Relative="" Mask="Rhode Island" /><LookupItem Description="South Carolina" Value="SC" Relative="" Mask="South Carolina" /><LookupItem Description="South Dakota" Value="SD" Relative="" Mask="South Dakota" /><LookupItem Description="Tennessee" Value="TN" Relative="" Mask="Tennessee" /><LookupItem Description="Texas" Value="TX" Relative="" Mask="Texas" /><LookupItem Description="U.S. Minor Outlying Islands" Value="UM" Relative="" Mask="U.S. Minor Outlying Islands" /><LookupItem Description="Utah" Value="UT" Relative="" Mask="Utah" /><LookupItem Description="Vermont" Value="VT" Relative="" Mask="Vermont" /><LookupItem Description="Virgin Islands" Value="VI" Relative="" Mask="Virgin Islands" /><LookupItem Description="Virginia" Value="VA" Relative="" Mask="Virginia" /><LookupItem Description="Washington" Value="WA" Relative="" Mask="Washington" /><LookupItem Description="West Virginia" Value="WV" Relative="" Mask="West Virginia" /><LookupItem Description="Wisconsin" Value="WI" Relative="" Mask="Wisconsin" /><LookupItem Description="Wyoming" Value="WY" Relative="" Mask="Wyoming" /></Lookup></Field></Statement></QueryStatements></SavedQuery> | I4: =SUBSTITUTE(G4,"SelCompany",CompanyName) -> <SavedQuery Version="1" DateCreated="2012-09-04T18:46:28.9160966+05:30" Perspective="238101" Name="CompletedCases" Currency="USD" Magnitude="" ConversionMethod="Snl" UnitOfMeasure="USCustomary" Comment="" Language="0"><CriteriaGroups><CriteriaGroup k="3051" c="Available Rate Case Types" o="1"><CriteriaItem k="238141" c="Natural Gas" o="0" v="1" r="True" id="3052" mask="" masktype="" maskkey="" enabled="" /><CriteriaItem k="238141" c="Electric" o="0" v="0" r="True" id="3053" mask="" masktype="" maskkey="" enabled="" /><CriteriaItem k="238141" c="Steam" o="0" v="4" r="True" id="3054" mask="" masktype="" maskkey="" enabled="" /></CriteriaGroup><CriteriaGroup k="3055" c="Rate Case Status" o="1"><CriteriaItem k="238147" c="Pending" o="0" v="0" r="False" id="3056" mask="" masktype="" maskkey="" enabled="" /><CriteriaItem k="238147" c="Completed" o="0" v="1" r="True" id="3057" mask="" masktype="" maskkey="" enabled="" /></CriteriaGroup><CriteriaGroup k="3058" c="Jurisdiction" o="1"><CriteriaItem k="" c="All Jurisdictions" o="" v="" r="True" id="3059" mask="" masktype="" maskkey="" enabled=""><CriteriaItem k="" c="United States" o="" v="" r="True" id="3060" mask="" masktype="" maskkey="" enabled=""><CriteriaItem k="" c="Mid Atlantic" o="" v="" r="True" id="3061" mask="" masktype="" maskkey="" enabled=""><CriteriaItem k="238140" c="Delaware PSC" o="0" v="4081613" r="True" id="3067" mask="" masktype="" maskkey="" enabled="" /><CriteriaItem k="238140" c="District of Columbia PSC" o="0" v="4081616" r="True" id="3068" mask="" masktype="" maskkey="" enabled="" /><CriteriaItem k="238140" c="Maryland PSC" o="0" v="4081615" r="True" id="3069" mask="" masktype="" maskkey="" enabled="" /><CriteriaItem k="238140" c="New Jersey BPU" o="0" v="4081611" r="True" id="3070" mask="" masktype="" maskkey="" enabled="" /><CriteriaItem k="238140" c="New York PSC" o="0" v="4081607" r="True" id="3071" mask="" masktype="" maskkey="" enabled="" /><CriteriaItem k="238140" c="Pennsylvania PUC" o="0" v="4081610" r="True" id="3072" mask="" masktype="" maskkey="" enabled="" /></CriteriaItem><CriteriaItem k="" c="Midwest" o="" v="" r="True" id="3062" mask="" masktype="" maskkey="" enabled=""><CriteriaItem k="238140" c="Illinois CC" o="0" v="4081571" r="True" id="3073" mask="" masktype="" maskkey="" enabled="" /><CriteriaItem k="238140" c="Indiana URC" o="0" v="4081575" r="True" id="3074" mask="" masktype="" maskkey="" enabled="" /><CriteriaItem k="238140" c="Iowa Utilities Board" o="0" v="4081563" r="True" id="3075" mask="" masktype="" maskkey="" enabled="" /><CriteriaItem k="238140" c="Kansas CC" o="0" v="4081558" r="True" id="3076" mask="" masktype="" maskkey="" enabled="" /><CriteriaItem k="238140" c="Kentucky PSC" o="0" v="4081576" r="True" id="3077" mask="" masktype="" maskkey="" enabled="" /><CriteriaItem k="238140" c="Michigan PSC" o="0" v="4081574" r="True" id="3078" mask="" masktype="" maskkey="" enabled="" /><CriteriaItem k="238140" c="Minnesota PUC" o="0" v="4081562" r="True" id="3079" mask="" masktype="" maskkey="" enabled="" /><CriteriaItem k="238140" c="Missouri PSC" o="0" v="4081566" r="True" id="3080" mask="" masktype="" maskkey="" enabled="" /><CriteriaItem k="238140" c="Nebraska PSC" o="0" v="4081556" r="True" id="3081" mask="" masktype="" maskkey="" enabled="" /><CriteriaItem k="238140" c="North Dakota PSC" o="0" v="4081554" r="True" id="3082" mask="" masktype="" maskkey="" enabled="" /><CriteriaItem k="238140" c="Ohio PUC" o="0" v="4081580" r="True" id="3083" mask="" masktype="" maskkey="" enabled="" /><CriteriaItem k="238140" c="South Dakota PUC" o="0" v="4081555" r="True" id="3084" mask="" masktype="" maskkey="" enabled="" /><CriteriaItem k="238140" c="Wisconsin PSC" o="0" v="4081570" r="True" id="3085" mask="" masktype="" maskkey="" enabled="" /></CriteriaItem><CriteriaItem k="" c="Northeast" o="" v="" r="True" id="3063" mask="" masktype="" maskkey="" enabled=""><CriteriaItem k="238140" c="Connecticut PURA" o="0" v="4081608" r="True" id="3086" mask="" masktype="" maskkey="" enabled="" /><CriteriaItem k="238140" c="Maine PUC" o="0" v="4081599" r="True" id="3087" mask="" masktype="" maskkey="" enabled="" /><CriteriaItem k="238140" c="Massachusetts DPU" o="0" v="4081605" r="True" id="3088" mask="" masktype="" maskkey="" enabled="" /><CriteriaItem k="238140" c="New Hampshire PUC" o="0" v="4081601" r="True" id="3089" mask="" masktype="" maskkey="" enabled="" /><CriteriaItem k="238140" c="Rhode Island PUC" o="0" v="4081609" r="True" id="3090" mask="" masktype="" maskkey="" enabled="" /><CriteriaItem k="238140" c="Vermont PSB" o="0" v="4081602" r="True" id="3091" mask="" masktype="" maskkey="" enabled="" /></CriteriaItem><CriteriaItem k="" c="Southeast" o="" v="" r="True" id="3064" mask="" masktype="" maskkey="" enabled=""><CriteriaItem k="238140" c="Alabama PSC" o="0" v="4081578" r="True" id="3092" mask="" masktype="" maskkey="" enabled="" /><CriteriaItem k="238140" c="Arkansas PSC" o="0" v="4081567" r="True" id="3093" mask="" masktype="" maskkey="" enabled="" /><CriteriaItem k="238140" c="Florida PSC" o="0" v="4081598" r="True" id="3094" mask="" masktype="" maskkey="" enabled="" /><CriteriaItem k="238140" c="Georgia PSC" o="0" v="4081595" r="True" id="3095" mask="" masktype="" maskkey="" enabled="" /><CriteriaItem k="238140" c="Mississippi PSC" o="0" v="4081573" r="True" id="3096" mask="" masktype="" maskkey="" enabled="" /><CriteriaItem k="238140" c="North Carolina UC" o="0" v="4081590" r="True" id="3097" mask="" masktype="" maskkey="" enabled="" /><CriteriaItem k="238140" c="South Carolina PSC" o="0" v="4081594" r="True" id="3098" mask="" masktype="" maskkey="" enabled="" /><CriteriaItem k="238140" c="Tennessee RA" o="0" v="4081577" r="True" id="3099" mask="" masktype="" maskkey="" enabled="" /><CriteriaItem k="238140" c="Virginia SCC" o="0" v="4081583" r="True" id="3100" mask="" masktype="" maskkey="" enabled="" /><CriteriaItem k="238140" c="West Virginia PSC" o="0" v="4081581" r="True" id="3101" mask="" masktype="" maskkey="" enabled="" /></CriteriaItem><CriteriaItem k="" c="Southwest" o="" v="" r="True" id="3065" mask="" masktype="" maskkey="" enabled=""><CriteriaItem k="238140" c="Colorado PUC" o="0" v="4081552" r="True" id="3102" mask="" masktype="" maskkey="" enabled="" /><CriteriaItem k="238140" c="Louisiana PSC" o="0" v="4081569" r="True" id="3103" mask="" masktype="" maskkey="" enabled="" /><CriteriaItem k="238140" c="Louisiana NOCC" o="0" v="4315460" r="True" id="3104" mask="" masktype="" maskkey="" enabled="" /><CriteriaItem k="238140" c="New Mexico PRC" o="0" v="4081553" r="True" id="3105" mask="" masktype="" maskkey="" enabled="" /><CriteriaItem k="238140" c="Oklahoma CC" o="0" v="4081559" r="True" id="3106" mask="" masktype="" maskkey="" enabled="" /><CriteriaItem k="238140" c="Texas PUC" o="0" v="4081560" r="True" id="3107" mask="" masktype="" maskkey="" enabled="" /><CriteriaItem k="238140" c="Texas RRC" o="0" v="4081952" r="True" id="3108" mask="" masktype="" maskkey="" enabled="" /><CriteriaItem k="238140" c="Utah PSC" o="0" v="4081520" r="True" id="3109" mask="" masktype="" maskkey="" enabled="" /></CriteriaItem><CriteriaItem k="" c="West" o="" v="" r="True" id="3066" mask="" masktype="" maskkey="" enabled=""><CriteriaItem k="238140" c="Alaska RC" o="0" v="4081617" r="True" id="3110" mask="" masktype="" maskkey="" enabled="" /><CriteriaItem k="238140" c="Arizona CC" o="0" v="4081521" r="True" id="3111" mask="" masktype="" maskkey="" enabled="" /><CriteriaItem k="238140" c="California PUC" o="0" v="4081517" r="True" id="3112" mask="" masktype="" maskkey="" enabled="" /><CriteriaItem k="238140" c="Hawaii PUC" o="0" v="4136041" r="True" id="3113" mask="" masktype="" maskkey="" enabled="" /><CriteriaItem k="238140" c="Idaho PUC" o="0" v="4081519" r="True" id="3114" mask="" masktype="" maskkey="" enabled="" /><CriteriaItem k="238140" c="Montana PSC" o="0" v="4081522" r="True" id="3115" mask="" masktype="" maskkey="" enabled="" /><CriteriaItem k="238140" c="Nevada PUC" o="0" v="4081518" r="True" id="3116" mask="" masktype="" maskkey="" enabled="" /><CriteriaItem k="238140" c="Oregon PUC" o="0" v="4081516" r="True" id="3117" mask="" masktype="" maskkey="" enabled="" /><CriteriaItem k="238140" c="Washington UTC" o="0" v="4081515" r="True" id="3118" mask="" masktype="" maskkey="" enabled="" /><CriteriaItem k="238140" c="Wyoming PSC" o="0" v="4081538" r="True" id="3119" mask="" masktype="" maskkey="" enabled="" /></CriteriaItem></CriteriaItem></CriteriaItem></CriteriaGroup></CriteriaGroups><QueryStatements><Statement DisplayText="Company Name "><QueryLine BeginGroup="False" EndGroup="False" Connector="None" Operator="Equal" Value="Atmos Energy Corporation" EnglishValue="Atmos Energy Corporation"><Field KeyProductQueryItem="238108" /></QueryLine><Field Name="Company Name " Type="varchar" Units="" /></Statement><Statement DisplayText="Parent Company Name "><QueryLine BeginGroup="False" EndGroup="False" Connector="Or" Operator="Equal" Value="Atmos Energy Corporation" EnglishValue="Atmos Energy Corporation"><Field KeyProductQueryItem="238110" /></QueryLine><Field Name="Parent Company Name " Type="varchar" Units="" /></Statement><Statement DisplayText="Ultimate Parent Company Name "><QueryLine BeginGroup="False" EndGroup="False" Connector="Or" Operator="Equal" Value="Atmos Energy Corporation" EnglishValue="Atmos Energy Corporation"><Field KeyProductQueryItem="238111" /></QueryLine><Field Name="Ultimate Parent Company Name " Type="varchar" Units="" /></Statement><Statement DisplayText="State "><QueryLine BeginGroup="False" EndGroup="False" Connector="None" Operator="TopNOrderByAscending" Value="5000" EnglishValue="5000"><Field KeyProductQueryItem="238539" /></QueryLine><Field Name="State " Type="varchar" Units=""><Lookup><LookupItem Description="Alabama" Value="AL" Relative="" Mask="Alabama" /><LookupItem Description="Alaska" Value="AK" Relative="" Mask="Alaska" /><LookupItem Description="American Samoa" Value="AS" Relative="" Mask="American Samoa" /><LookupItem Description="Arizona" Value="AZ" Relative="" Mask="Arizona" /><LookupItem Description="Arkansas" Value="AR" Relative="" Mask="Arkansas" /><LookupItem Description="California" Value="CA" Relative="" Mask="California" /><LookupItem Description="Colorado" Value="CO" Relative="" Mask="Colorado" /><LookupItem Description="Connecticut" Value="CT" Relative="" Mask="Connecticut" /><LookupItem Description="Delaware" Value="DE" Relative="" Mask="Delaware" /><LookupItem Description="District of Columbia" Value="DC" Relative="" Mask="District of Columbia" /><LookupItem Description="Federated States of Micronesia" Value="FM" Relative="" Mask="Federated States of Micronesia" /><LookupItem Description="Florida" Value="FL" Relative="" Mask="Florida" /><LookupItem Description="Georgia" Value="GA" Relative="" Mask="Georgia" /><LookupItem Description="Guam" Value="GU" Relative="" Mask="Guam" /><LookupItem Description="Hawaii" Value="HI" Relative="" Mask="Hawaii" /><LookupItem Description="Idaho" Value="ID" Relative="" Mask="Idaho" /><LookupItem Description="Illinois" Value="IL" Relative="" Mask="Illinois" /><LookupItem Description="Indiana" Value="IN" Relative="" Mask="Indiana" /><LookupItem Description="Iowa" Value="IA" Relative="" Mask="Iowa" /><LookupItem Description="Kansas" Value="KS" Relative="" Mask="Kansas" /><LookupItem Description="Kentucky" Value="KY" Relative="" Mask="Kentucky" /><LookupItem Description="Louisiana" Value="LA" Relative="" Mask="Louisiana" /><LookupItem Description="Maine" Value="ME" Relative="" Mask="Maine" /><LookupItem Description="Marshall Islands" Value="MH" Relative="" Mask="Marshall Islands" /><LookupItem Description="Maryland" Value="MD" Relative="" Mask="Maryland" /><LookupItem Description="Massachusetts" Value="MA" Relative="" Mask="Massachusetts" /><LookupItem Description="Michigan" Value="MI" Relative="" Mask="Michigan" /><LookupItem Description="Minnesota" Value="MN" Relative="" Mask="Minnesota" /><LookupItem Description="Mississippi" Value="MS" Relative="" Mask="Mississippi" /><LookupItem Description="Missouri" Value="MO" Relative="" Mask="Missouri" /><LookupItem Description="Montana" Value="MT" Relative="" Mask="Montana" /><LookupItem Description="Nebraska" Value="NE" Relative="" Mask="Nebraska" /><LookupItem Description="Nevada" Value="NV" Relative="" Mask="Nevada" /><LookupItem Description="New Hampshire" Value="NH" Relative="" Mask="New Hampshire" /><LookupItem Description="New Jersey" Value="NJ" Relative="" Mask="New Jersey" /><LookupItem Description="New Mexico" Value="NM" Relative="" Mask="New Mexico" /><LookupItem Description="New York" Value="NY" Relative="" Mask="New York" /><LookupItem Description="North Carolina" Value="NC" Relative="" Mask="North Carolina" /><LookupItem Description="North Dakota" Value="ND" Relative="" Mask="North Dakota" /><LookupItem Description="Northern Mariana Islands" Value="MP" Relative="" Mask="Northern Mariana Islands" /><LookupItem Description="Ohio" Value="OH" Relative="" Mask="Ohio" /><LookupItem Description="Oklahoma" Value="OK" Relative="" Mask="Oklahoma" /><LookupItem Description="Oregon" Value="OR" Relative="" Mask="Oregon" /><LookupItem Description="Palau" Value="PW" Relative="" Mask="Palau" /><LookupItem Description="Pennsylvania" Value="PA" Relative="" Mask="Pennsylvania" /><LookupItem Description="Puerto Rico" Value="PR" Relative="" Mask="Puerto Rico" /><LookupItem Description="Rhode Island" Value="RI" Relative="" Mask="Rhode Island" /><LookupItem Description="South Carolina" Value="SC" Relative="" Mask="South Carolina" /><LookupItem Description="South Dakota" Value="SD" Relative="" Mask="South Dakota" /><LookupItem Description="Tennessee" Value="TN" Relative="" Mask="Tennessee" /><LookupItem Description="Texas" Value="TX" Relative="" Mask="Texas" /><LookupItem Description="U.S. Minor Outlying Islands" Value="UM" Relative="" Mask="U.S. Minor Outlying Islands" /><LookupItem Description="Utah" Value="UT" Relative="" Mask="Utah" /><LookupItem Description="Vermont" Value="VT" Relative="" Mask="Vermont" /><LookupItem Description="Virgin Islands" Value="VI" Relative="" Mask="Virgin Islands" /><LookupItem Description="Virginia" Value="VA" Relative="" Mask="Virginia" /><LookupItem Description="Washington" Value="WA" Relative="" Mask="Washington" /><LookupItem Description="West Virginia" Value="WV" Relative="" Mask="West Virginia" /><LookupItem Description="Wisconsin" Value="WI" Relative="" Mask="Wisconsin" /><LookupItem Description="Wyoming" Value="WY" Relative="" Mask="Wyoming" /></Lookup></Field></Statement></QueryStatements></SavedQuery>
A5: Company_Listed | B5: 130500 | C5: 2

Sheet Sheet1
B3: Operating Revenue ($mil) | C3: Percent Gas Revenue | D3: Percent Elec Revenue | E3: Net Plant ($bil) | F3: Market Cap ($bil) | G3: S&P Issuer Credit Rating | H3: Moody's Issuer Credit Rating | I3: Pre-Tax Interest Coverage | J3: Primary Service Area | K3: Common Equity Ratio | L3: Return on Equity | M3: Market to Book Ratio
A4: Atmos Energy Company (NYSE-ATO) | B4: =B16/1000000 -> 3.40749 | C4: 0.95 | D4: 0 | E4: =E16/1000000 -> 15.286416 | F4: 14.4 | G4: A- | H4: NR | I4: =ATO!$F$47 -> 9.529504675 | J4: TX,LA,MS,CO,KS,KY | K4: =ATO!$F$42 -> 51.11118121 | L4: =ATO!$F$112 -> 8.828007269 | M4: =(F4)/(M16/1000000) -> 1.821196681
A5: Chesapeake Utilities (NYSE-CPK) | B5: =B17/1000000 -> 0.569968 | C5: 0.41 | D5: 0.12 | E5: =E17/1000000 -> 1.755017 | F5: 2.3 | G5: NR | H5: NR | I5: =CPK!$F$47 -> 6.511646387 | J5: DE,MD,FL | K5: =CPK!$F$42 -> 49.1762144 | L5: =CPK!$F$112 -> 11.30010393 | M5: =(F5)/(M17/1000000) -> 2.971077209
A6: New Jersey Resources Corp. (NYSE-NJR) | B6: 2.156613 | C6: 0.34 | D6: 0 | E6: 4.387441 | F6: 3.9 | G6: NR | H6: NR | I6: =NJR!$F$47 -> 3.340941744 | J6: NJ | K6: =NJR!$F$42 -> 37.15938807 | L6: =NJR!$F$112 -> 6.894664107 | M6: 2.391373396
A7: Nisource Inc (NYSE-NI) | B7: 4.8996 | C7: 0.65 | D7: 0.35 | E7: 17.9156 | F7: 11.2 | G7: ='NI (2)'!F24 -> BBB+ | H7: ='NI (2)'!G24 -> Baa2 | I7: ='NI (2)'!$F$47 -> 2.912641018 | J7: IN,OH,PA,KY,VA,MD,MA | K7: ='NI (2)'!$F$42 -> 31.56701151 | L7: ='NI (2)'!$F$112 -> 9.136242588 | M7: 1.612137089
A8: Northwest Natural Holdings (NYSE-NWN) | B8: 0.8604 | C8: 0.95 | D8: 0 | E8: 2.946419 | F8: 1.4 | G8: =NWN!F24 -> A+ | H8: NR | I8: =NWN!$F$47 -> 3.666704132 | J8: OR,WA | K8: =NWN!$F$42 -> 38.16389712 | L8: =NWN!$F$112 -> 8.591390071 | M8: 1.497092433
A9: ONE Gas, Inc.(NYSE-OGS) | B9: 1.808597 | C9: 1 | D9: 0 | E9: 5.221735 | F9: 4 | G9: =OGS!$F$24 -> BBB+ | H9: NR | I9: =OGS!$F$47 -> 4.810126975 | J9: OK,KS,TX | K9: =OGS!$F$42 -> 35.82635851 | L9: =OGS!$F$112 -> 8.955548437 | M9: 1.702466704
A10: South Jersey Industries, Inc. (NYSE-SJI) | B10: 1.991996 | C10: 0.49 | D10: 0 | E10: 4.929055 | F10: 2.8 | G10: =SJI!F24 -> BBB | H10: NR | I10: =SJI!$F$47 -> 2.746165343 | J10: NJ | K10: =SJI!$F$42 -> 35.4867133 | L10: =SJI!$F$112 -> 4.848049582 | M10: 1.407635012
A11: Southwest Gas Company (NYSE-SWX) | B11: 3.680451 | C11: 0.43 | D11: 0 | E11: 7.705365 | F11: 4 | G11: =SWX!F24 -> BBB- | H11: =SWX!G24 -> Baa2 | I11: =SWX!$F$47 -> 3.073309271 | J11: AZ,NV,CA | K11: =SWX!$F$42 -> 30.80358027 | L11: =SWX!$F$112 -> 7.305616654 | M11: 1.354178657
A12: Spire (NYSE-SR) | B12: 2.2355 | C12: 0.95 | D12: 0 | E12: 5.5872 | F12: 3.3 | G12: =SR!F24 -> A- | H12: NR | I12: =SR!$F$47 -> 4.055855856 | J12: MO | K12: =SR!$F$42 -> 37.78205188 | L12: =SR!$F$112 -> 10.21923205 | M12: 1.241441577
A13: Mean | B13: =AVERAGE(B4:B12) -> 2.401179444 | C13: =AVERAGE(C4:C12) -> 0.6855555556 | D13: =AVERAGE(D4:D12) -> 0.05222222222 | E13: =AVERAGE(E4:E12) -> 7.303805333 | F13: =AVERAGE(F4:F12) -> 5.255555556 | G13: A-/BBB+ | H13: Baa2 | I13: =AVERAGE(I4:I12) -> 4.516321711 | K13: =AVERAGE(K4:K12) -> 38.56404403 | L13: =AVERAGE(L4:L12) -> 8.453206076 | M13: =AVERAGE(M4:M12) -> 1.777622084
A14: Median | B14: =MEDIAN(B4:B12) -> 2.156613 | C14: =MEDIAN(C2:C12) -> 0.65 | D14: =MEDIAN(D2:D12) -> 0 | E14: =MEDIAN(E4:E12) -> 5.221735 | F14: =MEDIAN(F4:F12) -> 3.9 | G14: A-/BBB+ | H14: Baa2 | I14: =MEDIAN(I4:I12) -> 3.666704132 | K14: =MEDIAN(K2:K12) -> 37.15938807 | L14: =MEDIAN(L2:L12) -> 8.828007269 | M14: =MEDIAN(M4:M12) -> 1.612137089
A15: Data Source: S&P Capital IQ, 2021 Fiscal Year-end data, Value Line Investment Survey, 2022.
B16: =ATO!$F$69 -> 3407490 | E16: =ATO!$F$88 -> 15286416 | M16: =ATO!$F$97 -> 7906889
B17: =CPK!$F$69 -> 569968 | E17: =CPK!$F$88 -> 1755017 | M17: =CPK!$F$97 -> 774130
B18: =NJR!$F$69 -> 2156613 | E18: =NJR!$F$88 -> 4387441 | M18: =NJR!$F$97 -> 1630862
B19: ='NI (2)'!$F$69 -> 4899600 | E19: ='NI (2)'!$F$88 -> 17915600 | M19: ='NI (2)'!$F$97 -> 6947300
B20: =NWN!$F$69 -> 860400 | E20: =NWN!$F$88 -> 2946419 | M20: =NWN!$F$97 -> 935146
B21: =OGS!$F$69 -> 1808597 | E21: =OGS!$F$88 -> 5221735 | M21: =OGS!$F$97 -> 2349532
B22: =SJI!$F$69 -> 1991996 | E22: =SJI!$F$88 -> 4929055 | M22: =SJI!$F$97 -> 1989152
B23: =SWX!$F$69 -> 3680451 | E23: =SWX!$F$88 -> 7705365 | M23: =SWX!$F$97 -> 2953820
B24: =SR!$F$69 -> 2235500 | E24: =SR!$F$88 -> 5587200 | M24: =SR!$F$97 -> 2658200

Sheet ATO
G2: Utility Financial Profile
D3: Core functionality: | K3: Contact:
D4: This template allows users to look at SEC Financial Data and Ratios for a selected Company. | K4: Please contact Market Intelligence Support with any questions or comments:
D5: Settings: | K5: phone: | L5: +1 (888) 275 2822 (US & Canada)
D6: 1) Select MI Office Add-In manual refresh option. | L6: +44 20 7283 8887 (Europe, Middle East & Africa)
D7: 2) Enable macros while opening the template. | L7: +1 (434) 951-7788 (Latin America)
D8: 3) For best performance, save this file to your computer, close and then reopen. | L8: +852-3177-3727 (Asia-Pacific)
D9: Instructions: | K9: email: | L9: support.MI@spglobal.com
D10: Step 1: Select company in cell G10. | G10: Atmos Energy Corporation | K10: Disclaimer: Copyright © 2019 S&P Global Market Intelligence LLC (and its affiliates as applicable) – All rights reserved. This model and/or any data in it are provided subject to the written agreement of S&P Global Market Intelligence LLC governing the subscription service to which this model is applied.
D12: Step 2: Enter period in Cell G12. | G12: 2021y
D13: (Format: yyyyY/yyyyQq, 2008Y/2009Q1)
D14: Step 3: Click "REFRESH" button. | K14: Note :
K15: If you receive a pop up message "there were no results for your query", Click OK.
D17: =IF(X56="","",X56) -> Atmos Energy Corporation
D18: ="Industry : " & X55 -> Industry : Gas Utility
C20: =[1]!SNLTable(1,ATO!F20:G20,ATO!C24:C35,ATO!F21:G21,,"Options:Curr=USD,Mag=SNLstandard,ConvMethod=SNLrecommended") -> SNLTable | F20: =VLOOKUP(V40,S:T,2,FALSE) -> 4057157 | G20: =F20 -> 4057157
F21: 3000325 | G21: 108462
D23: CREDIT RATINGS | F23: S&P | G23: Moody's
C24: 44941 | D24: LT Issuer Rating | F24: A- | V24: =SUBSTITUTE(Company_Name,"&","&amp;") -> Atmos Energy Corporation
C25: 44942 | D25: Direction
C26: 44944 | D26: Date | F26: 2021-03-11
C27: 44949 | D27: Senior Unsecured Rating | F27: A- | G27: A1
C28: 44950 | D28: Direction | F28: Downgrade | G28: Affirm
C29: 44952 | D29: Date | F29: 2021-02-22 | G29: 2022-02-22
C30: 44965 | D30: Senior Secured Rating | S30: Intermediate Calculations:
C31: 44966 | D31: Direction | F31: Remove | S31: Please do not Edit or Delete Cells in this portion.
C32: 44968 | D32: Date | F32: 2008-08-20
C33: 44945 | D33: Short-Term/ CP Rating | F33: A-2 | G33: P-1
C34: 44946 | D34: Direction | F34: Downgrade | G34: Affirm
C35: 44948 | D35: Date | F35: 2021-02-22 | G35: 2022-02-22
C36: =[1]!SNLTable(1,ATO!F36:J36,ATO!C41:C113,ATO!F37:J37,,"Options:Curr=USD,Mag=SNLstandard,ConvMethod=SNLrecommended") -> SNLTable | F36: =F20 -> 4057157 | G36: =F20 -> 4057157 | H36: =F20 -> 4057157 | I36: =F20 -> 4057157 | J36: =F20 -> 4057157
F37: =IF(RIGHT(G12,1)="Y",G12,REPLACE(G12,5,1,"L")) -> 2021y | G37: =LEFT(F37,4)-1 & "Y" -> 2020Y | H37: =LEFT(G37,4)-1&"Y" -> 2019Y | I37: =LEFT(H37,4)-1&"Y" -> 2018Y | J37: =LEFT(I37,4)-1&"Y" -> 2017Y
F38: 1 | G38: 1 | H38: 1 | I38: 1 | J38: 1
S39: =[1]!SNLQUERY("Company_Listed") -> SNLQuery
D40: CREDIT RATIOS | F40: =IF(RIGHT(G12,1)="Y",G12,"LTM") -> 2021y | G40: =G37 -> 2020Y | H40: =H37 -> 2019Y | I40: =I37 -> 2018Y | J40: =J37 -> 2017Y | S40: Advanced Energy Industries, Inc. | T40: 4306705 | V40: =G10 -> Atmos Energy Corporation
C41: 151 | D41: Period End Date | F41: 2021-09-30 | G41: 2020-09-30 | H41: 2019-09-30 | I41: 2018-09-30 | J41: 2017-09-30 | S41: AEP Generating Company | T41: 4056954 | V41: ="Debt Maturity Schedule ($000)" & " ("&X43& ")" -> Debt Maturity Schedule ($000) (2021Y)
C42: 18857 | D42: Common Equity/ Total Capital (%) | F42: 51.11118121 | G42: 58.74776621 | H42: 59.0093888 | I42: 56.68797855 | J42: 52.58904889 | S42: AEP Texas Inc. | T42: 4056935 | V42: =[1]!SNLTable(1,ATO!X42,ATO!W48:W56,ATO!X43,,"Options:Curr=USD,Mag=SNLstandard,ConvMethod=SNLrecommended") -> SNLTable | X42: =F36 -> 4057157
C43: 18869 | D43: Total Preferred/ Total Capital (%) | F43: 0 | G43: 0 | H43: 0 | I43: 0 | J43: 0 | S43: AEP Transmission Company, LLC | T43: 4341449 | X43: =IF(OR(RIGHT(G12,1)="Y",RIGHT(G12,1)="4"),LEFT(G12,4)&"Y",G37) -> 2021Y
C44: 17861 | D44: Debt/ Total Capital (%) | F44: 48.88881879 | G44: 41.25223379 | H44: 40.9906112 | I44: 43.31202145 | J44: 47.41095111 | S44: AES Indiana | T44: 4024697 | X44: 1
C45: 18861 | D45: Long-term Debt/ Total Capital (%) | F45: 33.12835783 | G45: 40.94184275 | H45: 36.21960493 | I45: 29.63569815 | J45: 41.37132533 | S45: AES Ohio | T45: 4017451
S46: Alabama Power Company | T46: 4014956
C47: 18768 | D47: Pre-Tax Interest Coverage (x) | F47: 9.529504675 | G47: 8.869863309 | H47: 6.733618542 | I47: 6.416002679 | J47: 5.878440147 | S47: Algonquin Power & Utilities Corp. | T47: 4142273
C48: 18778 | D48: Pre-Tax Int Coverage + Pref Divs (x) | F48: 9.529504675 | G48: 8.869863309 | H48: 6.733618542 | I48: 6.416002679 | J48: 5.878440147 | S48: Allegheny Generating Company | T48: 4056955 | V48: Current Year | W48: 7597 | X48: 2401342
C49: 7270 | D49: EBITDA/ Interest Expense (x) | F49: 16.52619863 | G49: 14.92883017 | H49: 11.09922154 | I49: 10.11639443 | J49: 8.686067797 | S49: ALLETE, Inc. | T49: 4022309 | V49: Next Year | W49: 7598 | X49: 1365
C50: 11512 | D50: Rec EBITDA / (Int Exp + Prf Div) (x) | F50: 16.52619863 | G50: 14.92883017 | H50: 11.09922154 | I50: 10.11639443 | J50: 8.686067797 | S50: Alliant Energy Corporation | T50: 4057038 | V50: 2Yrs Out | W50: 7599 | X50: 1388
S51: AltaGas Ltd. | T51: 4135391 | V51: 3Yrs Out | W51: 7600 | X51: 11411
C52: 18788 | D52: Average Debt/ EBITDA (x) | F52: 4.695811849 | G52: 3.650047898 | H52: 3.245205115 | I52: 3.126987259 | J52: 3.222783308 | S52: AltaLink, L.P. | T52: 4097358 | V52: 4Yrs Out | W52: 7601 | X52: 1435
C53: 18794 | D53: Cash Flow Int + Pref Coverage (x) | F53: 16.04875889 | G53: 14.95863816 | H53: 11.10800461 | I53: 10.55014722 | J53: 8.981624151 | S53: Ameren Corporation | T53: 4007308 | V53: Thereafter | W53: 7602 | X53: 4972868
C54: 18792 | D54: Cash Flow/ Avg Total Debt (%) | F54: 19.72078584 | G54: 25.94354402 | H54: 28.15757663 | I54: 29.98779835 | J54: 29.02705398 | S54: Ameren Illinois Company | T54: 4272394 | V54: Other
C55: 11576 | D55: Cash Interest Coverage (x) | F55: -11.97664983 | G55: 13.28779269 | H55: 10.39157368 | I55: 11.54574949 | J55: 8.214807542 | S55: American Electric Power Company, Inc. | T55: 4006321 | V55: Industry Type | W55: 6252 | X55: Gas Utility
S56: American Superconductor Corporation | T56: 4991374 | V56: Company Name | W56: 9 | X56: Atmos Energy Corporation
C57: 6419 | D57: Current Ratio (x) | F57: 0.8086689238 | G57: 0.6023228498 | H57: 0.3787132888 | I57: 0.2500366816 | J57: 0.5324877669 | S57: American Transmission Systems, Incorporated | T57: 4076262
C58: 4963 | D58: Total Debt/ Total Equity (x) | F58: 0.9565190557 | G58: 0.7021923803 | H58: 0.6946455816 | I58: 0.7640424398 | J58: 0.9015365769 | S58: Amtech Systems, Inc. | T58: 4963960 | V58: Chart Data
S59: Appalachian Power Company | T59: 4056972 | V59: EBITDA & Interest Coverage Chart
D60: DEBT MATURITY SCHEDULE ($000) | S60: Arizona Public Service Company | T60: 4056974 | V60: EBITDA ($000)
C61: 7597 | D61: Debt Maturing-Current FY | F61: 2401342 | G61: 906 | H61: 464915 | I61: 1150780 | J61: 447745 | S61: Ascent Solar Technologies, Inc. | T61: 4229719 | V61: EBITDA/ Interest Expense (x) | X61: =IF(ISNUMBER(F49),F49,NA()) -> 16.52619863 | Y61: =IF(ISNUMBER(G49),G49,NA()) -> 14.92883017 | Z61: =IF(ISNUMBER(H49),H49,NA()) -> 11.09922154 | AA61: =IF(ISNUMBER(I49),I49,NA()) -> 10.11639443 | AB61: =IF(ISNUMBER(J49),J49,NA()) -> 8.686067797
C62: 7598 | D62: Debt Maturing-Next FY | F62: 1365 | G62: 200751 | H62: 0 | I62: 0 | J62: 575000 | S62: ATCO Ltd. | T62: 4086899 | V62: Liquidity
C63: 7599 | D63: Debt Maturing-FY2 | F63: 1388 | G63: 762 | H63: 0 | I63: 0 | J63: 0 | S63: Atlantic City Electric Company | T63: 4056975 | V63: Current Assets ($000)
C64: 7600 | D64: Debt Maturing-FY3 | F64: 11411 | G64: 773 | H64: 0 | I64: 0 | J64: 0 | S64: Atlantic Power Corporation | T64: 4098671 | V64: Current Liabilities ($000)
C65: 7601 | D65: Debt Maturing-FY4 | F65: 1435 | G65: 10784 | H65: 0 | I65: 0 | J65: 0 | S65: Atlantica Sustainable Infrastructure plc | T65: 4545218 | V65: Current Ratio (x) | X65: =IF(ISNUMBER(F57),F57,NA()) -> 0.8086689238 | Y65: =IF(ISNUMBER(G57),G57,NA()) -> 0.6023228498 | Z65: =IF(ISNUMBER(H57),H57,NA()) -> 0.3787132888 | AA65: =IF(ISNUMBER(I57),I57,NA()) -> 0.2500366816 | AB65: =IF(ISNUMBER(J57),J57,NA()) -> 0.5324877669
C66: 7602 | D66: Debt Maturing-Thereafter | F66: 4972868 | G66: 4362666 | H66: 3560000 | I66: 2510000 | J66: 2510000 | S66: Atmos Energy Corporation | T66: 4057157 | V66: ="Capital Structure " &"("&F40&")" -> Capital Structure (2021y)
S67: Avangrid, Inc. | T67: 4057045 | V67: ="Commom Equity -" -> Commom Equity - | X67: =F42 -> 51.11118121
D68: INCOME STATEMENT HIGHLIGHTS ($000) | S68: Avista Corporation | T68: 4057075 | V68: ="Total Preferred -" -> Total Preferred - | X68: =F43 -> 0
C69: 18626 | D69: Energy Operating Revenues | F69: 3407490 | G69: 2821137 | H69: 2901848 | I69: 3115546 | J69: 2759735 | S69: Baltimore Gas and Electric Company | T69: 4007784 | V69: ="Total Debt -" -> Total Debt - | X69: =F44 -> 48.88881879
C70: 18630 | D70: Total Electrical Generation Cost | F70: NA | G70: NA | H70: NA | I70: NA | J70: NA | S70: Berkshire Hathaway Energy Company | T70: 4057049 | V70: Leverage Ratios
C71: 18631 | D71: Gas Cost | F71: 1501695 | G71: 1071227 | H71: 1268591 | I71: 1559836 | J71: 1269456 | S71: Black Hills Corporation | T71: 4010420 | V71: Average Debt/ EBITDA (x) | X71: =IF(ISNUMBER(F52),F52,NA()) -> 4.695811849 | Y71: =IF(ISNUMBER(G52),G52,NA()) -> 3.650047898 | Z71: =IF(ISNUMBER(H52),H52,NA()) -> 3.245205115 | AA71: =IF(ISNUMBER(I52),I52,NA()) -> 3.126987259 | AB71: =IF(ISNUMBER(J52),J52,NA()) -> 3.222783308
C72: 18632 | D72: O&M Expense | F72: 679019 | G72: 629601 | H72: 630308 | I72: 594795 | J72: 538716 | S72: Black Hills Power, Inc. | T72: 4065694
C73: 18636 | D73: Operating DD&A | F73: 477977 | G73: 429828 | H73: 391456 | I73: 361083 | J73: 319448 | S73: Boralex Inc. | T73: 4082886
C74: 18635 | D74: Other Operating Expenses | F74: 0 | G74: 0 | H74: 0 | I74: 0 | J74: 0 | S74: Broadwind, Inc. | T74: 4235589
C75: 18634 | D75: Energy Operating Expenses | F75: 2502492 | G75: 1997038 | H75: 2155790 | I75: 2387612 | J75: 2024107 | S75: Brookfield Renewable Partners L.P. | T75: 4304864
C76: 6200 | D76: EBITDA | F76: 1380830 | G76: 1261098 | H76: 1144918 | I76: 1078873 | J76: 1043909 | S76: Calpine Corporation | T76: 4056958
C77: 28017 | D77: Recurring EBITDA | F77: 1380830 | G77: 1261098 | H77: 1144918 | I77: 1078873 | J77: 1043909 | S77: Canadian Solar Inc. | T77: 4246977
C78: 4424 | D78: Net Income before Taxes | F78: 819299 | G78: 746796 | H78: 650309 | I78: 611144 | J78: 604094 | S78: Canadian Utilities Limited | T78: 4142320
C79: 4427 | D79: Income Taxes | F79: 153736 | G79: 145353 | H79: 138903 | I79: 8080 | J79: 221383 | S79: Capital Power Corporation | T79: 4237697
C80: 4429 | D80: Total Minority Interest Expense | F80: 0 | G80: 0 | H80: 0 | I80: 0 | J80: 0 | S80: Capstone Green Energy Corporation | T80: 4103085
C81: 4430 | D81: Net Income before Extraordinary | F81: 665563 | G81: 601443 | H81: 511406 | I81: 603064 | J81: 382711 | S81: Capstone Infrastructure Corporation | T81: 4166117
C82: 833 | D82: Net Income | F82: 665563 | G82: 601443 | H82: 511406 | I82: 603064 | J82: 396421 | S82: Caribbean Utilities Company, Ltd. | T82: 4276419
C83: 47814 | D83: Net Income Attributable to Noncontrolling Int | F83: 0 | G83: 0 | H83: 0 | I83: 0 | J83: 0 | S83: CenterPoint Energy Houston Electric, LLC | T83: 4057059
C84: 47813 | D84: Net Income Attributable to Parent | F84: 665563 | G84: 601443 | H84: 511406 | I84: 603064 | J84: 396421 | S84: CenterPoint Energy Resources Corp. | T84: 4057141
S85: CenterPoint Energy, Inc. | T85: 4074390
D86: BALANCE SHEET HIGHLIGHTS ($000) | S86: Central Hudson Gas & Electric Corporation | T86: 4057076
C87: 6359 | D87: Total Current Assets | F87: 2838715 | G87: 471258 | H87: 458031 | I87: 478853 | J87: 539646 | S87: Central Maine Power Company | T87: 4056978
C88: 18807 | D88: Net PP&E | F88: 15286416 | G88: 13582493 | H88: 11787669 | I88: 10371147 | J88: 9259182 | S88: CH Energy Group, Inc. | T88: 4057039
C89: 18851 | D89: Long-term Energy Risk-mgmt Asset | F89: 0 | G89: 0 | H89: 0 | I89: 0 | J89: 0 | S89: Chesapeake Utilities Corporation | T89: 4057113
C90: 18823 | D90: Total Noncurrent Investments | F90: 108071 | G90: 103952 | H90: 101883 | I90: 99385 | J90: 88409 | S90: Clearway Energy, Inc. | T90: 4393379
C91: 3706 | D91: Total Intangible Assets | F91: 731257 | G91: 731257 | H91: 730706 | I91: 730419 | J91: 730132 | S91: Cleco Corporate Holdings LLC | T91: 4056937
C92: 220 | D92: Total Assets | F92: 19608662 | G92: 15359032 | H92: 13367619 | I92: 11874437 | J92: 10749596 | S92: Cleco Power LLC | T92: 4056982
C93: 6361 | D93: Total Current Liabilities | F93: 3510355 | G93: 782401 | H93: 1209440 | I93: 1915131 | J93: 1013443 | S93: CMS Energy Corporation | T93: 4004172
C94: 6148 | D94: Non-current Long-term Debt | F94: 5124950 | G94: 4732850 | H94: 3529452 | I94: 2493665 | J94: 3067045 | S94: Commonwealth Edison Company | T94: 4000672
C95: 18082 | D95: Other Liabilities | F95: 81621 | G95: 85916 | H95: 105013 | I95: 79429 | J95: 170478 | S95: Connecticut Natural Gas Corporation | T95: 4059402
C96: 845 | D96: Total Debt | F96: 7563090 | G96: 4768731 | H96: 3994367 | I96: 3644445 | J96: 3514790 | S96: Consolidated Edison Company of New York, Inc. | T96: 4057080
C97: 49691 | D97: Equity Attributable to Parent Company | F97: 7906889 | G97: 6791203 | H97: 5750223 | I97: 4769951 | J97: 3898666 | S97: Consolidated Edison, Inc. | T97: 4057041
C98: 47772 | D98: Non-Controlling Interests | F98: 0 | G98: 0 | H98: 0 | I98: 0 | J98: 0 | S98: Constellation Energy Corporation | T98: 4072145
C99: 3800 | D99: Total Equity | F99: 7906889 | G99: 6791203 | H99: 5750223 | I99: 4769951 | J99: 3898666 | S99: Consumers Energy Company | T99: 4057081
C100: 18081 | D100: Total Mezzanine Level Items | F100: 0 | G100: 0 | H100: 0 | I100: 0 | J100: 0 | S100: Corning Natural Gas Holding Corporation | T100: 4420429
C101: 17860 | D101: Total Capitalization, at Book | F101: 15469979 | G101: 11559934 | H101: 9744590 | I101: 8414396 | J101: 7413456 | S101: Covanta Holding Corporation | T101: 103347
S102: Delmarva Power & Light Company | T102: 4057082
D103: CASH FLOW HIGHLIGHTS ($000) | S103: Dominion Energy South Carolina, Inc. | T103: 4057099
C104: 4991 | D104: Operating Cash Flow | F104: -1084251 | G104: 1037999 | H104: 968769 | I104: 1124662 | J104: 867090 | S104: Dominion Energy, Inc. | T104: 4001616
C105: 4993 | D105: Investing Cash Flow | F105: -1963655 | G105: -1925518 | H105: -1683660 | I105: -1463566 | J105: -1056306 | S105: DPL Inc. | T105: 4057043
C106: 4992 | D106: Financing Cash Flow | F106: 3143821 | G106: 883777 | H106: 725670 | I106: 326266 | J106: 168091 | S106: DTE Electric Company | T106: 4057083
C107: 4994 | D107: Other Cash Flow | F107: 0 | G107: 0 | H107: 0 | I107: 0 | J107: 0 | S107: DTE Energy Company | T107: 4057044
C108: 4995 | D108: Net Increase in Cash | F108: 95915 | G108: -3742 | H108: 10779 | I108: -12638 | J108: -21125 | S108: DTE Gas Company | T108: 4057126
S109: Duke Energy Carolinas, LLC | T109: 4004320
D110: PROFITABILITY RATIOS (%) | S110: Duke Energy Corporation | T110: 4121470
C111: 281 | D111: ROAA | F111: 3.662777313 | G111: 4.135090017 | H111: 4.027384555 | I111: 5.308582238 | J111: 3.791720964 | S111: Duke Energy Florida, LLC | T111: 4056998
C112: 284 | D112: ROAE | F112: 8.828007269 | G112: 9.586422282 | H112: 9.401545952 | I112: 13.12519056 | J112: 10.48981764 | S112: Duke Energy Indiana, LLC | T112: 4062444
C113: 18791 | D113: Return on Capital | F113: 4.746109283 | G113: 5.529507242 | H113: 5.586030108 | I113: 7.56826204 | J113: 5.549475833 | S113: Duke Energy Kentucky, Inc. | T113: 4057103
B114: =COUNT(C:C)-72 -> 5 | S114: Duke Energy Ohio, Inc. | T114: 4057079
B115: =[1]!SNLQUERY("PendingCases",D118:O118) -> SNLQuery | S115: Duke Energy Progress, LLC | T115: 4004192
D116: Pending Rate Cases | J116: Requested | S116: Eastern Energy Gas Holdings, LLC | T116: 4430002
B117: Docket Number | C117: Rate Case OID | D117: State | E117: Company Name | F117: Ultimate Parent Ticker | G117: Docket Number | H117: Service Type | I117: Initial Filing Date (mm/dd/yyyy) | J117: Rate Change Amount ($000) | K117: Rate Change/Revenue (%) | L117: Return on Rate Base (%) | M117: Return on Equity (%) | N117: Equity Ratio (% of Total Capital) | O117: Rate Base ($000) | S117: Edison International | T117: 4056943
D118: 238539 | E118: 238108 | F118: 238112 | G118: =HYPERLINK("http://www.snl.com/interactivex/RateCaseProfile.aspx?ID="&C118,B118) -> 0 | H118: 238116 | I118: 238118 | J118: 238121 | K118: 238122 | L118: 238124 | M118: 238123 | N118: 238125 | O118: 238127 | S118: El Paso Electric Company | T118: 4056994
S119: Emera Incorporated | T119: 4072693
S120: Enbridge Gas Inc. | T120: 13585952
B121: D-22-ATMG-203-TAR (GSRS) | C121: 3913 | D121: KS | E121: Atmos Energy Corporation | H121: Natural Gas | I121: 2021-11-04 | J121: 1829.05 | K121: NA | L121: NA | M121: NA | N121: NA | O121: 35886.643 | S121: Enphase Energy, Inc. | T121: 4990825
B122: D-22-ATMG-299-TAR (SIP) | C122: 3940 | D122: KS | E122: Atmos Energy Corporation | H122: Natural Gas | I122: 2022-01-14 | J122: 622.905 | K122: NA | L122: NA | M122: NA | N122: NA | O122: 5880.503 | S122: Entergy Arkansas, LLC | T122: 4056995
B123: C-2021-00214 | C123: 3824 | D123: KY | E123: Atmos Energy Corporation | H123: Natural Gas | I123: 2021-06-30 | J123: 21798.399 | K123: 12.56 | L123: 7.66 | M123: 10.35 | N123: 57.05 | O123: 596130.007 | S123: Entergy Corporation | T123: 4007889
B124: C-2021-00304 (PRP) | C124: 3868 | D124: KY | E124: Atmos Energy Corporation | H124: Natural Gas | I124: 2021-07-30 | J124: 8101.291 | K124: NA | L124: 7.66 | M124: 10.35 | N124: 57.05 | O124: 67868.665 | S124: Entergy Louisiana, LLC | T124: 4112564
B125: D-22-00010 | C125: 3951 | D125: TN | E125: Atmos Energy Corporation | H125: Natural Gas | I125: 2022-02-01 | J125: 3662.16 | K125: NA | L125: 7.53 | M125: NA | N125: 60.59 | O125: 453913.889 | S125: Entergy Mississippi, LLC | T125: 4008616
S126: Entergy New Orleans, LLC | T126: 4057085
S127: Entergy Texas, Inc. | T127: 4199135
S128: Evergy Kansas Central, Inc. | T128: 4057066
S129: Evergy Metro, Inc. | T129: 4072456
S130: Evergy, Inc. | T130: 8603803
S131: Eversource Energy | T131: 4057052
S132: Exelon Corporation | T132: 4057056
S133: First Solar, Inc. | T133: 4211343
S134: FirstEnergy Corp. | T134: 4056944
S135: FirstEnergy Transmission, LLC | T135: 4346021
S136: Florida Power & Light Company | T136: 4056997
S137: Fortis Inc. | T137: 4082871
S138: FortisAlberta Inc. | T138: 4103468
S139: FortisBC Energy Inc. | T139: 4095656
S140: FortisBC Inc. | T140: 4100140
S141: Georgia Power Company | T141: 4004152
S142: Gulf Power Company | T142: 4057000
S143: Hawaiian Electric Company, Inc. | T143: 4057001
S144: Hawaiian Electric Industries, Inc. | T144: 1031123
S145: IDACORP, Inc. | T145: 4056949
S146: Idaho Power Company | T146: 4057002
S147: Indiana Michigan Power Company | T147: 4057003
S148: Innergex Renewable Energy Inc. | T148: 4215345
S149: Integrys Holding, Inc. | T149: 4057067
S150: Interstate Power and Light Company | T150: 4057087
S151: IPALCO Enterprises, Inc. | T151: 4010657
S152: ITC Holdings Corp. | T152: 4099990
S153: Itron, Inc. | T153: 4092673
S154: Jersey Central Power & Light Company | T154: 4057004
S155: Just Energy Group Inc. | T155: 4302830
S156: Kentucky Power Company | T156: 4057006
S157: Kentucky Utilities Company | T157: 4042397
S158: LG&E and KU Energy LLC | T158: 4057048
S159: Louisville Gas and Electric Company | T159: 4057090
S160: Macquarie Infrastructure Holdings, LLC | T160: 4824125
S161: Madison Gas and Electric Company | T161: 4008754
S162: Maxim Power Corp. | T162: 4100090
S163: MDU Resources Group, Inc. | T163: 4010692
S164: Metropolitan Edison Company | T164: 4057009
S165: MGE Energy, Inc. | T165: 4072883
S166: Michigan Gas Utilities Corporation | T166: 4122218
S167: MidAmerican Energy Company | T167: 4057091
S168: MidAmerican Funding, LLC | T168: 4081927
S169: Mid-Atlantic Interstate Transmission, LLC | T169: 4604463
S170: Minnesota Energy Resources Corporation | T170: 4140737
S171: Mississippi Power Company | T171: 4057010
S172: Monongahela Power Company | T172: 4057011
S173: MYR Group Inc. | T173: 4120398
S174: National Fuel Gas Company | T174: 4010821
S175: Net Zero Renewable Energy Inc. | T175: 4560041
S176: Nevada Power Company | T176: 4061726
S177: New Jersey Natural Gas Company | T177: 4061755
S178: New Jersey Resources Corporation | T178: 4057128
S179: New York State Electric & Gas Corporation | T179: 4004389
S180: Newfoundland Power Inc. | T180: 4099655
S181: NextEra Energy Partners, LP | T181: 4550347
S182: NextEra Energy Resources, LLC | T182: 4060103
S183: NextEra Energy, Inc. | T183: 3010401
S184: NiSource Inc. | T184: 4057051
S185: North Shore Gas Company | T185: 4057130
S186: Northern States Power Company | T186: 4057754
S187: Northern States Power Company | T187: 4061925
S188: Northland Power Inc. | T188: 4156778
S189: Northwest Natural Gas Company | T189: 10344596
S190: Northwest Natural Holding Company | T190: 4057132
S191: NorthWestern Corporation | T191: 4057053
S192: Nova Scotia Power Inc. | T192: 4061963
S193: NRG Energy, Inc. | T193: 4057436
S194: NSTAR Electric Company | T194: 4008369
S195: Ocean Power Technologies, Inc. | T195: 4153733
S196: OGE Energy Corp. | T196: 4057055
S197: Ohio Edison Company | T197: 4014480
S198: Ohio Power Company | T198: 4057015
S199: Oklahoma Gas and Electric Company | T199: 4057016
S200: Oncor Electric Delivery Company LLC | T200: 4080589
S201: ONE Gas, Inc. | T201: 4427129
S202: Orange and Rockland Utilities, Inc. | T202: 4057093
S203: Ormat Technologies, Inc. | T203: 4087066
S204: Otter Tail Corporation | T204: 4057017
S205: Pacific Gas and Electric Company | T205: 4004218
... 88 more rows

Sheet CPK
G2: Utility Financial Profile
D3: Core functionality: | K3: Contact:
D4: This template allows users to look at SEC Financial Data and Ratios for a selected Company. | K4: Please contact Market Intelligence Support with any questions or comments:
D5: Settings: | K5: phone: | L5: +1 (888) 275 2822 (US & Canada)
D6: 1) Select MI Office Add-In manual refresh option. | L6: +44 20 7283 8887 (Europe, Middle East & Africa)
D7: 2) Enable macros while opening the template. | L7: +1 (434) 951-7788 (Latin America)
D8: 3) For best performance, save this file to your computer, close and then reopen. | L8: +852-3177-3727 (Asia-Pacific)
D9: Instructions: | K9: email: | L9: support.MI@spglobal.com
D10: Step 1: Select company in cell G10. | G10: Chesapeake Utilities Corporation | K10: Disclaimer: Copyright © 2019 S&P Global Market Intelligence LLC (and its affiliates as applicable) – All rights reserved. This model and/or any data in it are provided subject to the written agreement of S&P Global Market Intelligence LLC governing the subscription service to which this model is applied.
D12: Step 2: Enter period in Cell G12. | G12: 2021Y
D13: (Format: yyyyY/yyyyQq, 2008Y/2009Q1)
D14: Step 3: Click "REFRESH" button. | K14: Note :
K15: If you receive a pop up message "there were no results for your query", Click OK.
D17: =IF(X56="","",X56) -> Chesapeake Utilities Corporation
D18: ="Industry : " & X55 -> Industry : Power
C20: =[1]!SNLTable(1,CPK!F20:G20,CPK!C24:C35,CPK!F21:G21,,"Options:Curr=USD,Mag=SNLstandard,ConvMethod=SNLrecommended") -> SNLTable | F20: =VLOOKUP(V40,S:T,2,FALSE) -> 4057113 | G20: =F20 -> 4057113
F21: 3000325 | G21: 108462
D23: CREDIT RATINGS | F23: S&P | G23: Moody's
C24: 44941 | D24: LT Issuer Rating | V24: =SUBSTITUTE(Company_Name,"&","&amp;") -> Chesapeake Utilities Corporation
C25: 44942 | D25: Direction
C26: 44944 | D26: Date
C27: 44949 | D27: Senior Unsecured Rating
C28: 44950 | D28: Direction
C29: 44952 | D29: Date
C30: 44965 | D30: Senior Secured Rating | S30: Intermediate Calculations:
C31: 44966 | D31: Direction | S31: Please do not Edit or Delete Cells in this portion.
C32: 44968 | D32: Date
C33: 44945 | D33: Short-Term/ CP Rating
C34: 44946 | D34: Direction
C35: 44948 | D35: Date
C36: =[1]!SNLTable(1,CPK!F36:J36,CPK!C41:C113,CPK!F37:J37,,"Options:Curr=USD,Mag=SNLstandard,ConvMethod=SNLrecommended") -> SNLTable | F36: =F20 -> 4057113 | G36: =F20 -> 4057113 | H36: =F20 -> 4057113 | I36: =F20 -> 4057113 | J36: =F20 -> 4057113
F37: =IF(RIGHT(G12,1)="Y",G12,REPLACE(G12,5,1,"L")) -> 2021Y | G37: =LEFT(F37,4)-1 & "Y" -> 2020Y | H37: =LEFT(G37,4)-1&"Y" -> 2019Y | I37: =LEFT(H37,4)-1&"Y" -> 2018Y | J37: =LEFT(I37,4)-1&"Y" -> 2017Y
F38: 1 | G38: 1 | H38: 1 | I38: 1 | J38: 1
S39: =[1]!SNLQUERY("Company_Listed") -> SNLQuery
D40: CREDIT RATIOS | F40: =IF(RIGHT(G12,1)="Y",G12,"LTM") -> 2021Y | G40: =G37 -> 2020Y | H40: =H37 -> 2019Y | I40: =I37 -> 2018Y | J40: =J37 -> 2017Y | S40: Advanced Energy Industries, Inc. | T40: 4306705 | V40: =G10 -> Chesapeake Utilities Corporation
C41: 151 | D41: Period End Date | F41: 2021-12-31 | G41: 2020-12-31 | H41: 2019-12-31 | I41: 2018-12-31 | J41: 2017-12-31 | S41: AEP Generating Company | T41: 4056954 | V41: ="Debt Maturity Schedule ($000)" & " ("&X43& ")" -> Debt Maturity Schedule ($000) (2021Y)
C42: 18857 | D42: Common Equity/ Total Capital (%) | F42: 49.1762144 | G42: 49.56354559 | H42: 42.98933567 | I42: 45.44314249 | J42: 51.50988424 | S42: AEP Texas Inc. | T42: 4056935 | V42: =[1]!SNLTable(1,CPK!X42,CPK!W48:W56,CPK!X43,,"Options:Curr=USD,Mag=SNLstandard,ConvMethod=SNLrecommended") -> SNLTable | X42: =F36 -> 4057113
C43: 18869 | D43: Total Preferred/ Total Capital (%) | F43: 0 | G43: 0 | H43: 0 | I43: 0 | J43: 0 | S43: AEP Transmission Company, LLC | T43: 4341449 | X43: =IF(OR(RIGHT(G12,1)="Y",RIGHT(G12,1)="4"),LEFT(G12,4)&"Y",G37) -> 2021Y
C44: 17861 | D44: Debt/ Total Capital (%) | F44: 50.8237856 | G44: 50.43645441 | H44: 57.01066433 | I44: 54.55685751 | J44: 48.49011576 | S44: AES Indiana | T44: 4024697 | X44: 1
C45: 18861 | D45: Long-term Debt/ Total Capital (%) | F45: 35.47677672 | G45: 36.85677455 | H45: 34.45289313 | I45: 27.70035026 | J45: 20.90873751 | S45: AES Ohio | T45: 4017451
S46: Alabama Power Company | T46: 4014956
C47: 18768 | D47: Pre-Tax Interest Coverage (x) | F47: 6.511646387 | G47: 5.179094877 | H47: 4.782442405 | I47: 5.874148396 | J47: 6.584318747 | S47: Algonquin Power & Utilities Corp. | T47: 4142273
C48: 18778 | D48: Pre-Tax Int Coverage + Pref Divs (x) | F48: 6.511646387 | G48: 5.179094877 | H48: 4.782442405 | I48: 5.874148396 | J48: 6.584318747 | S48: Allegheny Generating Company | T48: 4056955 | V48: Current Year | W48: 7597 | X48: 239596
C49: 7270 | D49: EBITDA/ Interest Expense (x) | F49: 10.21713434 | G49: 8.438364346 | H49: 7.158477322 | I49: 8.89223337 | J49: 10.26484777 | S49: ALLETE, Inc. | T49: 4022309 | V49: Next Year | W49: 7598 | X49: 21483
C50: 11512 | D50: Rec EBITDA / (Int Exp + Prf Div) (x) | F50: 10.21713434 | G50: 8.432391454 | H50: 7.15262779 | I50: 8.884181841 | J50: 10.25456702 | S50: Alliant Energy Corporation | T50: 4057038 | V50: 2Yrs Out | W50: 7599 | X50: 18505
S51: AltaGas Ltd. | T51: 4135391 | V51: 3Yrs Out | W51: 7600 | X51: 25528
C52: 18788 | D52: Average Debt/ EBITDA (x) | F52: 3.474837402 | G52: 4.023897289 | H52: 4.216788453 | I52: 3.494668255 | J52: 2.950952049 | S52: AltaLink, L.P. | T52: 4097358 | V52: 4Yrs Out | W52: 7601 | X52: 34551
C53: 18794 | D53: Cash Flow Int + Pref Coverage (x) | F53: 8.702557735 | G53: 7.907328279 | H53: 6.111366091 | I53: 7.409637062 | J53: 10.05947015 | S53: Ameren Corporation | T53: 4007308 | V53: Thereafter | W53: 7602 | X53: 449836
C54: 18792 | D54: Cash Flow/ Avg Total Debt (%) | F54: 21.6955853 | G54: 20.34252868 | H54: 16.93302385 | I54: 20.62607687 | J54: 29.74305253 | S54: Ameren Illinois Company | T54: 4272394 | V54: Other
C55: 11576 | D55: Cash Interest Coverage (x) | F55: 8.474745468 | G55: 8.301447278 | H55: 5.633009359 | I55: 8.268797225 | J55: 9.706128905 | S55: American Electric Power Company, Inc. | T55: 4006321 | V55: Industry Type | W55: 6252 | X55: Power
S56: American Superconductor Corporation | T56: 4991374 | V56: Company Name | W56: 9 | X56: Chesapeake Utilities Corporation
C57: 6419 | D57: Current Ratio (x) | F57: 0.4599357655 | G57: 0.4146435605 | H57: 0.3184936361 | I57: 0.3625987725 | J57: 0.4324140436 | S57: American Transmission Systems, Incorporated | T57: 4076262
C58: 4963 | D58: Total Debt/ Total Equity (x) | F58: 1.033503417 | G58: 1.017611912 | H58: 1.326158301 | I58: 1.200552042 | J58: 0.9413749707 | S58: Amtech Systems, Inc. | T58: 4963960 | V58: Chart Data
S59: Appalachian Power Company | T59: 4056972 | V59: EBITDA & Interest Coverage Chart
D60: DEBT MATURITY SCHEDULE ($000) | S60: Arizona Public Service Company | T60: 4056974 | V60: EBITDA ($000)
C61: 7597 | D61: Debt Maturing-Current FY | F61: 239596 | G61: 189244 | H61: 292971 | I61: 306393 | J61: 260390 | S61: Ascent Solar Technologies, Inc. | T61: 4229719 | V61: EBITDA/ Interest Expense (x) | X61: =IF(ISNUMBER(F49),F49,NA()) -> 10.21713434 | Y61: =IF(ISNUMBER(G49),G49,NA()) -> 8.438364346 | Z61: =IF(ISNUMBER(H49),H49,NA()) -> 7.158477322 | AA61: =IF(ISNUMBER(I49),I49,NA()) -> 8.89223337 | AB61: =IF(ISNUMBER(J49),J49,NA()) -> 10.26484777
C62: 7598 | D62: Debt Maturing-Next FY | F62: 21483 | G62: 17100 | H62: 13600 | I62: 45600 | J62: 10600 | S62: ATCO Ltd. | T62: 4086899 | V62: Liquidity
C63: 7599 | D63: Debt Maturing-FY2 | F63: 18505 | G63: 20600 | H63: 25100 | I63: 13600 | J63: 15600 | S63: Atlantic City Electric Company | T63: 4056975 | V63: Current Assets ($000)
C64: 7600 | D64: Debt Maturing-FY3 | F64: 25528 | G64: 17600 | H64: 20600 | I64: 25100 | J64: 13600 | S64: Atlantic Power Corporation | T64: 4098671 | V64: Current Liabilities ($000)
C65: 7601 | D65: Debt Maturing-FY4 | F65: 34551 | G65: 24600 | H65: 17600 | I65: 20600 | J65: 25100 | S65: Atlantica Sustainable Infrastructure plc | T65: 4545218 | V65: Current Ratio (x) | X65: =IF(ISNUMBER(F57),F57,NA()) -> 0.4599357655 | Y65: =IF(ISNUMBER(G57),G57,NA()) -> 0.4146435605 | Z65: =IF(ISNUMBER(H57),H57,NA()) -> 0.3184936361 | AA65: =IF(ISNUMBER(I57),I57,NA()) -> 0.3625987725 | AB65: =IF(ISNUMBER(J57),J57,NA()) -> 0.4324140436
C66: 7602 | D66: Debt Maturing-Thereafter | F66: 449836 | G66: 428599 | H66: 363268 | I66: 211120 | J66: 132495 | S66: Atmos Energy Corporation | T66: 4057157 | V66: ="Capital Structure " &"("&F40&")" -> Capital Structure (2021Y)
S67: Avangrid, Inc. | T67: 4057045 | V67: ="Commom Equity -" -> Commom Equity - | X67: =F42 -> 49.1762144
D68: INCOME STATEMENT HIGHLIGHTS ($000) | S68: Avista Corporation | T68: 4057075 | V68: ="Total Preferred -" -> Total Preferred - | X68: =F43 -> 0
C69: 18626 | D69: Energy Operating Revenues | F69: 569968 | G69: 488198 | H69: 479605 | I69: 490316 | J69: 617583 | S69: Baltimore Gas and Electric Company | T69: 4007784 | V69: ="Total Debt -" -> Total Debt - | X69: =F44 -> 50.8237856
C70: 18630 | D70: Total Electrical Generation Cost | F70: NA | G70: NA | H70: NA | I70: NA | J70: NA | S70: Berkshire Hathaway Energy Company | T70: 4057049 | V70: Leverage Ratios
C71: 18631 | D71: Gas Cost | F71: NA | G71: NA | H71: NA | I71: NA | J71: NA | S71: Black Hills Corporation | T71: 4010420 | V71: Average Debt/ EBITDA (x) | X71: =IF(ISNUMBER(F52),F52,NA()) -> 3.474837402 | Y71: =IF(ISNUMBER(G52),G52,NA()) -> 4.023897289 | Z71: =IF(ISNUMBER(H52),H52,NA()) -> 4.216788453 | AA71: =IF(ISNUMBER(I52),I52,NA()) -> 3.494668255 | AB71: =IF(ISNUMBER(J52),J52,NA()) -> 2.950952049
C72: 18632 | D72: O&M Expense | F72: 165087 | G72: 157642 | H72: 153524 | I72: 146910 | J72: 138695 | S72: Black Hills Power, Inc. | T72: 4065694
C73: 18636 | D73: Operating DD&A | F73: 62661 | G73: 58117 | H73: 45424 | I73: 40220 | J73: 36599 | S73: Boralex Inc. | T73: 4082886
C74: 18635 | D74: Other Operating Expenses | F74: 186950 | G74: 137938 | H74: 154501 | I74: 190169 | J74: 337914 | S74: Broadwind, Inc. | T74: 4235589
C75: 18634 | D75: Energy Operating Expenses | F75: 438856 | G75: 375605 | H75: 373450 | I75: 395602 | J75: 530293 | S75: Brookfield Renewable Partners L.P. | T75: 4304864
C76: 6200 | D76: EBITDA | F76: 205722 | G76: 183661 | H76: 159090 | I76: 143574 | J76: 129799 | S76: Calpine Corporation | T76: 4056958
C77: 28017 | D77: Recurring EBITDA | F77: 205722 | G77: 183531 | H77: 158960 | I77: 143444 | J77: 129669 | S77: Canadian Solar Inc. | T77: 4246977
C78: 4424 | D78: Net Income before Taxes | F78: 112698 | G78: 94180 | H78: 82214 | I78: 78091 | J78: 72433 | S78: Canadian Utilities Limited | T78: 4142320
C79: 4427 | D79: Income Taxes | F79: 29231 | G79: 23538 | H79: 21114 | I79: 21123 | J79: 14309 | S79: Capital Power Corporation | T79: 4237697
C80: 4429 | D80: Total Minority Interest Expense | F80: 0 | G80: 0 | H80: 0 | I80: 0 | J80: 0 | S80: Capstone Green Energy Corporation | T80: 4103085
C81: 4430 | D81: Net Income before Extraordinary | F81: 83467 | G81: 70642 | H81: 61100 | I81: 56968 | J81: 58124 | S81: Capstone Infrastructure Corporation | T81: 4166117
C82: 833 | D82: Net Income | F82: 83466 | G82: 71498 | H82: 65153 | I82: 56580 | J82: 58124 | S82: Caribbean Utilities Company, Ltd. | T82: 4276419
C83: 47814 | D83: Net Income Attributable to Noncontrolling Int | F83: 0 | G83: 0 | H83: 0 | I83: 0 | J83: 0 | S83: CenterPoint Energy Houston Electric, LLC | T83: 4057059
C84: 47813 | D84: Net Income Attributable to Parent | F84: 83466 | G84: 71498 | H84: 65153 | I84: 56580 | J84: 58124 | S84: CenterPoint Energy Resources Corp. | T84: 4057141
S85: CenterPoint Energy, Inc. | T85: 4074390
D86: BALANCE SHEET HIGHLIGHTS ($000) | S86: Central Hudson Gas & Electric Corporation | T86: 4057076
C87: 6359 | D87: Total Current Assets | F87: 173135 | G87: 136431 | H87: 134826 | I87: 191537 | J87: 178587 | S87: Central Maine Power Company | T87: 4056978
C88: 18807 | D88: Net PP&E | F88: 1755017 | G88: 1612372 | H88: 1475360 | I88: 1353520 | J88: 1126027 | S88: CH Energy Group, Inc. | T88: 4057039
C89: 18851 | D89: Long-term Energy Risk-mgmt Asset | F89: 0 | G89: 0 | H89: 0 | I89: 0 | J89: 0 | S89: Chesapeake Utilities Corporation | T89: 4057113
C90: 18823 | D90: Total Noncurrent Investments | F90: 12095 | G90: 10776 | H90: 9229 | I90: 6711 | J90: 6756 | S90: Clearway Energy, Inc. | T90: 4393379
C91: 3706 | D91: Total Intangible Assets | F91: 57900 | G91: 47023 | H91: 40797 | I91: 25418 | J91: 24290 | S91: Cleco Corporate Holdings LLC | T91: 4056937
C92: 220 | D92: Total Assets | F92: 2114869 | G92: 1932487 | H92: 1783198 | I92: 1693671 | J92: 1414934 | S92: Cleco Power LLC | T92: 4056982
C93: 6361 | D93: Total Current Liabilities | F93: 376433 | G93: 329032 | H93: 423324 | I93: 528234 | J93: 413000 | S93: CMS Energy Corporation | T93: 4004172
C94: 6148 | D94: Non-current Long-term Debt | F94: 558474 | G94: 518371 | H94: 450064 | I94: 316020 | J94: 197395 | S94: Commonwealth Edison Company | T94: 4000672
C95: 18082 | D95: Other Liabilities | F95: 5674 | G95: 9202 | H95: 9264 | I95: 10606 | J95: 11718 | S95: Connecticut Natural Gas Corporation | T95: 4059402
C96: 845 | D96: Total Debt | F96: 800066 | G96: 709362 | H96: 744740 | I96: 622413 | J96: 457785 | S96: Consolidated Edison Company of New York, Inc. | T96: 4057080
C97: 49691 | D97: Equity Attributable to Parent Company | F97: 774130 | G97: 697085 | H97: 561577 | I97: 518439 | J97: 486294 | S97: Consolidated Edison, Inc. | T97: 4057041
C98: 47772 | D98: Non-Controlling Interests | F98: 0 | G98: 0 | H98: 0 | I98: 0 | J98: 0 | S98: Constellation Energy Corporation | T98: 4072145
C99: 3800 | D99: Total Equity | F99: 774130 | G99: 697085 | H99: 561577 | I99: 518439 | J99: 486294 | S99: Consumers Energy Company | T99: 4057081
C100: 18081 | D100: Total Mezzanine Level Items | F100: 0 | G100: 0 | H100: 0 | I100: 0 | J100: 0 | S100: Corning Natural Gas Holding Corporation | T100: 4420429
C101: 17860 | D101: Total Capitalization, at Book | F101: 1574196 | G101: 1406447 | H101: 1306317 | I101: 1140852 | J101: 944079 | S101: Covanta Holding Corporation | T101: 103347
S102: Delmarva Power & Light Company | T102: 4057082
D103: CASH FLOW HIGHLIGHTS ($000) | S103: Dominion Energy South Carolina, Inc. | T103: 4057099
C104: 4991 | D104: Operating Cash Flow | F104: 150504 | G104: 158916 | H104: 102964 | I104: 117362 | J104: 110089 | S104: Dominion Energy, Inc. | T104: 4001616
C105: 4993 | D105: Investing Cash Flow | F105: -223023 | G105: -181631 | H105: -186587 | I105: -256848 | J105: -186895 | S105: DPL Inc. | T105: 4057043
C106: 4992 | D106: Financing Cash Flow | F106: 73996 | G106: 19229 | H106: 84519 | I106: 139961 | J106: 78242 | S106: DTE Electric Company | T106: 4057083
C107: 4994 | D107: Other Cash Flow | F107: 0 | G107: 0 | H107: 0 | I107: 0 | J107: 0 | S107: DTE Energy Company | T107: 4057044
C108: 4995 | D108: Net Increase in Cash | F108: 1477 | G108: -3486 | H108: 896 | I108: 475 | J108: 1436 | S108: DTE Gas Company | T108: 4057126
S109: Duke Energy Carolinas, LLC | T109: 4004320
D110: PROFITABILITY RATIOS (%) | S110: Duke Energy Corporation | T110: 4121470
C111: 281 | D111: ROAA | F111: 4.188065023 | G111: 3.887702344 | H111: 3.82324483 | I111: 3.803537986 | J111: 4.502136906 | S111: Duke Energy Florida, LLC | T111: 4056998
C112: 284 | D112: ROAE | F112: 11.30010393 | G112: 11.80113946 | H112: 11.99450285 | I112: 11.18241763 | J112: 12.55027619 | S112: Duke Energy Indiana, LLC | T112: 4062444
C113: 18791 | D113: Return on Capital | F113: 5.74249042 | G113: 5.316272207 | H113: 5.366629892 | I113: 5.614675062 | J113: 6.869151057 | S113: Duke Energy Kentucky, Inc. | T113: 4057103
B114: =COUNT(C:C)-72 -> 5 | S114: Duke Energy Ohio, Inc. | T114: 4057079
B115: =[1]!SNLQUERY("PendingCases",D118:O118) -> SNLQuery | S115: Duke Energy Progress, LLC | T115: 4004192
D116: Pending Rate Cases | J116: Requested | S116: Eastern Energy Gas Holdings, LLC | T116: 4430002
B117: Docket Number | C117: Rate Case OID | D117: State | E117: Company Name | F117: Ultimate Parent Ticker | G117: Docket Number | H117: Service Type | I117: Initial Filing Date (mm/dd/yyyy) | J117: Rate Change Amount ($000) | K117: Rate Change/Revenue (%) | L117: Return on Rate Base (%) | M117: Return on Equity (%) | N117: Equity Ratio (% of Total Capital) | O117: Rate Base ($000) | S117: Edison International | T117: 4056943
D118: 238539 | E118: 238108 | F118: 238112 | G118: =HYPERLINK("http://www.snl.com/interactivex/RateCaseProfile.aspx?ID="&C118,B118) -> 0 | H118: 238116 | I118: 238118 | J118: 238121 | K118: 238122 | L118: 238124 | M118: 238123 | N118: 238125 | O118: 238127 | S118: El Paso Electric Company | T118: 4056994
D119: PENDING RATE CASES | J119: REQUESTED | S119: Emera Incorporated | T119: 4072693
B120: Docket Number | C120: Rate Case OID | D120: State | E120: Company Name | F120: Ultimate Parent Ticker | G120: Docket Number | H120: Service Type | I120: Initial Filing Date (mm/dd/yyyy) | J120: Rate Change Amount ($000) | K120: Rate Change/Revenue (%) | L120: Return on Rate Base (%) | M120: Return on Equity (%) | N120: Equity Ratio (% of Total Capital) | O120: Rate Base ($000) | S120: Enbridge Gas Inc. | T120: 13585952
B121: D-22-ATMG-203-TAR (GSRS) | C121: 3913 | D121: KS | E121: Atmos Energy Corporation | G121: =HYPERLINK("http://www.snl.com/interactivex/RateCaseProfile.aspx?ID="&C121,B121) -> D-22-ATMG-203-TAR (GSRS) | H121: Natural Gas | I121: 2021-11-04 | J121: 1829.05 | K121: NA | L121: NA | M121: NA | N121: NA | O121: 35886.643 | S121: Enphase Energy, Inc. | T121: 4990825
B122: D-22-ATMG-299-TAR (SIP) | C122: 3940 | D122: KS | E122: Atmos Energy Corporation | H122: Natural Gas | I122: 2022-01-14 | J122: 622.905 | K122: NA | L122: NA | M122: NA | N122: NA | O122: 5880.503 | S122: Entergy Arkansas, LLC | T122: 4056995
B123: C-2021-00214 | C123: 3824 | D123: KY | E123: Atmos Energy Corporation | H123: Natural Gas | I123: 2021-06-30 | J123: 21798.399 | K123: 12.56 | L123: 7.66 | M123: 10.35 | N123: 57.05 | O123: 596130.007 | S123: Entergy Corporation | T123: 4007889
B124: C-2021-00304 (PRP) | C124: 3868 | D124: KY | E124: Atmos Energy Corporation | H124: Natural Gas | I124: 2021-07-30 | J124: 8101.291 | K124: NA | L124: 7.66 | M124: 10.35 | N124: 57.05 | O124: 67868.665 | S124: Entergy Louisiana, LLC | T124: 4112564
B125: D-22-00010 | C125: 3951 | D125: TN | E125: Atmos Energy Corporation | H125: Natural Gas | I125: 2022-02-01 | J125: 3662.16 | K125: NA | L125: 7.53 | M125: NA | N125: 60.59 | O125: 453913.889 | S125: Entergy Mississippi, LLC | T125: 4008616
S126: Entergy New Orleans, LLC | T126: 4057085
S127: Entergy Texas, Inc. | T127: 4199135
S128: Evergy Kansas Central, Inc. | T128: 4057066
S129: Evergy Metro, Inc. | T129: 4072456
S130: Evergy, Inc. | T130: 8603803
S131: Eversource Energy | T131: 4057052
S132: Exelon Corporation | T132: 4057056
S133: First Solar, Inc. | T133: 4211343
S134: FirstEnergy Corp. | T134: 4056944
S135: FirstEnergy Transmission, LLC | T135: 4346021
S136: Florida Power & Light Company | T136: 4056997
S137: Fortis Inc. | T137: 4082871
S138: FortisAlberta Inc. | T138: 4103468
S139: FortisBC Energy Inc. | T139: 4095656
S140: FortisBC Inc. | T140: 4100140
S141: Georgia Power Company | T141: 4004152
S142: Gulf Power Company | T142: 4057000
S143: Hawaiian Electric Company, Inc. | T143: 4057001
S144: Hawaiian Electric Industries, Inc. | T144: 1031123
S145: IDACORP, Inc. | T145: 4056949
S146: Idaho Power Company | T146: 4057002
S147: Indiana Michigan Power Company | T147: 4057003
S148: Innergex Renewable Energy Inc. | T148: 4215345
S149: Integrys Holding, Inc. | T149: 4057067
S150: Interstate Power and Light Company | T150: 4057087
S151: IPALCO Enterprises, Inc. | T151: 4010657
S152: ITC Holdings Corp. | T152: 4099990
S153: Itron, Inc. | T153: 4092673
S154: Jersey Central Power & Light Company | T154: 4057004
S155: Just Energy Group Inc. | T155: 4302830
S156: Kentucky Power Company | T156: 4057006
S157: Kentucky Utilities Company | T157: 4042397
S158: LG&E and KU Energy LLC | T158: 4057048
S159: Louisville Gas and Electric Company | T159: 4057090
S160: Macquarie Infrastructure Holdings, LLC | T160: 4824125
S161: Madison Gas and Electric Company | T161: 4008754
S162: Maxim Power Corp. | T162: 4100090
S163: MDU Resources Group, Inc. | T163: 4010692
S164: Metropolitan Edison Company | T164: 4057009
S165: MGE Energy, Inc. | T165: 4072883
S166: Michigan Gas Utilities Corporation | T166: 4122218
S167: MidAmerican Energy Company | T167: 4057091
S168: MidAmerican Funding, LLC | T168: 4081927
S169: Mid-Atlantic Interstate Transmission, LLC | T169: 4604463
S170: Minnesota Energy Resources Corporation | T170: 4140737
S171: Mississippi Power Company | T171: 4057010
S172: Monongahela Power Company | T172: 4057011
S173: MYR Group Inc. | T173: 4120398
S174: National Fuel Gas Company | T174: 4010821
S175: Net Zero Renewable Energy Inc. | T175: 4560041
S176: Nevada Power Company | T176: 4061726
S177: New Jersey Natural Gas Company | T177: 4061755
S178: New Jersey Resources Corporation | T178: 4057128
S179: New York State Electric & Gas Corporation | T179: 4004389
S180: Newfoundland Power Inc. | T180: 4099655
S181: NextEra Energy Partners, LP | T181: 4550347
S182: NextEra Energy Resources, LLC | T182: 4060103
S183: NextEra Energy, Inc. | T183: 3010401
S184: NiSource Inc. | T184: 4057051
S185: North Shore Gas Company | T185: 4057130
S186: Northern States Power Company | T186: 4057754
S187: Northern States Power Company | T187: 4061925
S188: Northland Power Inc. | T188: 4156778
S189: Northwest Natural Gas Company | T189: 10344596
S190: Northwest Natural Holding Company | T190: 4057132
S191: NorthWestern Corporation | T191: 4057053
S192: Nova Scotia Power Inc. | T192: 4061963
S193: NRG Energy, Inc. | T193: 4057436
S194: NSTAR Electric Company | T194: 4008369
S195: Ocean Power Technologies, Inc. | T195: 4153733
S196: OGE Energy Corp. | T196: 4057055
S197: Ohio Edison Company | T197: 4014480
S198: Ohio Power Company | T198: 4057015
S199: Oklahoma Gas and Electric Company | T199: 4057016
S200: Oncor Electric Delivery Company LLC | T200: 4080589
S201: ONE Gas, Inc. | T201: 4427129
S202: Orange and Rockland Utilities, Inc. | T202: 4057093
S203: Ormat Technologies, Inc. | T203: 4087066
S204: Otter Tail Corporation | T204: 4057017
S205: Pacific Gas and Electric Company | T205: 4004218
... 88 more rows

Sheet NJR
G2: Utility Financial Profile
D3: Core functionality: | K3: Contact:
D4: This template allows users to look at SEC Financial Data and Ratios for a selected Company. | K4: Please contact Market Intelligence Support with any questions or comments:
D5: Settings: | K5: phone: | L5: +1 (888) 275 2822 (US & Canada)
D6: 1) Select MI Office Add-In manual refresh option. | L6: +44 20 7283 8887 (Europe, Middle East & Africa)
D7: 2) Enable macros while opening the template. | L7: +1 (434) 951-7788 (Latin America)
D8: 3) For best performance, save this file to your computer, close and then reopen. | L8: +852-3177-3727 (Asia-Pacific)
D9: Instructions: | K9: email: | L9: support.MI@spglobal.com
D10: Step 1: Select company in cell G10. | G10: New Jersey Resources Corporation | K10: Disclaimer: Copyright © 2019 S&P Global Market Intelligence LLC (and its affiliates as applicable) – All rights reserved. This model and/or any data in it are provided subject to the written agreement of S&P Global Market Intelligence LLC governing the subscription service to which this model is applied.
D12: Step 2: Enter period in Cell G12. | G12: 2021Y
D13: (Format: yyyyY/yyyyQq, 2008Y/2009Q1)
D14: Step 3: Click "REFRESH" button. | K14: Note :
K15: If you receive a pop up message "there were no results for your query", Click OK.
D17: =IF(X56="","",X56) -> New Jersey Resources Corporation
D18: ="Industry : " & X55 -> Industry : Gas Utility
C20: =[1]!SNLTable(1,NJR!F20:G20,NJR!C24:C35,NJR!F21:G21,,"Options:Curr=USD,Mag=SNLstandard,ConvMethod=SNLrecommended") -> SNLTable | F20: =VLOOKUP(V40,S:T,2,FALSE) -> 4057128 | G20: =F20 -> 4057128
F21: 3000325 | G21: 108462
D23: CREDIT RATINGS | F23: S&P | G23: Moody's
C24: 44941 | D24: LT Issuer Rating | V24: =SUBSTITUTE(Company_Name,"&","&amp;") -> New Jersey Resources Corporation
C25: 44942 | D25: Direction
C26: 44944 | D26: Date
C27: 44949 | D27: Senior Unsecured Rating
C28: 44950 | D28: Direction
C29: 44952 | D29: Date
C30: 44965 | D30: Senior Secured Rating | S30: Intermediate Calculations:
C31: 44966 | D31: Direction | S31: Please do not Edit or Delete Cells in this portion.
C32: 44968 | D32: Date
C33: 44945 | D33: Short-Term/ CP Rating
C34: 44946 | D34: Direction
C35: 44948 | D35: Date
C36: =[1]!SNLTable(1,NJR!F36:J36,NJR!C41:C113,NJR!F37:J37,,"Options:Curr=USD,Mag=SNLstandard,ConvMethod=SNLrecommended") -> SNLTable | F36: =F20 -> 4057128 | G36: =F20 -> 4057128 | H36: =F20 -> 4057128 | I36: =F20 -> 4057128 | J36: =F20 -> 4057128
F37: =IF(RIGHT(G12,1)="Y",G12,REPLACE(G12,5,1,"L")) -> 2021Y | G37: =LEFT(F37,4)-1 & "Y" -> 2020Y | H37: =LEFT(G37,4)-1&"Y" -> 2019Y | I37: =LEFT(H37,4)-1&"Y" -> 2018Y | J37: =LEFT(I37,4)-1&"Y" -> 2017Y
F38: 1 | G38: 1 | H38: 1 | I38: 1 | J38: 1
S39: =[1]!SNLQUERY("Company_Listed") -> SNLQuery
D40: CREDIT RATIOS | F40: =IF(RIGHT(G12,1)="Y",G12,"LTM") -> 2021Y | G40: =G37 -> 2020Y | H40: =H37 -> 2019Y | I40: =I37 -> 2018Y | J40: =J37 -> 2017Y | S40: Advanced Energy Industries, Inc. | T40: 4306705 | V40: =G10 -> New Jersey Resources Corporation
C41: 151 | D41: Period End Date | F41: 2021-09-30 | G41: 2020-09-30 | H41: 2019-09-30 | I41: 2018-09-30 | J41: 2017-09-30 | S41: AEP Generating Company | T41: 4056954 | V41: ="Debt Maturity Schedule ($000)" & " ("&X43& ")" -> Debt Maturity Schedule ($000) (2021Y)
C42: 18857 | D42: Common Equity/ Total Capital (%) | F42: 37.15938807 | G42: 39.53857203 | H42: 49.48451143 | I42: 49.35417719 | J42: 46.40140813 | S42: AEP Texas Inc. | T42: 4056935 | V42: =[1]!SNLTable(1,NJR!X42,NJR!W48:W56,NJR!X43,,"Options:Curr=USD,Mag=SNLstandard,ConvMethod=SNLrecommended") -> SNLTable | X42: =F36 -> 4057128
C43: 18869 | D43: Total Preferred/ Total Capital (%) | F43: 0 | G43: 0 | H43: 0 | I43: 0 | J43: 0 | S43: AEP Transmission Company, LLC | T43: 4341449 | X43: =IF(OR(RIGHT(G12,1)="Y",RIGHT(G12,1)="4"),LEFT(G12,4)&"Y",G37) -> 2021Y
C44: 17861 | D44: Debt/ Total Capital (%) | F44: 62.84061193 | G44: 60.46142797 | H44: 50.51548857 | I44: 50.64582281 | J44: 53.59859187 | S44: AES Indiana | T44: 4024697 | X44: 1
C45: 18861 | D45: Long-term Debt/ Total Capital (%) | F45: 52.48614152 | G45: 56.62974403 | H45: 49.02082842 | I45: 41.06369466 | J45: 37.41250791 | S45: AES Ohio | T45: 4017451
S46: Alabama Power Company | T46: 4014956
C47: 18768 | D47: Pre-Tax Interest Coverage (x) | F47: 3.340941744 | G47: 3.088148398 | H47: 3.03069381 | I47: 4.14134466 | J47: 3.706387861 | S47: Algonquin Power & Utilities Corp. | T47: 4142273
C48: 18778 | D48: Pre-Tax Int Coverage + Pref Divs (x) | F48: 3.340941744 | G48: 3.088148398 | H48: 3.03069381 | I48: 4.14134466 | J48: 3.706387861 | S48: Allegheny Generating Company | T48: 4056955 | V48: Current Year | W48: 7597 | X48: 450140
C49: 7270 | D49: EBITDA/ Interest Expense (x) | F49: 4.342239591 | G49: 5.539683714 | H49: 5.746697252 | I49: 6.732878192 | J49: 6.174196854 | S49: ALLETE, Inc. | T49: 4022309 | V49: Next Year | W49: 7598 | X49: 54622
C50: 11512 | D50: Rec EBITDA / (Int Exp + Prf Div) (x) | F50: 5.513333927 | G50: 5.539683714 | H50: 5.732997749 | I50: 6.632134987 | J50: 6.174196854 | S50: Alliant Energy Corporation | T50: 4057038 | V50: 2Yrs Out | W50: 7599 | X50: 175279
S51: AltaGas Ltd. | T51: 4135391 | V51: 3Yrs Out | W51: 7600 | X51: 53396
C52: 18788 | D52: Average Debt/ EBITDA (x) | F52: 7.415489546 | G52: 5.738873489 | H52: 5.532231507 | I52: 4.504711797 | J52: 4.881576217 | S52: AltaLink, L.P. | T52: 4097358 | V52: 4Yrs Out | W52: 7601 | X52: 102324
C53: 18794 | D53: Cash Flow Int + Pref Coverage (x) | F53: 5.944678522 | G53: 4.374484075 | H53: 5.791576399 | I53: 7.551894741 | J53: 6.174798378 | S53: Ameren Corporation | T53: 4007308 | V53: Thereafter | W53: 7602 | X53: 1682845
C54: 18792 | D54: Cash Flow/ Avg Total Debt (%) | F54: 15.85251108 | G54: 11.10416735 | H54: 15.25747265 | I54: 21.85527814 | J54: 17.35824545 | S54: Ameren Illinois Company | T54: 4272394 | V54: Other
C55: 11576 | D55: Cash Interest Coverage (x) | F55: 5.976565384 | G55: 4.158143113 | H55: 5.123189329 | I55: 9.604891328 | J55: 6.52613287 | S55: American Electric Power Company, Inc. | T55: 4006321 | V55: Industry Type | W55: 6252 | X55: Gas Utility
S56: American Superconductor Corporation | T56: 4991374 | V56: Company Name | W56: 9 | X56: New Jersey Resources Corporation
C57: 6419 | D57: Current Ratio (x) | F57: 0.6032603837 | G57: 1.166022761 | H57: 1.146129841 | I57: 1.025438896 | J57: 0.7216726988 | S57: American Transmission Systems, Incorporated | T57: 4076262
C58: 4963 | D58: Total Debt/ Total Equity (x) | F58: 1.691109977 | G58: 1.529175812 | H58: 1.02083434 | I58: 1.026170948 | J58: 1.155107011 | S58: Amtech Systems, Inc. | T58: 4963960 | V58: Chart Data
S59: Appalachian Power Company | T59: 4056972 | V59: EBITDA & Interest Coverage Chart
D60: DEBT MATURITY SCHEDULE ($000) | S60: Arizona Public Service Company | T60: 4056974 | V60: EBITDA ($000)
C61: 7597 | D61: Debt Maturing-Current FY | F61: 450140 | G61: 152586 | H61: 46869 | I61: 275495 | J61: 431375 | S61: Ascent Solar Technologies, Inc. | T61: 4229719 | V61: EBITDA/ Interest Expense (x) | X61: =IF(ISNUMBER(F49),F49,NA()) -> 4.342239591 | Y61: =IF(ISNUMBER(G49),G49,NA()) -> 5.539683714 | Z61: =IF(ISNUMBER(H49),H49,NA()) -> 5.746697252 | AA61: =IF(ISNUMBER(I49),I49,NA()) -> 6.732878192 | AB61: =IF(ISNUMBER(J49),J49,NA()) -> 6.174196854
C62: 7598 | D62: Debt Maturing-Next FY | F62: 54622 | G62: 56004 | H62: 6603 | I62: 7989 | J62: 109675 | S62: ATCO Ltd. | T62: 4086899 | V62: Liquidity
C63: 7599 | D63: Debt Maturing-FY2 | F63: 175279 | G63: 54622 | H63: 57494 | I63: 9236 | J63: 8849 | S63: Atlantic City Electric Company | T63: 4056975 | V63: Current Assets ($000)
C64: 7600 | D64: Debt Maturing-FY3 | F64: 53396 | G64: 175279 | H64: 53995 | I64: 53775 | J64: 5862 | S64: Atlantic Power Corporation | T64: 4098671 | V64: Current Liabilities ($000)
C65: 7601 | D65: Debt Maturing-FY4 | F65: 102324 | G65: 53396 | H65: 174652 | I65: 52393 | J65: 52518 | S65: Atlantica Sustainable Infrastructure plc | T65: 4545218 | V65: Current Ratio (x) | X65: =IF(ISNUMBER(F57),F57,NA()) -> 0.6032603837 | Y65: =IF(ISNUMBER(G57),G57,NA()) -> 1.166022761 | Z65: =IF(ISNUMBER(H57),H57,NA()) -> 1.146129841 | AA65: =IF(ISNUMBER(I57),I57,NA()) -> 1.025438896 | AB65: =IF(ISNUMBER(J57),J57,NA()) -> 0.7216726988
C66: 7602 | D66: Debt Maturing-Thereafter | F66: 1682845 | G66: 1785169 | H66: 1244433 | I66: 1057226 | J66: 820176 | S66: Atmos Energy Corporation | T66: 4057157 | V66: ="Capital Structure " &"("&F40&")" -> Capital Structure (2021Y)
S67: Avangrid, Inc. | T67: 4057045 | V67: ="Commom Equity -" -> Commom Equity - | X67: =F42 -> 37.15938807
D68: INCOME STATEMENT HIGHLIGHTS ($000) | S68: Avista Corporation | T68: 4057075 | V68: ="Total Preferred -" -> Total Preferred - | X68: =F43 -> 0
C69: 18626 | D69: Energy Operating Revenues | F69: 2156613 | G69: 1953668 | H69: 2592045 | I69: 2915109 | J69: 2268617 | S69: Baltimore Gas and Electric Company | T69: 4007784 | V69: ="Total Debt -" -> Total Debt - | X69: =F44 -> 62.84061193
C70: 18630 | D70: Total Electrical Generation Cost | F70: NA | G70: NA | H70: NA | I70: NA | J70: NA | S70: Berkshire Hathaway Energy Company | T70: 4057049 | V70: Leverage Ratios
C71: 18631 | D71: Gas Cost | F71: 260714 | G71: 287307 | H71: 336489 | I71: 333208 | J71: 269480 | S71: Black Hills Corporation | T71: 4010420 | V71: Average Debt/ EBITDA (x) | X71: =IF(ISNUMBER(F52),F52,NA()) -> 7.415489546 | Y71: =IF(ISNUMBER(G52),G52,NA()) -> 5.738873489 | Z71: =IF(ISNUMBER(H52),H52,NA()) -> 5.532231507 | AA71: =IF(ISNUMBER(I52),I52,NA()) -> 4.504711797 | AB71: =IF(ISNUMBER(J52),J52,NA()) -> 4.881576217
C72: 18632 | D72: O&M Expense | F72: 405209 | G72: 312672 | H72: 291533 | I72: 306745 | J72: 262419 | S72: Black Hills Power, Inc. | T72: 4065694
C73: 18636 | D73: Operating DD&A | F73: 111387 | G73: 107368 | H73: 91730 | I73: 85701 | J73: 81841 | S73: Boralex Inc. | T73: 4082886
C74: 18635 | D74: Other Operating Expenses | F74: 0 | G74: 0 | H74: 0 | I74: 0 | J74: 0 | S74: Broadwind, Inc. | T74: 4235589
C75: 18634 | D75: Energy Operating Expenses | F75: 1868263 | G75: 1724759 | H75: 2438755 | I75: 2719890 | J75: 2097393 | S75: Brookfield Renewable Partners L.P. | T75: 4304864
C76: 6200 | D76: EBITDA | F76: 341122 | G76: 374466 | H76: 270566 | I76: 311638 | J76: 277135 | S76: Calpine Corporation | T76: 4056958
C77: 28017 | D77: Recurring EBITDA | F77: 433122 | G77: 374466 | H77: 269921 | I77: 306975 | J77: 277135 | S77: Canadian Solar Inc. | T77: 4246977
C78: 4424 | D78: Net Income before Taxes | F78: 151176 | G78: 199501 | H78: 131754 | I78: 179651 | J78: 150408 | S78: Canadian Utilities Limited | T78: 4142320
C79: 4427 | D79: Income Taxes | F79: 33286 | G79: 36494 | H79: -37751 | I79: -53785 | J79: 18343 | S79: Capital Power Corporation | T79: 4237697
C80: 4429 | D80: Total Minority Interest Expense | F80: 0 | G80: 0 | H80: 0 | I80: 0 | J80: 0 | S80: Capstone Green Energy Corporation | T80: 4103085
C81: 4430 | D81: Net Income before Extraordinary | F81: 117890 | G81: 163007 | H81: 169505 | I81: 233436 | J81: 132065 | S81: Capstone Infrastructure Corporation | T81: 4166117
C82: 833 | D82: Net Income | F82: 117890 | G82: 163007 | H82: 169505 | I82: 233436 | J82: 132065 | S82: Caribbean Utilities Company, Ltd. | T82: 4276419
C83: 47814 | D83: Net Income Attributable to Noncontrolling Int | F83: 0 | G83: 0 | H83: 0 | I83: 0 | J83: 0 | S83: CenterPoint Energy Houston Electric, LLC | T83: 4057059
C84: 47813 | D84: Net Income Attributable to Parent | F84: 117890 | G84: 163007 | H84: 169505 | I84: 233436 | J84: 132065 | S84: CenterPoint Energy Resources Corp. | T84: 4057141
S85: CenterPoint Energy, Inc. | T85: 4074390
D86: BALANCE SHEET HIGHLIGHTS ($000) | S86: Central Hudson Gas & Electric Corporation | T86: 4057076
C87: 6359 | D87: Total Current Assets | F87: 634274 | G87: 622332 | H87: 511606 | I87: 770080 | J87: 579444 | S87: Central Maine Power Company | T87: 4056978
C88: 18807 | D88: Net PP&E | F88: 4387441 | G88: 3854538 | H88: 3045944 | I88: 2651049 | J88: 2609741 | S88: CH Energy Group, Inc. | T88: 4057039
C89: 18851 | D89: Long-term Energy Risk-mgmt Asset | F89: 0 | G89: 0 | H89: 0 | I89: 0 | J89: 0 | S89: Chesapeake Utilities Corporation | T89: 4057113
C90: 18823 | D90: Total Noncurrent Investments | F90: 114529 | G90: 208375 | H90: 200268 | I90: 223783 | J90: 238337 | S90: Clearway Energy, Inc. | T90: 4393379
C91: 3706 | D91: Total Intangible Assets | F91: 10611 | G91: 14767 | H91: 16313 | I91: 23375 | J91: 41084 | S91: Cleco Corporate Holdings LLC | T91: 4056937
C92: 220 | D92: Total Assets | F92: 5722278 | G92: 5316477 | H92: 4372985 | I92: 4143664 | J92: 3928507 | S92: Cleco Power LLC | T92: 4056982
C93: 6361 | D93: Total Current Liabilities | F93: 1051410 | G93: 533722 | H93: 446377 | I93: 750976 | J93: 802918 | S93: CMS Energy Corporation | T93: 4004172
C94: 6148 | D94: Non-current Long-term Debt | F94: 2303527 | G94: 2354496 | H94: 1537177 | I94: 1180619 | J94: 997080 | S94: Commonwealth Edison Company | T94: 4000672
C95: 18082 | D95: Other Liabilities | F95: 207621 | G95: 209279 | H95: 194446 | I95: 200533 | J95: 229466 | S95: Connecticut Natural Gas Corporation | T95: 4059402
C96: 845 | D96: Total Debt | F96: 2757967 | G96: 2513806 | H96: 1584046 | I96: 1456114 | J96: 1428455 | S96: Consolidated Edison Company of New York, Inc. | T96: 4057080
C97: 49691 | D97: Equity Attributable to Parent Company | F97: 1630862 | G97: 1643896 | H97: 1551717 | I97: 1418978 | J97: 1236643 | S97: Consolidated Edison, Inc. | T97: 4057041
C98: 47772 | D98: Non-Controlling Interests | F98: 0 | G98: 0 | H98: 0 | I98: 0 | J98: 0 | S98: Constellation Energy Corporation | T98: 4072145
C99: 3800 | D99: Total Equity | F99: 1630862 | G99: 1643896 | H99: 1551717 | I99: 1418978 | J99: 1236643 | S99: Consumers Energy Company | T99: 4057081
C100: 18081 | D100: Total Mezzanine Level Items | F100: 0 | G100: 0 | H100: 0 | I100: 0 | J100: 0 | S100: Corning Natural Gas Holding Corporation | T100: 4420429
C101: 17860 | D101: Total Capitalization, at Book | F101: 4388829 | G101: 4157702 | H101: 3135763 | I101: 2875092 | J101: 2665098 | S101: Covanta Holding Corporation | T101: 103347
S102: Delmarva Power & Light Company | T102: 4057082
D103: CASH FLOW HIGHLIGHTS ($000) | S103: Dominion Energy South Carolina, Inc. | T103: 4057099
C104: 4991 | D104: Operating Cash Flow | F104: 390954 | G104: 213481 | H104: 194128 | I104: 398286 | J104: 248046 | S104: Dominion Energy, Inc. | T104: 4001616
C105: 4993 | D105: Investing Cash Flow | F105: -622117 | G105: -994025 | H105: -287377 | I105: -373090 | J105: -391983 | S105: DPL Inc. | T105: 4057043
C106: 4992 | D106: Financing Cash Flow | F106: 117783 | G106: 895904 | H106: 95602 | I106: -25955 | J106: 107295 | S106: DTE Electric Company | T106: 4057083
C107: 4994 | D107: Other Cash Flow | F107: 0 | G107: 0 | H107: 0 | I107: 0 | J107: 0 | S107: DTE Energy Company | T107: 4057044
C108: 4995 | D108: Net Increase in Cash | F108: -113380 | G108: 115360 | H108: 2353 | I108: -759 | J108: -36642 | S108: DTE Gas Company | T108: 4057126
S109: Duke Energy Carolinas, LLC | T109: 4004320
D110: PROFITABILITY RATIOS (%) | S110: Duke Energy Corporation | T110: 4121470
C111: 281 | D111: ROAA | F111: 2.168088515 | G111: 3.199795065 | H111: 4.000346568 | I111: 5.77771069 | J111: 3.406298531 | S111: Duke Energy Florida, LLC | T111: 4056998
C112: 284 | D112: ROAE | F112: 6.894664107 | G112: 9.114628091 | H112: 11.07196212 | I112: 16.69511783 | J112: 10.65500249 | S112: Duke Energy Indiana, LLC | T112: 4062444
C113: 18791 | D113: Return on Capital | F113: 2.78077893 | G113: 4.139940356 | H113: 5.59833934 | I113: 8.330845588 | J113: 5.094470625 | S113: Duke Energy Kentucky, Inc. | T113: 4057103
B114: =COUNT(C:C)-72 -> 5 | S114: Duke Energy Ohio, Inc. | T114: 4057079
B115: =[1]!SNLQUERY("PendingCases",D118:O118) -> SNLQuery | S115: Duke Energy Progress, LLC | T115: 4004192
D116: Pending Rate Cases | J116: Requested | S116: Eastern Energy Gas Holdings, LLC | T116: 4430002
B117: Docket Number | C117: Rate Case OID | D117: State | E117: Company Name | F117: Ultimate Parent Ticker | G117: Docket Number | H117: Service Type | I117: Initial Filing Date (mm/dd/yyyy) | J117: Rate Change Amount ($000) | K117: Rate Change/Revenue (%) | L117: Return on Rate Base (%) | M117: Return on Equity (%) | N117: Equity Ratio (% of Total Capital) | O117: Rate Base ($000) | S117: Edison International | T117: 4056943
D118: 238539 | E118: 238108 | F118: 238112 | G118: =HYPERLINK("http://www.snl.com/interactivex/RateCaseProfile.aspx?ID="&C118,B118) -> 0 | H118: 238116 | I118: 238118 | J118: 238121 | K118: 238122 | L118: 238124 | M118: 238123 | N118: 238125 | O118: 238127 | S118: El Paso Electric Company | T118: 4056994
S119: Emera Incorporated | T119: 4072693
S120: Enbridge Gas Inc. | T120: 13585952
B121: D-22-ATMG-203-TAR (GSRS) | C121: 3913 | D121: KS | E121: Atmos Energy Corporation | H121: Natural Gas | I121: 2021-11-04 | J121: 1829.05 | K121: NA | L121: NA | M121: NA | N121: NA | O121: 35886.643 | S121: Enphase Energy, Inc. | T121: 4990825
B122: D-22-ATMG-299-TAR (SIP) | C122: 3940 | D122: KS | E122: Atmos Energy Corporation | H122: Natural Gas | I122: 2022-01-14 | J122: 622.905 | K122: NA | L122: NA | M122: NA | N122: NA | O122: 5880.503 | S122: Entergy Arkansas, LLC | T122: 4056995
B123: C-2021-00214 | C123: 3824 | D123: KY | E123: Atmos Energy Corporation | H123: Natural Gas | I123: 2021-06-30 | J123: 21798.399 | K123: 12.56 | L123: 7.66 | M123: 10.35 | N123: 57.05 | O123: 596130.007 | S123: Entergy Corporation | T123: 4007889
B124: C-2021-00304 (PRP) | C124: 3868 | D124: KY | E124: Atmos Energy Corporation | H124: Natural Gas | I124: 2021-07-30 | J124: 8101.291 | K124: NA | L124: 7.66 | M124: 10.35 | N124: 57.05 | O124: 67868.665 | S124: Entergy Louisiana, LLC | T124: 4112564
B125: D-22-00010 | C125: 3951 | D125: TN | E125: Atmos Energy Corporation | H125: Natural Gas | I125: 2022-02-01 | J125: 3662.16 | K125: NA | L125: 7.53 | M125: NA | N125: 60.59 | O125: 453913.889 | S125: Entergy Mississippi, LLC | T125: 4008616
S126: Entergy New Orleans, LLC | T126: 4057085
S127: Entergy Texas, Inc. | T127: 4199135
S128: Evergy Kansas Central, Inc. | T128: 4057066
S129: Evergy Metro, Inc. | T129: 4072456
S130: Evergy, Inc. | T130: 8603803
S131: Eversource Energy | T131: 4057052
S132: Exelon Corporation | T132: 4057056
S133: First Solar, Inc. | T133: 4211343
S134: FirstEnergy Corp. | T134: 4056944
S135: FirstEnergy Transmission, LLC | T135: 4346021
S136: Florida Power & Light Company | T136: 4056997
S137: Fortis Inc. | T137: 4082871
S138: FortisAlberta Inc. | T138: 4103468
S139: FortisBC Energy Inc. | T139: 4095656
S140: FortisBC Inc. | T140: 4100140
S141: Georgia Power Company | T141: 4004152
S142: Gulf Power Company | T142: 4057000
S143: Hawaiian Electric Company, Inc. | T143: 4057001
S144: Hawaiian Electric Industries, Inc. | T144: 1031123
S145: IDACORP, Inc. | T145: 4056949
S146: Idaho Power Company | T146: 4057002
S147: Indiana Michigan Power Company | T147: 4057003
S148: Innergex Renewable Energy Inc. | T148: 4215345
S149: Integrys Holding, Inc. | T149: 4057067
S150: Interstate Power and Light Company | T150: 4057087
S151: IPALCO Enterprises, Inc. | T151: 4010657
S152: ITC Holdings Corp. | T152: 4099990
S153: Itron, Inc. | T153: 4092673
S154: Jersey Central Power & Light Company | T154: 4057004
S155: Just Energy Group Inc. | T155: 4302830
S156: Kentucky Power Company | T156: 4057006
S157: Kentucky Utilities Company | T157: 4042397
S158: LG&E and KU Energy LLC | T158: 4057048
S159: Louisville Gas and Electric Company | T159: 4057090
S160: Macquarie Infrastructure Holdings, LLC | T160: 4824125
S161: Madison Gas and Electric Company | T161: 4008754
S162: Maxim Power Corp. | T162: 4100090
S163: MDU Resources Group, Inc. | T163: 4010692
S164: Metropolitan Edison Company | T164: 4057009
S165: MGE Energy, Inc. | T165: 4072883
S166: Michigan Gas Utilities Corporation | T166: 4122218
S167: MidAmerican Energy Company | T167: 4057091
S168: MidAmerican Funding, LLC | T168: 4081927
S169: Mid-Atlantic Interstate Transmission, LLC | T169: 4604463
S170: Minnesota Energy Resources Corporation | T170: 4140737
S171: Mississippi Power Company | T171: 4057010
S172: Monongahela Power Company | T172: 4057011
S173: MYR Group Inc. | T173: 4120398
S174: National Fuel Gas Company | T174: 4010821
S175: Net Zero Renewable Energy Inc. | T175: 4560041
S176: Nevada Power Company | T176: 4061726
S177: New Jersey Natural Gas Company | T177: 4061755
S178: New Jersey Resources Corporation | T178: 4057128
S179: New York State Electric & Gas Corporation | T179: 4004389
S180: Newfoundland Power Inc. | T180: 4099655
S181: NextEra Energy Partners, LP | T181: 4550347
S182: NextEra Energy Resources, LLC | T182: 4060103
S183: NextEra Energy, Inc. | T183: 3010401
S184: NiSource Inc. | T184: 4057051
S185: North Shore Gas Company | T185: 4057130
S186: Northern States Power Company | T186: 4057754
S187: Northern States Power Company | T187: 4061925
S188: Northland Power Inc. | T188: 4156778
S189: Northwest Natural Gas Company | T189: 10344596
S190: Northwest Natural Holding Company | T190: 4057132
S191: NorthWestern Corporation | T191: 4057053
S192: Nova Scotia Power Inc. | T192: 4061963
S193: NRG Energy, Inc. | T193: 4057436
S194: NSTAR Electric Company | T194: 4008369
S195: Ocean Power Technologies, Inc. | T195: 4153733
S196: OGE Energy Corp. | T196: 4057055
S197: Ohio Edison Company | T197: 4014480
S198: Ohio Power Company | T198: 4057015
S199: Oklahoma Gas and Electric Company | T199: 4057016
S200: Oncor Electric Delivery Company LLC | T200: 4080589
S201: ONE Gas, Inc. | T201: 4427129
S202: Orange and Rockland Utilities, Inc. | T202: 4057093
S203: Ormat Technologies, Inc. | T203: 4087066
S204: Otter Tail Corporation | T204: 4057017
S205: Pacific Gas and Electric Company | T205: 4004218
... 88 more rows

Sheet NI (2)
G2: Utility Financial Profile
D3: Core functionality: | K3: Contact:
D4: This template allows users to look at SEC Financial Data and Ratios for a selected Company. | K4: Please contact Market Intelligence Support with any questions or comments:
D5: Settings: | K5: phone: | L5: +1 (888) 275 2822 (US & Canada)
D6: 1) Select MI Office Add-In manual refresh option. | L6: +44 20 7283 8887 (Europe, Middle East & Africa)
D7: 2) Enable macros while opening the template. | L7: +1 (434) 951-7788 (Latin America)
D8: 3) For best performance, save this file to your computer, close and then reopen. | L8: +852-3177-3727 (Asia-Pacific)
D9: Instructions: | K9: email: | L9: support.MI@spglobal.com
D10: Step 1: Select company in cell G10. | G10: NiSource Inc. | K10: Disclaimer: Copyright © 2019 S&P Global Market Intelligence LLC (and its affiliates as applicable) – All rights reserved. This model and/or any data in it are provided subject to the written agreement of S&P Global Market Intelligence LLC governing the subscription service to which this model is applied.
D12: Step 2: Enter period in Cell G12. | G12: 2021Y
D13: (Format: yyyyY/yyyyQq, 2008Y/2009Q1)
D14: Step 3: Click "REFRESH" button. | K14: Note :
K15: If you receive a pop up message "there were no results for your query", Click OK.
D17: =IF(X56="","",X56) -> NiSource Inc.
D18: ="Industry : " & X55 -> Industry : Power
C20: =[1]!SNLTable(1,'NI (2)'!F20:G20,'NI (2)'!C24:C35,'NI (2)'!F21:G21,,"Options:Curr=USD,Mag=SNLstandard,ConvMethod=SNLrecommended") -> SNLTable | F20: =VLOOKUP(V40,S:T,2,FALSE) -> 4057051 | G20: =F20 -> 4057051
F21: 3000325 | G21: 108462
D23: CREDIT RATINGS | F23: S&P | G23: Moody's
C24: 44941 | D24: LT Issuer Rating | F24: BBB+ | G24: Baa2 | V24: =SUBSTITUTE(Company_Name,"&","&amp;") -> NiSource Inc.
C25: 44942 | D25: Direction | G25: Affirm
C26: 44944 | D26: Date | F26: 2020-02-28 | G26: 2018-02-28
C27: 44949 | D27: Senior Unsecured Rating | F27: BBB+ | G27: Baa2
C28: 44950 | D28: Direction | F28: Initiate | G28: Initiate
C29: 44952 | D29: Date | F29: 2018-06-07 | G29: 2018-06-08
C30: 44965 | D30: Senior Secured Rating | S30: Intermediate Calculations:
C31: 44966 | D31: Direction | S31: Please do not Edit or Delete Cells in this portion.
C32: 44968 | D32: Date
C33: 44945 | D33: Short-Term/ CP Rating | F33: A-2 | G33: P-2
C34: 44946 | D34: Direction | F34: Upgrade | G34: Affirm
C35: 44948 | D35: Date | F35: 2015-06-18 | G35: 2018-02-28
C36: =[1]!SNLTable(1,'NI (2)'!F36:J36,'NI (2)'!C41:C113,'NI (2)'!F37:J37,,"Options:Curr=USD,Mag=SNLstandard,ConvMethod=SNLrecommended") -> SNLTable | F36: =F20 -> 4057051 | G36: =F20 -> 4057051 | H36: =F20 -> 4057051 | I36: =F20 -> 4057051 | J36: =F20 -> 4057051
F37: =IF(RIGHT(G12,1)="Y",G12,REPLACE(G12,5,1,"L")) -> 2021Y | G37: =LEFT(F37,4)-1 & "Y" -> 2020Y | H37: =LEFT(G37,4)-1&"Y" -> 2019Y | I37: =LEFT(H37,4)-1&"Y" -> 2018Y | J37: =LEFT(I37,4)-1&"Y" -> 2017Y
F38: 1 | G38: 1 | H38: 1 | I38: 1 | J38: 1
S39: =[1]!SNLQUERY("Company_Listed") -> SNLQuery
D40: CREDIT RATIOS | F40: =IF(RIGHT(G12,1)="Y",G12,"LTM") -> 2021Y | G40: =G37 -> 2020Y | H40: =H37 -> 2019Y | I40: =I37 -> 2018Y | J40: =J37 -> 2017Y | S40: Advanced Energy Industries, Inc. | T40: 4306705 | V40: =G10 -> NiSource Inc.
C41: 151 | D41: Period End Date | F41: 2021-12-31 | G41: 2020-12-31 | H41: 2019-12-31 | I41: 2018-12-31 | J41: 2017-12-31 | S41: AEP Generating Company | T41: 4056954 | V41: ="Debt Maturity Schedule ($000)" & " ("&X43& ")" -> Debt Maturity Schedule ($000) (2021Y)
C42: 18857 | D42: Common Equity/ Total Capital (%) | F42: 31.56701151 | G42: 31.18387619 | H42: 32.53856496 | I42: 32.72684516 | J42: 32.42758383 | S42: AEP Texas Inc. | T42: 4056935 | V42: =[1]!SNLTable(1,'NI (2)'!X42,'NI (2)'!W48:W56,'NI (2)'!X43,,"Options:Curr=USD,Mag=SNLstandard,ConvMethod=SNLrecommended") -> SNLTable | X42: =F36 -> 4057051
C43: 18869 | D43: Total Preferred/ Total Capital (%) | F43: 9.039102227 | G43: 5.632324422 | H43: 5.607131251 | I43: 5.912587765 | J43: 0 | S43: AEP Transmission Company, LLC | T43: 4341449 | X43: =IF(OR(RIGHT(G12,1)="Y",RIGHT(G12,1)="4"),LEFT(G12,4)&"Y",G37) -> 2021Y
C44: 17861 | D44: Debt/ Total Capital (%) | F44: 57.49079432 | G44: 62.63592783 | H44: 61.85430379 | I44: 61.36056707 | J44: 67.57241617 | S44: AES Indiana | T44: 4024697 | X44: 1
C45: 18861 | D45: Long-term Debt/ Total Capital (%) | F45: 53.83891519 | G45: 59.20149001 | H45: 50.38644603 | I45: 47.74011489 | J45: 56.3881612 | S45: AES Ohio | T45: 4017451
S46: Alabama Power Company | T46: 4014956
C47: 18768 | D47: Pre-Tax Interest Coverage (x) | F47: 2.912641018 | G47: 1.458300238 | H47: 2.305124224 | I47: 0.3440949227 | J47: 2.563160824 | S47: Algonquin Power & Utilities Corp. | T47: 4142273
C48: 18778 | D48: Pre-Tax Int Coverage + Pref Divs (x) | F48: 2.512225549 | G48: 1.272643253 | H48: 2.017440544 | I48: 0.3304186539 | J48: 2.563160824 | S48: Allegheny Generating Company | T48: 4056955 | V48: Current Year | W48: 7597 | X48: 618100
C49: 7270 | D49: EBITDA/ Interest Expense (x) | F49: 5.265611258 | G49: 2.87375236 | H49: 4.2304038 | I49: 2.044438155 | J49: 3.869195923 | S49: ALLETE, Inc. | T49: 4022309 | V49: Next Year | W49: 7598 | X49: 33600
C50: 11512 | D50: Rec EBITDA / (Int Exp + Prf Div) (x) | F50: 4.552751136 | G50: 4.038046031 | H50: 4.648387097 | I50: 2.087971762 | J50: 4.200453001 | S50: Alliant Energy Corporation | T50: 4057038 | V50: 2Yrs Out | W50: 7599 | X50: 25600
S51: AltaGas Ltd. | T51: 4135391 | V51: 3Yrs Out | W51: 7600 | X51: 1279200
C52: 18788 | D52: Average Debt/ EBITDA (x) | F52: 5.351692556 | G52: 9.440286774 | H52: 5.851316364 | I52: 12.19316766 | J52: 6.0847084 | S52: AltaLink, L.P. | T52: 4097358 | V52: 4Yrs Out | W52: 7601 | X52: 15800
C53: 18794 | D53: Cash Flow Int + Pref Coverage (x) | F53: 5.119178478 | G53: 4.5133704 | H53: 4.97826087 | I53: 2.20281457 | J53: 3.222314969 | S53: Ameren Corporation | T53: 4007308 | V53: Thereafter | W53: 7602 | X53: 7957900
C54: 18792 | D54: Cash Flow/ Avg Total Debt (%) | F54: 14.6782596 | G54: 13.29357558 | H54: 16.47497221 | I54: 5.110634855 | J54: 9.756640195 | S54: Ameren Illinois Company | T54: 4272394 | V54: Other
C55: 11576 | D55: Cash Interest Coverage (x) | F55: 4.570507183 | G55: 3.978149447 | H55: 5.178675112 | I55: 2.528729125 | J55: 3.101359003 | S55: American Electric Power Company, Inc. | T55: 4006321 | V55: Industry Type | W55: 6252 | X55: Power
S56: American Superconductor Corporation | T56: 4991374 | V56: Company Name | W56: 9 | X56: NiSource Inc.
C57: 6419 | D57: Current Ratio (x) | F57: 0.6994392251 | G57: 0.7279985961 | H57: 0.4949276523 | I57: 0.5091656758 | J57: 0.5547759879 | S57: American Transmission Systems, Incorporated | T57: 4076262
C58: 4963 | D58: Total Debt/ Total Equity (x) | F58: 1.35243163 | G58: 1.67636781 | H58: 1.62152772 | I58: 1.5880297 | J58: 2.083794357 | S58: Amtech Systems, Inc. | T58: 4963960 | V58: Chart Data
S59: Appalachian Power Company | T59: 4056972 | V59: EBITDA & Interest Coverage Chart
D60: DEBT MATURITY SCHEDULE ($000) | S60: Arizona Public Service Company | T60: 4056974 | V60: EBITDA ($000)
C61: 7597 | D61: Debt Maturing-Current FY | F61: 618100 | G61: 526300 | H61: 1786600 | I61: 2027200 | J61: 1490000 | S61: Ascent Solar Technologies, Inc. | T61: 4229719 | V61: EBITDA/ Interest Expense (x) | X61: =IF(ISNUMBER(F49),F49,NA()) -> 5.265611258 | Y61: =IF(ISNUMBER(G49),G49,NA()) -> 2.87375236 | Z61: =IF(ISNUMBER(H49),H49,NA()) -> 4.2304038 | AA61: =IF(ISNUMBER(I49),I49,NA()) -> 2.044438155 | AB61: =IF(ISNUMBER(J49),J49,NA()) -> 3.869195923
C62: 7598 | D62: Debt Maturing-Next FY | F62: 33600 | G62: 62200 | H62: 90900 | I62: 22500 | J62: 296100 | S62: ATCO Ltd. | T62: 4086899 | V62: Liquidity
C63: 7599 | D63: Debt Maturing-FY2 | F63: 25600 | G63: 28800 | H63: 556800 | I63: 86200 | J63: 325100 | S63: Atlantic City Electric Company | T63: 4056975 | V63: Current Assets ($000)
C64: 7600 | D64: Debt Maturing-FY3 | F64: 1279200 | G64: 20800 | H64: 623100 | I64: 552100 | J64: 63600 | S64: Atlantic Power Corporation | T64: 4098671 | V64: Current Liabilities ($000)
C65: 7601 | D65: Debt Maturing-FY4 | F65: 15800 | G65: 1276100 | H65: 19900 | I65: 619800 | J65: 710000 | S65: Atlantica Sustainable Infrastructure plc | T65: 4545218 | V65: Current Ratio (x) | X65: =IF(ISNUMBER(F57),F57,NA()) -> 0.6994392251 | Y65: =IF(ISNUMBER(G57),G57,NA()) -> 0.7279985961 | Z65: =IF(ISNUMBER(H57),H57,NA()) -> 0.4949276523 | AA65: =IF(ISNUMBER(I57),I57,NA()) -> 0.5091656758 | AB65: =IF(ISNUMBER(J57),J57,NA()) -> 0.5547759879
C66: 7602 | D66: Debt Maturing-Thereafter | F66: 7957900 | G66: 7831900 | H66: 6565500 | I66: 5824800 | J66: 6117400 | S66: Atmos Energy Corporation | T66: 4057157 | V66: ="Capital Structure " &"("&F40&")" -> Capital Structure (2021Y)
S67: Avangrid, Inc. | T67: 4057045 | V67: ="Commom Equity -" -> Commom Equity - | X67: =F42 -> 31.56701151
D68: INCOME STATEMENT HIGHLIGHTS ($000) | S68: Avista Corporation | T68: 4057075 | V68: ="Total Preferred -" -> Total Preferred - | X68: =F43 -> 9.039102227
C69: 18626 | D69: Energy Operating Revenues | F69: 4899600 | G69: 4681700 | H69: 5208900 | I69: 5114500 | J69: 4874600 | S69: Baltimore Gas and Electric Company | T69: 4007784 | V69: ="Total Debt -" -> Total Debt - | X69: =F44 -> 57.49079432
C70: 18630 | D70: Total Electrical Generation Cost | F70: 429700 | G70: 315200 | H70: 467300 | I70: 502100 | J70: 513900 | S70: Berkshire Hathaway Energy Company | T70: 4057049 | V70: Leverage Ratios
C71: 18631 | D71: Gas Cost | F71: 962700 | G71: 794200 | H71: 1067600 | I71: 1259300 | J71: 1005000 | S71: Black Hills Corporation | T71: 4010420 | V71: Average Debt/ EBITDA (x) | X71: =IF(ISNUMBER(F52),F52,NA()) -> 5.351692556 | Y71: =IF(ISNUMBER(G52),G52,NA()) -> 9.440286774 | Z71: =IF(ISNUMBER(H52),H52,NA()) -> 5.851316364 | AA71: =IF(ISNUMBER(I52),I52,NA()) -> 12.19316766 | AB71: =IF(ISNUMBER(J52),J52,NA()) -> 6.0847084
C72: 18632 | D72: O&M Expense | F72: 1456000 | G72: 1585900 | H72: 1354700 | I72: 2352900 | J72: 1601700 | S72: Black Hills Power, Inc. | T72: 4065694
C73: 18636 | D73: Operating DD&A | F73: 748400 | G73: 725900 | H73: 717400 | I73: 599600 | J73: 570300 | S73: Boralex Inc. | T73: 4082886
C74: 18635 | D74: Other Operating Expenses | F74: -100 | G74: -100 | H74: -100 | I74: -100 | J74: -200 | S74: Broadwind, Inc. | T74: 4235589
C75: 18634 | D75: Energy Operating Expenses | F75: 3885000 | G75: 3720300 | H75: 3903700 | I75: 4988600 | J75: 3947900 | S75: Brookfield Renewable Partners L.P. | T75: 4304864
C76: 6200 | D76: EBITDA | F76: 1796100 | G76: 1065300 | H76: 1602900 | I76: 722300 | J76: 1366600 | S76: Calpine Corporation | T76: 4056958
C77: 28017 | D77: Recurring EBITDA | F77: 1803800 | G77: 1719400 | H77: 2017400 | I77: 769000 | J77: 1483600 | S77: Canadian Solar Inc. | T77: 4246977
C78: 4424 | D78: Net Income before Taxes | F78: 706600 | G78: -31300 | H78: 506600 | I78: -230600 | J78: 443100 | S78: Canadian Utilities Limited | T78: 4142320
C79: 4427 | D79: Income Taxes | F79: 117800 | G79: -17100 | H79: 123500 | I79: -180000 | J79: 314500 | S79: Capital Power Corporation | T79: 4237697
C80: 4429 | D80: Total Minority Interest Expense | F80: 0 | G80: 0 | H80: 0 | I80: 0 | J80: 0 | S80: Capstone Green Energy Corporation | T80: 4103085
C81: 4430 | D81: Net Income before Extraordinary | F81: 588800 | G81: -14200 | H81: 383100 | I81: -50600 | J81: 128600 | S81: Capstone Infrastructure Corporation | T81: 4166117
C82: 833 | D82: Net Income | F82: 588800 | G82: -14200 | H82: 383100 | I82: -50600 | J82: 128500 | S82: Caribbean Utilities Company, Ltd. | T82: 4276419
C83: 47814 | D83: Net Income Attributable to Noncontrolling Int | F83: 3900 | G83: 3400 | H83: 0 | I83: 0 | J83: 0 | S83: CenterPoint Energy Houston Electric, LLC | T83: 4057059
C84: 47813 | D84: Net Income Attributable to Parent | F84: 584900 | G84: -17600 | H84: 383100 | I84: -50600 | J84: 128500 | S84: CenterPoint Energy Resources Corp. | T84: 4057141
S85: CenterPoint Energy, Inc. | T85: 4074390
D86: BALANCE SHEET HIGHLIGHTS ($000) | S86: Central Hudson Gas & Electric Corporation | T86: 4057076
C87: 6359 | D87: Total Current Assets | F87: 1920800 | G87: 1659400 | H87: 1853900 | I87: 2055400 | J87: 1763300 | S87: Central Maine Power Company | T87: 4056978
C88: 18807 | D88: Net PP&E | F88: 17915600 | G88: 16659400 | H88: 16976400 | I88: 15542500 | J88: 14359500 | S88: CH Energy Group, Inc. | T88: 4057039
C89: 18851 | D89: Long-term Energy Risk-mgmt Asset | F89: 0 | G89: 0 | H89: 3800 | I89: 4400 | J89: 1000 | S89: Chesapeake Utilities Corporation | T89: 4057113
C90: 18823 | D90: Total Noncurrent Investments | F90: 259700 | G90: 252000 | H90: 230200 | I90: 206100 | J90: 209600 | S90: Clearway Energy, Inc. | T90: 4393379
C91: 3706 | D91: Total Intangible Assets | F91: 1485900 | G91: 1485900 | H91: 1485900 | I91: 1911400 | J91: 1922400 | S91: Cleco Corporate Holdings LLC | T91: 4056937
C92: 220 | D92: Total Assets | F92: 24156900 | G92: 22040500 | H92: 22659800 | I92: 21804000 | J92: 19961700 | S92: Cleco Power LLC | T92: 4056982
C93: 6361 | D93: Total Current Liabilities | F93: 2746200 | G93: 2279400 | H93: 3745800 | I93: 4036800 | J93: 3178400 | S93: CMS Energy Corporation | T93: 4004172
C94: 6148 | D94: Non-current Long-term Debt | F94: 9211300 | G94: 9249700 | H94: 7907800 | I94: 7105400 | J94: 7512200 | S94: Commonwealth Edison Company | T94: 4000672
C95: 18082 | D95: Other Liabilities | F95: 1132000 | G95: 863200 | H95: 741500 | I95: 623800 | J95: 543200 | S95: Connecticut Natural Gas Corporation | T95: 4059402
C96: 845 | D96: Total Debt | F96: 9836100 | G96: 9786300 | H96: 9707600 | I96: 9132600 | J96: 9002200 | S96: Consolidated Edison Company of New York, Inc. | T96: 4057080
C97: 49691 | D97: Equity Attributable to Parent Company | F97: 6947300 | G97: 5752200 | H97: 5986700 | I97: 5750900 | J97: 4320100 | S97: Consolidated Edison, Inc. | T97: 4057041
C98: 47772 | D98: Non-Controlling Interests | F98: 325600 | G98: 85600 | H98: 0 | I98: 0 | J98: 0 | S98: Constellation Energy Corporation | T98: 4072145
C99: 3800 | D99: Total Equity | F99: 7272900 | G99: 5837800 | H99: 5986700 | I99: 5750900 | J99: 4320100 | S99: Consumers Energy Company | T99: 4057081
C100: 18081 | D100: Total Mezzanine Level Items | F100: 0 | G100: 0 | H100: 0 | I100: 0 | J100: 0 | S100: Corning Natural Gas Holding Corporation | T100: 4420429
C101: 17860 | D101: Total Capitalization, at Book | F101: 17109000 | G101: 15624100 | H101: 15694300 | I101: 14883500 | J101: 13322300 | S101: Covanta Holding Corporation | T101: 103347
S102: Delmarva Power & Light Company | T102: 4057082
D103: CASH FLOW HIGHLIGHTS ($000) | S103: Dominion Energy South Carolina, Inc. | T103: 4057099
C104: 4991 | D104: Operating Cash Flow | F104: 1217900 | G104: 1104000 | H104: 1583300 | I104: 540100 | J104: 742200 | S104: Dominion Energy, Inc. | T104: 4001616
C105: 4993 | D105: Investing Cash Flow | F105: -2204900 | G105: -879100 | H105: -1922400 | I105: -1926100 | J105: -1808500 | S105: DPL Inc. | T105: 4057043
C106: 4992 | D106: Financing Cash Flow | F106: 956300 | G106: -247700 | H106: 366400 | I106: 1468700 | J106: 1068700 | S106: DTE Electric Company | T106: 4057083
C107: 4994 | D107: Other Cash Flow | F107: 0 | G107: 0 | H107: 0 | I107: 0 | J107: 0 | S107: DTE Energy Company | T107: 4057044
C108: 4995 | D108: Net Increase in Cash | F108: -30700 | G108: -22800 | H108: 27300 | I108: 82700 | J108: 2400 | S108: DTE Gas Company | T108: 4057126
S109: Duke Energy Carolinas, LLC | T109: 4004320
D110: PROFITABILITY RATIOS (%) | S110: Duke Energy Corporation | T110: 4121470
C111: 281 | D111: ROAA | F111: 2.605724806 | G111: -0.06305446718 | H111: 1.736857675 | I111: -0.2468634378 | J111: 0.675827593 | S111: Duke Energy Florida, LLC | T111: 4056998
C112: 284 | D112: ROAE | F112: 9.136242588 | G112: -0.2497762787 | H112: 6.528323911 | I112: -1.00804845 | J112: 3.046368213 | S112: Duke Energy Indiana, LLC | T112: 4062444
C113: 18791 | D113: Return on Capital | F113: 3.666973649 | G113: -0.09020555114 | H113: 2.512567758 | I113: -0.3659579546 | J113: 1.025252324 | S113: Duke Energy Kentucky, Inc. | T113: 4057103
B114: =COUNT(C:C)-72 -> 5 | S114: Duke Energy Ohio, Inc. | T114: 4057079
B115: =[1]!SNLQUERY("PendingCases",D118:O118) -> SNLQuery | S115: Duke Energy Progress, LLC | T115: 4004192
D116: Pending Rate Cases | J116: Requested | S116: Eastern Energy Gas Holdings, LLC | T116: 4430002
B117: Docket Number | C117: Rate Case OID | D117: State | E117: Company Name | F117: Ultimate Parent Ticker | G117: Docket Number | H117: Service Type | I117: Initial Filing Date (mm/dd/yyyy) | J117: Rate Change Amount ($000) | K117: Rate Change/Revenue (%) | L117: Return on Rate Base (%) | M117: Return on Equity (%) | N117: Equity Ratio (% of Total Capital) | O117: Rate Base ($000) | S117: Edison International | T117: 4056943
D118: 238539 | E118: 238108 | F118: 238112 | G118: =HYPERLINK("http://www.snl.com/interactivex/RateCaseProfile.aspx?ID="&C118,B118) -> 0 | H118: 238116 | I118: 238118 | J118: 238121 | K118: 238122 | L118: 238124 | M118: 238123 | N118: 238125 | O118: 238127 | S118: El Paso Electric Company | T118: 4056994
S119: Emera Incorporated | T119: 4072693
S120: Enbridge Gas Inc. | T120: 13585952
B121: D-22-ATMG-203-TAR (GSRS) | C121: 3913 | D121: KS | E121: Atmos Energy Corporation | H121: Natural Gas | I121: 2021-11-04 | J121: 1829.05 | K121: NA | L121: NA | M121: NA | N121: NA | O121: 35886.643 | S121: Enphase Energy, Inc. | T121: 4990825
B122: D-22-ATMG-299-TAR (SIP) | C122: 3940 | D122: KS | E122: Atmos Energy Corporation | H122: Natural Gas | I122: 2022-01-14 | J122: 622.905 | K122: NA | L122: NA | M122: NA | N122: NA | O122: 5880.503 | S122: Entergy Arkansas, LLC | T122: 4056995
B123: C-2021-00214 | C123: 3824 | D123: KY | E123: Atmos Energy Corporation | H123: Natural Gas | I123: 2021-06-30 | J123: 21798.399 | K123: 12.56 | L123: 7.66 | M123: 10.35 | N123: 57.05 | O123: 596130.007 | S123: Entergy Corporation | T123: 4007889
B124: C-2021-00304 (PRP) | C124: 3868 | D124: KY | E124: Atmos Energy Corporation | H124: Natural Gas | I124: 2021-07-30 | J124: 8101.291 | K124: NA | L124: 7.66 | M124: 10.35 | N124: 57.05 | O124: 67868.665 | S124: Entergy Louisiana, LLC | T124: 4112564
B125: D-22-00010 | C125: 3951 | D125: TN | E125: Atmos Energy Corporation | H125: Natural Gas | I125: 2022-02-01 | J125: 3662.16 | K125: NA | L125: 7.53 | M125: NA | N125: 60.59 | O125: 453913.889 | S125: Entergy Mississippi, LLC | T125: 4008616
S126: Entergy New Orleans, LLC | T126: 4057085
S127: Entergy Texas, Inc. | T127: 4199135
S128: Evergy Kansas Central, Inc. | T128: 4057066
S129: Evergy Metro, Inc. | T129: 4072456
S130: Evergy, Inc. | T130: 8603803
S131: Eversource Energy | T131: 4057052
S132: Exelon Corporation | T132: 4057056
S133: First Solar, Inc. | T133: 4211343
S134: FirstEnergy Corp. | T134: 4056944
S135: FirstEnergy Transmission, LLC | T135: 4346021
S136: Florida Power & Light Company | T136: 4056997
S137: Fortis Inc. | T137: 4082871
S138: FortisAlberta Inc. | T138: 4103468
S139: FortisBC Energy Inc. | T139: 4095656
S140: FortisBC Inc. | T140: 4100140
S141: Georgia Power Company | T141: 4004152
S142: Gulf Power Company | T142: 4057000
S143: Hawaiian Electric Company, Inc. | T143: 4057001
S144: Hawaiian Electric Industries, Inc. | T144: 1031123
S145: IDACORP, Inc. | T145: 4056949
S146: Idaho Power Company | T146: 4057002
S147: Indiana Michigan Power Company | T147: 4057003
S148: Innergex Renewable Energy Inc. | T148: 4215345
S149: Integrys Holding, Inc. | T149: 4057067
S150: Interstate Power and Light Company | T150: 4057087
S151: IPALCO Enterprises, Inc. | T151: 4010657
S152: ITC Holdings Corp. | T152: 4099990
S153: Itron, Inc. | T153: 4092673
S154: Jersey Central Power & Light Company | T154: 4057004
S155: Just Energy Group Inc. | T155: 4302830
S156: Kentucky Power Company | T156: 4057006
S157: Kentucky Utilities Company | T157: 4042397
S158: LG&E and KU Energy LLC | T158: 4057048
S159: Louisville Gas and Electric Company | T159: 4057090
S160: Macquarie Infrastructure Holdings, LLC | T160: 4824125
S161: Madison Gas and Electric Company | T161: 4008754
S162: Maxim Power Corp. | T162: 4100090
S163: MDU Resources Group, Inc. | T163: 4010692
S164: Metropolitan Edison Company | T164: 4057009
S165: MGE Energy, Inc. | T165: 4072883
S166: Michigan Gas Utilities Corporation | T166: 4122218
S167: MidAmerican Energy Company | T167: 4057091
S168: MidAmerican Funding, LLC | T168: 4081927
S169: Mid-Atlantic Interstate Transmission, LLC | T169: 4604463
S170: Minnesota Energy Resources Corporation | T170: 4140737
S171: Mississippi Power Company | T171: 4057010
S172: Monongahela Power Company | T172: 4057011
S173: MYR Group Inc. | T173: 4120398
S174: National Fuel Gas Company | T174: 4010821
S175: Net Zero Renewable Energy Inc. | T175: 4560041
S176: Nevada Power Company | T176: 4061726
S177: New Jersey Natural Gas Company | T177: 4061755
S178: New Jersey Resources Corporation | T178: 4057128
S179: New York State Electric & Gas Corporation | T179: 4004389
S180: Newfoundland Power Inc. | T180: 4099655
S181: NextEra Energy Partners, LP | T181: 4550347
S182: NextEra Energy Resources, LLC | T182: 4060103
S183: NextEra Energy, Inc. | T183: 3010401
S184: NiSource Inc. | T184: 4057051
S185: North Shore Gas Company | T185: 4057130
S186: Northern States Power Company | T186: 4057754
S187: Northern States Power Company | T187: 4061925
S188: Northland Power Inc. | T188: 4156778
S189: Northwest Natural Gas Company | T189: 10344596
S190: Northwest Natural Holding Company | T190: 4057132
S191: NorthWestern Corporation | T191: 4057053
S192: Nova Scotia Power Inc. | T192: 4061963
S193: NRG Energy, Inc. | T193: 4057436
S194: NSTAR Electric Company | T194: 4008369
S195: Ocean Power Technologies, Inc. | T195: 4153733
S196: OGE Energy Corp. | T196: 4057055
S197: Ohio Edison Company | T197: 4014480
S198: Ohio Power Company | T198: 4057015
S199: Oklahoma Gas and Electric Company | T199: 4057016
S200: Oncor Electric Delivery Company LLC | T200: 4080589
S201: ONE Gas, Inc. | T201: 4427129
S202: Orange and Rockland Utilities, Inc. | T202: 4057093
S203: Ormat Technologies, Inc. | T203: 4087066
S204: Otter Tail Corporation | T204: 4057017
S205: Pacific Gas and Electric Company | T205: 4004218
... 88 more rows

Sheet NWN
G2: Utility Financial Profile
D3: Core functionality: | K3: Contact:
D4: This template allows users to look at SEC Financial Data and Ratios for a selected Company. | K4: Please contact Market Intelligence Support with any questions or comments:
D5: Settings: | K5: phone: | L5: +1 (888) 275 2822 (US & Canada)
D6: 1) Select MI Office Add-In manual refresh option. | L6: +44 20 7283 8887 (Europe, Middle East & Africa)
D7: 2) Enable macros while opening the template. | L7: +1 (434) 951-7788 (Latin America)
D8: 3) For best performance, save this file to your computer, close and then reopen. | L8: +852-3177-3727 (Asia-Pacific)
D9: Instructions: | K9: email: | L9: support.MI@spglobal.com
D10: Step 1: Select company in cell G10. | G10: Northwest Natural Holding Company | K10: Disclaimer: Copyright © 2019 S&P Global Market Intelligence LLC (and its affiliates as applicable) – All rights reserved. This model and/or any data in it are provided subject to the written agreement of S&P Global Market Intelligence LLC governing the subscription service to which this model is applied.
D12: Step 2: Enter period in Cell G12. | G12: 2021Y
D13: (Format: yyyyY/yyyyQq, 2008Y/2009Q1)
D14: Step 3: Click "REFRESH" button. | K14: Note :
K15: If you receive a pop up message "there were no results for your query", Click OK.
D17: =IF(X56="","",X56) -> Northwest Natural Holding Company
D18: ="Industry : " & X55 -> Industry : Gas Utility
C20: =[1]!SNLTable(1,NWN!F20:G20,NWN!C24:C35,NWN!F21:G21,,"Options:Curr=USD,Mag=SNLstandard,ConvMethod=SNLrecommended") -> SNLTable | F20: =VLOOKUP(V40,S:T,2,FALSE) -> 4057132 | G20: =F20 -> 4057132
F21: 3000325 | G21: 108462
D23: CREDIT RATINGS | F23: S&P | G23: Moody's
C24: 44941 | D24: LT Issuer Rating | F24: A+ | V24: =SUBSTITUTE(Company_Name,"&","&amp;") -> Northwest Natural Holding Company
C25: 44942 | D25: Direction | F25: Downgrade
C26: 44944 | D26: Date | F26: 2010-01-25
C27: 44949 | D27: Senior Unsecured Rating | G27: (P)Baa1
C28: 44950 | D28: Direction | G28: Downgrade
C29: 44952 | D29: Date | G29: 2019-05-17
C30: 44965 | D30: Senior Secured Rating | F30: AA- | G30: A2 | S30: Intermediate Calculations:
C31: 44966 | D31: Direction | F31: Upgrade | G31: Downgrade | S31: Please do not Edit or Delete Cells in this portion.
C32: 44968 | D32: Date | F32: 2013-02-14 | G32: 2019-05-17
C33: 44945 | D33: Short-Term/ CP Rating | F33: A-1 | G33: P-2
C34: 44946 | D34: Direction | F34: Downgrade | G34: Affirm
C35: 44948 | D35: Date | F35: 2010-01-25 | G35: 2019-05-17
C36: =[1]!SNLTable(1,NWN!F36:J36,NWN!C41:C113,NWN!F37:J37,,"Options:Curr=USD,Mag=SNLstandard,ConvMethod=SNLrecommended") -> SNLTable | F36: =F20 -> 4057132 | G36: =F20 -> 4057132 | H36: =F20 -> 4057132 | I36: =F20 -> 4057132 | J36: =F20 -> 4057132
F37: =IF(RIGHT(G12,1)="Y",G12,REPLACE(G12,5,1,"L")) -> 2021Y | G37: =LEFT(F37,4)-1 & "Y" -> 2020Y | H37: =LEFT(G37,4)-1&"Y" -> 2019Y | I37: =LEFT(H37,4)-1&"Y" -> 2018Y | J37: =LEFT(I37,4)-1&"Y" -> 2017Y
F38: 1 | G38: 1 | H38: 1 | I38: 1 | J38: 1
S39: =[1]!SNLQUERY("Company_Listed") -> SNLQuery
D40: CREDIT RATIOS | F40: =IF(RIGHT(G12,1)="Y",G12,"LTM") -> 2021Y | G40: =G37 -> 2020Y | H40: =H37 -> 2019Y | I40: =I37 -> 2018Y | J40: =J37 -> 2017Y | S40: Advanced Energy Industries, Inc. | T40: 4306705 | V40: =G10 -> Northwest Natural Holding Company
C41: 151 | D41: Period End Date | F41: 2021-12-31 | G41: 2020-12-31 | H41: 2019-12-31 | I41: 2018-12-31 | J41: 2017-12-31 | S41: AEP Generating Company | T41: 4056954 | V41: ="Debt Maturity Schedule ($000)" & " ("&X43& ")" -> Debt Maturity Schedule ($000) (2021Y)
C42: 18857 | D42: Common Equity/ Total Capital (%) | F42: 38.16389712 | G42: 39.84618965 | H42: 45.60037491 | I42: 44.42985395 | J42: 47.10457325 | S42: AEP Texas Inc. | T42: 4056935 | V42: =[1]!SNLTable(1,NWN!X42,NWN!W48:W56,NWN!X43,,"Options:Curr=USD,Mag=SNLstandard,ConvMethod=SNLrecommended") -> SNLTable | X42: =F36 -> 4057132
C43: 18869 | D43: Total Preferred/ Total Capital (%) | F43: 0 | G43: 0 | H43: 0 | I43: 0 | J43: 0 | S43: AEP Transmission Company, LLC | T43: 4341449 | X43: =IF(OR(RIGHT(G12,1)="Y",RIGHT(G12,1)="4"),LEFT(G12,4)&"Y",G37) -> 2021Y
C44: 17861 | D44: Debt/ Total Capital (%) | F44: 61.83610288 | G44: 60.15381035 | H44: 54.39962509 | I44: 55.57014605 | J44: 52.89542675 | S44: AES Indiana | T44: 4024697 | X44: 1
C45: 18861 | D45: Long-term Debt/ Total Capital (%) | F45: 45.87339237 | G45: 42.17621073 | H45: 42.48295908 | I45: 41.14483626 | J45: 43.32543158 | S45: AES Ohio | T45: 4017451
S46: Alabama Power Company | T46: 4014956
C47: 18768 | D47: Pre-Tax Interest Coverage (x) | F47: 3.666704132 | G47: 3.445856174 | H47: 3.361227598 | I47: 3.566259208 | J47: 4.021265256 | S47: Algonquin Power & Utilities Corp. | T47: 4142273
C48: 18778 | D48: Pre-Tax Int Coverage + Pref Divs (x) | F48: 3.666704132 | G48: 3.445856174 | H48: 3.361227598 | I48: 3.566259208 | J48: 4.021265256 | S48: Allegheny Generating Company | T48: 4056955 | V48: Current Year | W48: 7597 | X48: 389845
C49: 7270 | D49: EBITDA/ Interest Expense (x) | F49: 5.936519354 | G49: 5.530288953 | H49: 4.969755183 | I49: 5.766939205 | J49: 6.173319832 | S49: ALLETE, Inc. | T49: 4022309 | V49: Next Year | W49: 7598 | X49: 90000
C50: 11512 | D50: Rec EBITDA / (Int Exp + Prf Div) (x) | F50: 5.936519354 | G50: 5.530288953 | H50: 4.969755183 | I50: 5.766939205 | J50: 6.173319832 | S50: Alliant Energy Corporation | T50: 4057038 | V50: 2Yrs Out | W50: 7599 | X50: 0
S51: AltaGas Ltd. | T51: 4135391 | V51: 3Yrs Out | W51: 7600 | X51: 30000
C52: 18788 | D52: Average Debt/ EBITDA (x) | F52: 5.108166851 | G52: 5.565395439 | H52: 4.499870365 | I52: 3.998428997 | J52: 3.261977683 | S52: AltaLink, L.P. | T52: 4097358 | V52: 4Yrs Out | W52: 7601 | X52: 55000
C53: 18794 | D53: Cash Flow Int + Pref Coverage (x) | F53: 5.577664883 | G53: 5.354617672 | H53: 5.640857444 | I53: 5.451523247 | J53: 6.041544529 | S53: Ameren Corporation | T53: 4007308 | V53: Thereafter | W53: 7602 | X53: 819700
C54: 18792 | D54: Cash Flow/ Avg Total Debt (%) | F54: 15.0954837 | G54: 14.14836253 | H54: 20.75215632 | I54: 19.30518128 | J54: 25.03593666 | S54: Ameren Illinois Company | T54: 4272394 | V54: Other
C55: 11576 | D55: Cash Interest Coverage (x) | F55: 4.604572225 | G55: 4.375406485 | H55: 5.357807192 | I55: 5.554116409 | J55: 6.508287587 | S55: American Electric Power Company, Inc. | T55: 4006321 | V55: Industry Type | W55: 6252 | X55: Gas Utility
S56: American Superconductor Corporation | T56: 4991374 | V56: Company Name | W56: 9 | X56: Northwest Natural Holding Company
C57: 6419 | D57: Current Ratio (x) | F57: 0.6033348741 | G57: 0.5154740282 | H57: 0.6091008829 | I57: 0.5812812817 | J57: 0.7069163284 | S57: American Transmission Systems, Incorporated | T57: 4076262
C58: 4963 | D58: Total Debt/ Total Equity (x) | F58: 1.620277475 | G58: 1.509650255 | H58: 1.192964426 | I58: 1.250738887 | J58: 1.122936121 | S58: Amtech Systems, Inc. | T58: 4963960 | V58: Chart Data
S59: Appalachian Power Company | T59: 4056972 | V59: EBITDA & Interest Coverage Chart
D60: DEBT MATURITY SCHEDULE ($000) | S60: Arizona Public Service Company | T60: 4056974 | V60: EBITDA ($000)
C61: 7597 | D61: Debt Maturing-Current FY | F61: 389845 | G61: 399869 | H61: 224209 | I61: 247609 | J61: 150906 | S61: Ascent Solar Technologies, Inc. | T61: 4229719 | V61: EBITDA/ Interest Expense (x) | X61: =IF(ISNUMBER(F49),F49,NA()) -> 5.936519354 | Y61: =IF(ISNUMBER(G49),G49,NA()) -> 5.530288953 | Z61: =IF(ISNUMBER(H49),H49,NA()) -> 4.969755183 | AA61: =IF(ISNUMBER(I49),I49,NA()) -> 5.766939205 | AB61: =IF(ISNUMBER(J49),J49,NA()) -> 6.173319832
C62: 7598 | D62: Debt Maturing-Next FY | F62: 90000 | G62: 0 | H62: 60000 | I62: 75000 | J62: 30000 | S62: ATCO Ltd. | T62: 4086899 | V62: Liquidity
C63: 7599 | D63: Debt Maturing-FY2 | F63: 0 | G63: 90000 | H63: 0 | I63: 60000 | J63: 75000 | S63: Atlantic City Electric Company | T63: 4056975 | V63: Current Assets ($000)
C64: 7600 | D64: Debt Maturing-FY3 | F64: 30000 | G64: 0 | H64: 90000 | I64: 0 | J64: 60000 | S64: Atlantic Power Corporation | T64: 4098671 | V64: Current Liabilities ($000)
C65: 7601 | D65: Debt Maturing-FY4 | F65: 55000 | G65: 30000 | H65: 0 | I65: 90000 | J65: 0 | S65: Atlantica Sustainable Infrastructure plc | T65: 4545218 | V65: Current Ratio (x) | X65: =IF(ISNUMBER(F57),F57,NA()) -> 0.6033348741 | Y65: =IF(ISNUMBER(G57),G57,NA()) -> 0.5154740282 | Z65: =IF(ISNUMBER(H57),H57,NA()) -> 0.6091008829 | AA65: =IF(ISNUMBER(I57),I57,NA()) -> 0.5812812817 | AB65: =IF(ISNUMBER(J57),J57,NA()) -> 0.7069163284
C66: 7602 | D66: Debt Maturing-Thereafter | F66: 819700 | G66: 740081 | H66: 655955 | I66: 481247 | J66: 518184 | S66: Atmos Energy Corporation | T66: 4057157 | V66: ="Capital Structure " &"("&F40&")" -> Capital Structure (2021Y)
S67: Avangrid, Inc. | T67: 4057045 | V67: ="Commom Equity -" -> Commom Equity - | X67: =F42 -> 38.16389712
D68: INCOME STATEMENT HIGHLIGHTS ($000) | S68: Avista Corporation | T68: 4057075 | V68: ="Total Preferred -" -> Total Preferred - | X68: =F43 -> 0
C69: 18626 | D69: Energy Operating Revenues | F69: 860400 | G69: 773679 | H69: 746372 | I69: 706143 | J69: 755038 | S69: Baltimore Gas and Electric Company | T69: 4007784 | V69: ="Total Debt -" -> Total Debt - | X69: =F44 -> 61.83610288
C70: 18630 | D70: Total Electrical Generation Cost | F70: NA | G70: NA | H70: NA | I70: NA | J70: NA | S70: Berkshire Hathaway Energy Company | T70: 4057049 | V70: Leverage Ratios
C71: 18631 | D71: Gas Cost | F71: 292314 | G71: 262755 | H71: 254911 | I71: 255519 | J71: 324795 | S71: Black Hills Corporation | T71: 4010420 | V71: Average Debt/ EBITDA (x) | X71: =IF(ISNUMBER(F52),F52,NA()) -> 5.108166851 | Y71: =IF(ISNUMBER(G52),G52,NA()) -> 5.565395439 | Z71: =IF(ISNUMBER(H52),H52,NA()) -> 4.499870365 | AA71: =IF(ISNUMBER(I52),I52,NA()) -> 3.998428997 | AB71: =IF(ISNUMBER(J52),J52,NA()) -> 3.261977683
C72: 18632 | D72: O&M Expense | F72: 204227 | G72: 180129 | H72: 178191 | I72: 156698 | J72: 152358 | S72: Black Hills Power, Inc. | T72: 4065694
C73: 18636 | D73: Operating DD&A | F73: 113534 | G73: 103683 | H73: 91496 | I73: 85156 | J73: 81053 | S73: Boralex Inc. | T73: 4082886
C74: 18635 | D74: Other Operating Expenses | F74: 13835 | G74: 13392 | H74: 15587 | I74: 14354 | J74: 0 | S74: Broadwind, Inc. | T74: 4235589
C75: 18634 | D75: Energy Operating Expenses | F75: 697283 | G75: 625328 | H75: 602898 | I75: 573981 | J75: 588845 | S75: Brookfield Renewable Partners L.P. | T75: 4304864
C76: 6200 | D76: EBITDA | F76: 264092 | G76: 238090 | H76: 212134 | I76: 213717 | J76: 231660 | S76: Calpine Corporation | T76: 4056958
C77: 28017 | D77: Recurring EBITDA | F77: 264092 | G77: 238090 | H77: 212134 | I77: 213717 | J77: 231660 | S77: Canadian Solar Inc. | T77: 4246977
C78: 4424 | D78: Net Income before Taxes | F78: 106072 | G78: 91355 | H78: 77953 | I78: 91502 | J78: 113081 | S78: Canadian Utilities Limited | T78: 4142320
C79: 4427 | D79: Income Taxes | F79: 27406 | G79: 21082 | H79: 12642 | I79: 24191 | J79: 41008 | S79: Capital Power Corporation | T79: 4237697
C80: 4429 | D80: Total Minority Interest Expense | F80: 0 | G80: 0 | H80: 0 | I80: 0 | J80: 0 | S80: Capstone Green Energy Corporation | T80: 4103085
C81: 4430 | D81: Net Income before Extraordinary | F81: 78666 | G81: 70273 | H81: 65311 | I81: 67311 | J81: 72073 | S81: Capstone Infrastructure Corporation | T81: 4166117
C82: 833 | D82: Net Income | F82: 78666 | G82: 76781 | H82: 61735 | I82: 64569 | J82: -55623 | S82: Caribbean Utilities Company, Ltd. | T82: 4276419
C83: 47814 | D83: Net Income Attributable to Noncontrolling Int | F83: 0 | G83: 0 | H83: 0 | I83: 0 | J83: 0 | S83: CenterPoint Energy Houston Electric, LLC | T83: 4057059
C84: 47813 | D84: Net Income Attributable to Parent | F84: 78666 | G84: 76781 | H84: 61735 | I84: 64569 | J84: -55623 | S84: CenterPoint Energy Resources Corp. | T84: 4057141
S85: CenterPoint Energy, Inc. | T85: 4074390
D86: BALANCE SHEET HIGHLIGHTS ($000) | S86: Central Hudson Gas & Electric Corporation | T86: 4057076
C87: 6359 | D87: Total Current Assets | F87: 437276 | G87: 323245 | H87: 293692 | I87: 295921 | J87: 269936 | S87: Central Maine Power Company | T87: 4056978
C88: 18807 | D88: Net PP&E | F88: 2946419 | G88: 2732216 | H88: 2441849 | I88: 2421372 | J88: 2244158 | S88: CH Energy Group, Inc. | T88: 4057039
C89: 18851 | D89: Long-term Energy Risk-mgmt Asset | F89: 10730 | G89: 6135 | H89: 3337 | I89: 725 | J89: 1306 | S89: Chesapeake Utilities Corporation | T89: 4057113
C90: 18823 | D90: Total Noncurrent Investments | F90: 89278 | G90: 83743 | H90: 63333 | I90: 63558 | J90: 66363 | S90: Clearway Energy, Inc. | T90: 4393379
C91: 3706 | D91: Total Intangible Assets | F91: 70570 | G91: 69225 | H91: 49929 | I91: 8954 | J91: 0 | S91: Cleco Corporate Holdings LLC | T91: 4056937
C92: 220 | D92: Total Assets | F92: 4064604 | G92: 3756379 | H92: 3428454 | I92: 3242662 | J92: 3039746 | S92: Cleco Power LLC | T92: 4056982
C93: 6361 | D93: Total Current Liabilities | F93: 724765 | G93: 627083 | H93: 482173 | I93: 509084 | J93: 381850 | S93: CMS Energy Corporation | T93: 4004172
C94: 6148 | D94: Non-current Long-term Debt | F94: 1124055 | G94: 940702 | H94: 806796 | I94: 706247 | J94: 683184 | S94: Commonwealth Edison Company | T94: 4000672
C95: 18082 | D95: Other Liabilities | F95: 114979 | G95: 120767 | H95: 123388 | I95: 147763 | J95: 147335 | S95: Connecticut Natural Gas Corporation | T95: 4059402
C96: 845 | D96: Total Debt | F96: 1515196 | G96: 1341676 | H96: 1033106 | I96: 953856 | J96: 834090 | S96: Consolidated Edison Company of New York, Inc. | T96: 4057080
C97: 49691 | D97: Equity Attributable to Parent Company | F97: 935146 | G97: 888733 | H97: 865999 | I97: 762634 | J97: 742776 | S97: Consolidated Edison, Inc. | T97: 4057041
C98: 47772 | D98: Non-Controlling Interests | F98: 0 | G98: 0 | H98: 0 | I98: 0 | J98: 0 | S98: Constellation Energy Corporation | T98: 4072145
C99: 3800 | D99: Total Equity | F99: 935146 | G99: 888733 | H99: 865999 | I99: 762634 | J99: 742776 | S99: Consumers Energy Company | T99: 4057081
C100: 18081 | D100: Total Mezzanine Level Items | F100: 0 | G100: 0 | H100: 0 | I100: 0 | J100: 0 | S100: Corning Natural Gas Holding Corporation | T100: 4420429
C101: 17860 | D101: Total Capitalization, at Book | F101: 2450342 | G101: 2230409 | H101: 1899105 | I101: 1716490 | J101: 1576866 | S101: Covanta Holding Corporation | T101: 103347
S102: Delmarva Power & Light Company | T102: 4057082
D103: CASH FLOW HIGHLIGHTS ($000) | S103: Dominion Energy South Carolina, Inc. | T103: 4057099
C104: 4991 | D104: Operating Cash Flow | F104: 160353 | G104: 145318 | H104: 186013 | I104: 168771 | J104: 206704 | S104: Dominion Energy, Inc. | T104: 4001616
C105: 4993 | D105: Investing Cash Flow | F105: -300123 | G105: -294277 | H105: -303781 | I105: -217453 | J105: -214172 | S105: DPL Inc. | T105: 4057043
C106: 4992 | D106: Financing Cash Flow | F106: 131436 | G106: 171777 | H106: 115498 | I106: 57843 | J106: 7419 | S106: DTE Electric Company | T106: 4057083
C107: 4994 | D107: Other Cash Flow | F107: 0 | G107: 0 | H107: 0 | I107: 0 | J107: 0 | S107: DTE Energy Company | T107: 4057044
C108: 4995 | D108: Net Increase in Cash | F108: -8334 | G108: 22818 | H108: -2270 | I108: 9161 | J108: -49 | S108: DTE Gas Company | T108: 4057126
S109: Duke Energy Carolinas, LLC | T109: 4004320
D110: PROFITABILITY RATIOS (%) | S110: Duke Energy Corporation | T110: 4121470
C111: 281 | D111: ROAA | F111: 2.045684842 | G111: 2.067703411 | H111: 1.897141642 | I111: 2.11032045 | J111: -1.808702987 | S111: Duke Energy Florida, LLC | T111: 4056998
C112: 284 | D112: ROAE | F112: 8.591390071 | G112: 8.735330499 | H112: 7.415708034 | I112: 8.546477402 | J112: -6.576061536 | S112: Duke Energy Indiana, LLC | T112: 4062444
C113: 18791 | D113: Return on Capital | F113: 3.473628451 | G113: 3.483654927 | H113: 3.454546739 | I113: 4.010405975 | J113: -3.473158892 | S113: Duke Energy Kentucky, Inc. | T113: 4057103
B114: =COUNT(C:C)-72 -> 5 | S114: Duke Energy Ohio, Inc. | T114: 4057079
B115: =[1]!SNLQUERY("PendingCases",D118:O118) -> SNLQuery | S115: Duke Energy Progress, LLC | T115: 4004192
D116: Pending Rate Cases | J116: Requested | S116: Eastern Energy Gas Holdings, LLC | T116: 4430002
B117: Docket Number | C117: Rate Case OID | D117: State | E117: Company Name | F117: Ultimate Parent Ticker | G117: Docket Number | H117: Service Type | I117: Initial Filing Date (mm/dd/yyyy) | J117: Rate Change Amount ($000) | K117: Rate Change/Revenue (%) | L117: Return on Rate Base (%) | M117: Return on Equity (%) | N117: Equity Ratio (% of Total Capital) | O117: Rate Base ($000) | S117: Edison International | T117: 4056943
D118: 238539 | E118: 238108 | F118: 238112 | G118: =HYPERLINK("http://www.snl.com/interactivex/RateCaseProfile.aspx?ID="&C118,B118) -> 0 | H118: 238116 | I118: 238118 | J118: 238121 | K118: 238122 | L118: 238124 | M118: 238123 | N118: 238125 | O118: 238127 | S118: El Paso Electric Company | T118: 4056994
D119: PENDING RATE CASES | J119: REQUESTED | S119: Emera Incorporated | T119: 4072693
B120: Docket Number | C120: Rate Case OID | D120: State | E120: Company Name | F120: Ultimate Parent Ticker | G120: Docket Number | H120: Service Type | I120: Initial Filing Date (mm/dd/yyyy) | J120: Rate Change Amount ($000) | K120: Rate Change/Revenue (%) | L120: Return on Rate Base (%) | M120: Return on Equity (%) | N120: Equity Ratio (% of Total Capital) | O120: Rate Base ($000) | S120: Enbridge Gas Inc. | T120: 13585952
B121: D-22-ATMG-203-TAR (GSRS) | C121: 3913 | D121: KS | E121: Atmos Energy Corporation | G121: =HYPERLINK("http://www.snl.com/interactivex/RateCaseProfile.aspx?ID="&C121,B121) -> D-22-ATMG-203-TAR (GSRS) | H121: Natural Gas | I121: 2021-11-04 | J121: 1829.05 | K121: NA | L121: NA | M121: NA | N121: NA | O121: 35886.643 | S121: Enphase Energy, Inc. | T121: 4990825
B122: D-22-ATMG-299-TAR (SIP) | C122: 3940 | D122: KS | E122: Atmos Energy Corporation | H122: Natural Gas | I122: 2022-01-14 | J122: 622.905 | K122: NA | L122: NA | M122: NA | N122: NA | O122: 5880.503 | S122: Entergy Arkansas, LLC | T122: 4056995
B123: C-2021-00214 | C123: 3824 | D123: KY | E123: Atmos Energy Corporation | H123: Natural Gas | I123: 2021-06-30 | J123: 21798.399 | K123: 12.56 | L123: 7.66 | M123: 10.35 | N123: 57.05 | O123: 596130.007 | S123: Entergy Corporation | T123: 4007889
B124: C-2021-00304 (PRP) | C124: 3868 | D124: KY | E124: Atmos Energy Corporation | H124: Natural Gas | I124: 2021-07-30 | J124: 8101.291 | K124: NA | L124: 7.66 | M124: 10.35 | N124: 57.05 | O124: 67868.665 | S124: Entergy Louisiana, LLC | T124: 4112564
B125: D-22-00010 | C125: 3951 | D125: TN | E125: Atmos Energy Corporation | H125: Natural Gas | I125: 2022-02-01 | J125: 3662.16 | K125: NA | L125: 7.53 | M125: NA | N125: 60.59 | O125: 453913.889 | S125: Entergy Mississippi, LLC | T125: 4008616
S126: Entergy New Orleans, LLC | T126: 4057085
S127: Entergy Texas, Inc. | T127: 4199135
S128: Evergy Kansas Central, Inc. | T128: 4057066
S129: Evergy Metro, Inc. | T129: 4072456
S130: Evergy, Inc. | T130: 8603803
S131: Eversource Energy | T131: 4057052
S132: Exelon Corporation | T132: 4057056
S133: First Solar, Inc. | T133: 4211343
S134: FirstEnergy Corp. | T134: 4056944
S135: FirstEnergy Transmission, LLC | T135: 4346021
S136: Florida Power & Light Company | T136: 4056997
S137: Fortis Inc. | T137: 4082871
S138: FortisAlberta Inc. | T138: 4103468
S139: FortisBC Energy Inc. | T139: 4095656
S140: FortisBC Inc. | T140: 4100140
S141: Georgia Power Company | T141: 4004152
S142: Gulf Power Company | T142: 4057000
S143: Hawaiian Electric Company, Inc. | T143: 4057001
S144: Hawaiian Electric Industries, Inc. | T144: 1031123
S145: IDACORP, Inc. | T145: 4056949
S146: Idaho Power Company | T146: 4057002
S147: Indiana Michigan Power Company | T147: 4057003
S148: Innergex Renewable Energy Inc. | T148: 4215345
S149: Integrys Holding, Inc. | T149: 4057067
S150: Interstate Power and Light Company | T150: 4057087
S151: IPALCO Enterprises, Inc. | T151: 4010657
S152: ITC Holdings Corp. | T152: 4099990
S153: Itron, Inc. | T153: 4092673
S154: Jersey Central Power & Light Company | T154: 4057004
S155: Just Energy Group Inc. | T155: 4302830
S156: Kentucky Power Company | T156: 4057006
S157: Kentucky Utilities Company | T157: 4042397
S158: LG&E and KU Energy LLC | T158: 4057048
S159: Louisville Gas and Electric Company | T159: 4057090
S160: Macquarie Infrastructure Holdings, LLC | T160: 4824125
S161: Madison Gas and Electric Company | T161: 4008754
S162: Maxim Power Corp. | T162: 4100090
S163: MDU Resources Group, Inc. | T163: 4010692
S164: Metropolitan Edison Company | T164: 4057009
S165: MGE Energy, Inc. | T165: 4072883
S166: Michigan Gas Utilities Corporation | T166: 4122218
S167: MidAmerican Energy Company | T167: 4057091
S168: MidAmerican Funding, LLC | T168: 4081927
S169: Mid-Atlantic Interstate Transmission, LLC | T169: 4604463
S170: Minnesota Energy Resources Corporation | T170: 4140737
S171: Mississippi Power Company | T171: 4057010
S172: Monongahela Power Company | T172: 4057011
S173: MYR Group Inc. | T173: 4120398
S174: National Fuel Gas Company | T174: 4010821
S175: Net Zero Renewable Energy Inc. | T175: 4560041
S176: Nevada Power Company | T176: 4061726
S177: New Jersey Natural Gas Company | T177: 4061755
S178: New Jersey Resources Corporation | T178: 4057128
S179: New York State Electric & Gas Corporation | T179: 4004389
S180: Newfoundland Power Inc. | T180: 4099655
S181: NextEra Energy Partners, LP | T181: 4550347
S182: NextEra Energy Resources, LLC | T182: 4060103
S183: NextEra Energy, Inc. | T183: 3010401
S184: NiSource Inc. | T184: 4057051
S185: North Shore Gas Company | T185: 4057130
S186: Northern States Power Company | T186: 4057754
S187: Northern States Power Company | T187: 4061925
S188: Northland Power Inc. | T188: 4156778
S189: Northwest Natural Gas Company | T189: 10344596
S190: Northwest Natural Holding Company | T190: 4057132
S191: NorthWestern Corporation | T191: 4057053
S192: Nova Scotia Power Inc. | T192: 4061963
S193: NRG Energy, Inc. | T193: 4057436
S194: NSTAR Electric Company | T194: 4008369
S195: Ocean Power Technologies, Inc. | T195: 4153733
S196: OGE Energy Corp. | T196: 4057055
S197: Ohio Edison Company | T197: 4014480
S198: Ohio Power Company | T198: 4057015
S199: Oklahoma Gas and Electric Company | T199: 4057016
S200: Oncor Electric Delivery Company LLC | T200: 4080589
S201: ONE Gas, Inc. | T201: 4427129
S202: Orange and Rockland Utilities, Inc. | T202: 4057093
S203: Ormat Technologies, Inc. | T203: 4087066
S204: Otter Tail Corporation | T204: 4057017
S205: Pacific Gas and Electric Company | T205: 4004218
... 88 more rows

Sheet OGS
G2: Utility Financial Profile
D3: Core functionality: | K3: Contact:
D4: This template allows users to look at SEC Financial Data and Ratios for a selected Company. | K4: Please contact Market Intelligence Support with any questions or comments:
D5: Settings: | K5: phone: | L5: +1 (888) 275 2822 (US & Canada)
D6: 1) Select MI Office Add-In manual refresh option. | L6: +44 20 7283 8887 (Europe, Middle East & Africa)
D7: 2) Enable macros while opening the template. | L7: +1 (434) 951-7788 (Latin America)
D8: 3) For best performance, save this file to your computer, close and then reopen. | L8: +852-3177-3727 (Asia-Pacific)
D9: Instructions: | K9: email: | L9: support.MI@spglobal.com
D10: Step 1: Select company in cell G10. | G10: ONE Gas, Inc. | K10: Disclaimer: Copyright © 2019 S&P Global Market Intelligence LLC (and its affiliates as applicable) – All rights reserved. This model and/or any data in it are provided subject to the written agreement of S&P Global Market Intelligence LLC governing the subscription service to which this model is applied.
D12: Step 2: Enter period in Cell G12. | G12: 2021Y
D13: (Format: yyyyY/yyyyQq, 2008Y/2009Q1)
D14: Step 3: Click "REFRESH" button. | K14: Note :
K15: If you receive a pop up message "there were no results for your query", Click OK.
D17: =IF(X56="","",X56) -> ONE Gas, Inc.
D18: ="Industry : " & X55 -> Industry : Gas Utility
C20: =[1]!SNLTable(1,OGS!F20:G20,OGS!C24:C35,OGS!F21:G21,,"Options:Curr=USD,Mag=SNLstandard,ConvMethod=SNLrecommended") -> SNLTable | F20: =VLOOKUP(V40,S:T,2,FALSE) -> 4427129 | G20: =F20 -> 4427129
F21: 3000325 | G21: 108462
D23: CREDIT RATINGS | F23: S&P | G23: Moody's
C24: 44941 | D24: LT Issuer Rating | F24: BBB+ | V24: =SUBSTITUTE(Company_Name,"&","&amp;") -> ONE Gas, Inc.
C25: 44942 | D25: Direction | F25: Downgrade
C26: 44944 | D26: Date | F26: 2021-02-23
C27: 44949 | D27: Senior Unsecured Rating | F27: BBB+ | G27: A3
C28: 44950 | D28: Direction | F28: Downgrade | G28: Affirm
C29: 44952 | D29: Date | F29: 2021-02-23 | G29: 2022-02-15
C30: 44965 | D30: Senior Secured Rating | S30: Intermediate Calculations:
C31: 44966 | D31: Direction | S31: Please do not Edit or Delete Cells in this portion.
C32: 44968 | D32: Date
C33: 44945 | D33: Short-Term/ CP Rating | F33: A-2 | G33: P-2
C34: 44946 | D34: Direction | F34: Downgrade | G34: Affirm
C35: 44948 | D35: Date | F35: 2021-02-23 | G35: 2022-02-15
C36: =[1]!SNLTable(1,OGS!F36:J36,OGS!C41:C113,OGS!F37:J37,,"Options:Curr=USD,Mag=SNLstandard,ConvMethod=SNLrecommended") -> SNLTable | F36: =F20 -> 4427129 | G36: =F20 -> 4427129 | H36: =F20 -> 4427129 | I36: =F20 -> 4427129 | J36: =F20 -> 4427129
F37: =IF(RIGHT(G12,1)="Y",G12,REPLACE(G12,5,1,"L")) -> 2021Y | G37: =LEFT(F37,4)-1 & "Y" -> 2020Y | H37: =LEFT(G37,4)-1&"Y" -> 2019Y | I37: =LEFT(H37,4)-1&"Y" -> 2018Y | J37: =LEFT(I37,4)-1&"Y" -> 2017Y
F38: 1 | G38: 1 | H38: 1 | I38: 1 | J38: 1
S39: =[1]!SNLQUERY("Company_Listed") -> SNLQuery
D40: CREDIT RATIOS | F40: =IF(RIGHT(G12,1)="Y",G12,"LTM") -> 2021Y | G40: =G37 -> 2020Y | H40: =H37 -> 2019Y | I40: =I37 -> 2018Y | J40: =J37 -> 2017Y | S40: Advanced Energy Industries, Inc. | T40: 4306705 | V40: =G10 -> ONE Gas, Inc.
C41: 151 | D41: Period End Date | F41: 2021-12-31 | G41: 2020-12-31 | H41: 2019-12-31 | I41: 2018-12-31 | J41: 2017-12-31 | S41: AEP Generating Company | T41: 4056954 | V41: ="Debt Maturity Schedule ($000)" & " ("&X43& ")" -> Debt Maturity Schedule ($000) (2021Y)
C42: 18857 | D42: Common Equity/ Total Capital (%) | F42: 35.82635851 | G42: 52.28076738 | H42: 53.68497908 | I42: 56.30813871 | J42: 55.83544996 | S42: AEP Texas Inc. | T42: 4056935 | V42: =[1]!SNLTable(1,OGS!X42,OGS!W48:W56,OGS!X43,,"Options:Curr=USD,Mag=SNLstandard,ConvMethod=SNLrecommended") -> SNLTable | X42: =F36 -> 4427129
C43: 18869 | D43: Total Preferred/ Total Capital (%) | F43: 0 | G43: 0 | H43: 0 | I43: 0 | J43: 0 | S43: AEP Transmission Company, LLC | T43: 4341449 | X43: =IF(OR(RIGHT(G12,1)="Y",RIGHT(G12,1)="4"),LEFT(G12,4)&"Y",G37) -> 2021Y
C44: 17861 | D44: Debt/ Total Capital (%) | F44: 64.17364149 | G44: 47.71923262 | H44: 46.31502092 | I44: 43.69186129 | J44: 44.16455004 | S44: AES Indiana | T44: 4024697 | X44: 1
C45: 18861 | D45: Long-term Debt/ Total Capital (%) | F45: 56.53729504 | G45: 37.76491398 | H45: 33.12944005 | I45: 35.43580274 | J45: 33.98925396 | S45: AES Ohio | T45: 4017451
S46: Alabama Power Company | T46: 4014956
C47: 18768 | D47: Pre-Tax Interest Coverage (x) | F47: 4.810126975 | G47: 4.550123679 | H47: 4.388430612 | I47: 5.272443104 | J47: 6.455273617 | S47: Algonquin Power & Utilities Corp. | T47: 4142273
C48: 18778 | D48: Pre-Tax Int Coverage + Pref Divs (x) | F48: 4.810126975 | G48: 4.550123679 | H48: 4.388430612 | I48: 5.272443104 | J48: 6.455273617 | S48: Allegheny Generating Company | T48: 4056955 | V48: Current Year | W48: 7597 | X48: 494000
C49: 7270 | D49: EBITDA/ Interest Expense (x) | F49: 8.528614783 | G49: 7.925397968 | H49: 7.540993283 | I49: 8.520728974 | J49: 9.857635949 | S49: ALLETE, Inc. | T49: 4022309 | V49: Next Year | W49: 7598 | X49: 1400000
C50: 11512 | D50: Rec EBITDA / (Int Exp + Prf Div) (x) | F50: 8.528614783 | G50: 7.925397968 | H50: 7.540993283 | I50: 8.520728974 | J50: 9.857635949 | S50: Alliant Energy Corporation | T50: 4057038 | V50: 2Yrs Out | W50: 7599 | X50: 1000000
S51: AltaGas Ltd. | T51: 4135391 | V51: 3Yrs Out | W51: 7600 | X51: 0
C52: 18788 | D52: Average Debt/ EBITDA (x) | F52: 7.658775842 | G52: 3.735170638 | H52: 3.524213416 | I52: 3.36972185 | J52: 2.951446788 | S52: AltaLink, L.P. | T52: 4097358 | V52: 4Yrs Out | W52: 7601 | X52: 0
C53: 18794 | D53: Cash Flow Int + Pref Coverage (x) | F53: 1.764577293 | G53: 7.101986358 | H53: 6.046090278 | I53: 7.110063066 | J53: 6.541791501 | S53: Ameren Corporation | T53: 4007308 | V53: Thereafter | W53: 7602 | X53: 1283378
C54: 18792 | D54: Cash Flow/ Avg Total Debt (%) | F54: 1.252060954 | G54: 21.99800696 | H54: 20.38077916 | I54: 22.69040344 | J54: 20.28818409 | S54: Ameren Illinois Company | T54: 4272394 | V54: Other
C55: 11576 | D55: Cash Interest Coverage (x) | F55: -24.46652626 | G55: 6.831533477 | H55: 5.951181379 | I55: 10.11595361 | J55: 6.509605992 | S55: American Electric Power Company, Inc. | T55: 4006321 | V55: Industry Type | W55: 6252 | X55: Gas Utility
S56: American Superconductor Corporation | T56: 4991374 | V56: Company Name | W56: 9 | X56: ONE Gas, Inc.
C57: 6419 | D57: Current Ratio (x) | F57: 2.268821909 | G57: 0.6773092755 | H57: 0.5800166602 | I57: 0.7773558395 | J57: 0.8747478948 | S57: American Transmission Systems, Incorporated | T57: 4076262
C58: 4963 | D58: Total Debt/ Total Equity (x) | F58: 1.791240979 | G58: 0.9127492767 | H58: 0.8627184311 | I58: 0.7759422047 | J58: 0.7909768805 | S58: Amtech Systems, Inc. | T58: 4963960 | V58: Chart Data
S59: Appalachian Power Company | T59: 4056972 | V59: EBITDA & Interest Coverage Chart
D60: DEBT MATURITY SCHEDULE ($000) | S60: Arizona Public Service Company | T60: 4056974 | V60: EBITDA ($000)
C61: 7597 | D61: Debt Maturing-Current FY | F61: 494000 | G61: 418225 | H61: 516500 | I61: 299500 | J61: 357223 | S61: Ascent Solar Technologies, Inc. | T61: 4229719 | V61: EBITDA/ Interest Expense (x) | X61: =IF(ISNUMBER(F49),F49,NA()) -> 8.528614783 | Y61: =IF(ISNUMBER(G49),G49,NA()) -> 7.925397968 | Z61: =IF(ISNUMBER(H49),H49,NA()) -> 7.540993283 | AA61: =IF(ISNUMBER(I49),I49,NA()) -> 8.520728974 | AB61: =IF(ISNUMBER(J49),J49,NA()) -> 9.857635949
C62: 7598 | D62: Debt Maturing-Next FY | F62: 1400000 | G62: 0 | H62: 0 | I62: 0 | J62: 300000 | S62: ATCO Ltd. | T62: 4086899 | V62: Liquidity
C63: 7599 | D63: Debt Maturing-FY2 | F63: 1000000 | G63: 0 | H63: 0 | I63: 0 | J63: 0 | S63: Atlantic City Electric Company | T63: 4056975 | V63: Current Assets ($000)
C64: 7600 | D64: Debt Maturing-FY3 | F64: 0 | G64: 300000 | H64: 0 | I64: 0 | J64: 0 | S64: Atlantic Power Corporation | T64: 4098671 | V64: Current Liabilities ($000)
C65: 7601 | D65: Debt Maturing-FY4 | F65: 0 | G65: 0 | H65: 300000 | I65: 0 | J65: 0 | S65: Atlantica Sustainable Infrastructure plc | T65: 4545218 | V65: Current Ratio (x) | X65: =IF(ISNUMBER(F57),F57,NA()) -> 2.268821909 | Y65: =IF(ISNUMBER(G57),G57,NA()) -> 0.6773092755 | Z65: =IF(ISNUMBER(H57),H57,NA()) -> 0.5800166602 | AA65: =IF(ISNUMBER(I57),I57,NA()) -> 0.7773558395 | AB65: =IF(ISNUMBER(J57),J57,NA()) -> 0.8747478948
C66: 7602 | D66: Debt Maturing-Thereafter | F66: 1283378 | G66: 1282428 | H66: 986064 | I66: 1285483 | J66: 893257 | S66: Atmos Energy Corporation | T66: 4057157 | V66: ="Capital Structure " &"("&F40&")" -> Capital Structure (2021Y)
S67: Avangrid, Inc. | T67: 4057045 | V67: ="Commom Equity -" -> Commom Equity - | X67: =F42 -> 35.82635851
D68: INCOME STATEMENT HIGHLIGHTS ($000) | S68: Avista Corporation | T68: 4057075 | V68: ="Total Preferred -" -> Total Preferred - | X68: =F43 -> 0
C69: 18626 | D69: Energy Operating Revenues | F69: 1808597 | G69: 1530268 | H69: 1652730 | I69: 1633731 | J69: 1539633 | S69: Baltimore Gas and Electric Company | T69: 4007784 | V69: ="Total Debt -" -> Total Debt - | X69: =F44 -> 64.17364149
C70: 18630 | D70: Total Electrical Generation Cost | F70: NA | G70: NA | H70: NA | I70: NA | J70: NA | S70: Berkshire Hathaway Energy Company | T70: 4057049 | V70: Leverage Ratios
C71: 18631 | D71: Gas Cost | F71: NA | G71: NA | H71: NA | I71: NA | J71: NA | S71: Black Hills Corporation | T71: 4010420 | V71: Average Debt/ EBITDA (x) | X71: =IF(ISNUMBER(F52),F52,NA()) -> 7.658775842 | Y71: =IF(ISNUMBER(G52),G52,NA()) -> 3.735170638 | Z71: =IF(ISNUMBER(H52),H52,NA()) -> 3.524213416 | AA71: =IF(ISNUMBER(I52),I52,NA()) -> 3.36972185 | AB71: =IF(ISNUMBER(J52),J52,NA()) -> 2.951446788
C72: 18632 | D72: O&M Expense | F72: 449676 | G72: 431115 | H72: 429126 | I72: 411702 | J72: 399290 | S72: Black Hills Power, Inc. | T72: 4065694
C73: 18636 | D73: Operating DD&A | F73: 207233 | G73: 194881 | H73: 180395 | I73: 160086 | J73: 151889 | S73: Boralex Inc. | T73: 4082886
C74: 18635 | D74: Other Operating Expenses | F74: NA | G74: NA | H74: NA | I74: NA | J74: NA | S74: Broadwind, Inc. | T74: 4235589
C75: 18634 | D75: Energy Operating Expenses | F75: 1498339 | G75: 1226752 | H75: 1357472 | I75: 1345302 | J75: 1222905 | S75: Brookfield Renewable Partners L.P. | T75: 4304864
C76: 6200 | D76: EBITDA | F76: 514284 | G76: 495377 | H76: 472677 | I76: 437156 | J76: 454092 | S76: Calpine Corporation | T76: 4056958
C77: 28017 | D77: Recurring EBITDA | F77: 514284 | G77: 495377 | H77: 472677 | I77: 437156 | J77: 454092 | S77: Canadian Solar Inc. | T77: 4246977
C78: 4424 | D78: Net Income before Taxes | F78: 246750 | G78: 237991 | H78: 229601 | I78: 225765 | J78: 256138 | S78: Canadian Utilities Limited | T78: 4142320
C79: 4427 | D79: Income Taxes | F79: 40316 | G79: 41579 | H79: 42852 | I79: 53531 | J79: 93143 | S79: Capital Power Corporation | T79: 4237697
C80: 4429 | D80: Total Minority Interest Expense | F80: 0 | G80: 0 | H80: 0 | I80: 0 | J80: 0 | S80: Capstone Green Energy Corporation | T80: 4103085
C81: 4430 | D81: Net Income before Extraordinary | F81: 206434 | G81: 196412 | H81: 186749 | I81: 172234 | J81: 162995 | S81: Capstone Infrastructure Corporation | T81: 4166117
C82: 833 | D82: Net Income | F82: 206434 | G82: 196412 | H82: 186749 | I82: 172234 | J82: 162995 | S82: Caribbean Utilities Company, Ltd. | T82: 4276419
C83: 47814 | D83: Net Income Attributable to Noncontrolling Int | F83: 0 | G83: 0 | H83: 0 | I83: 0 | J83: 0 | S83: CenterPoint Energy Houston Electric, LLC | T83: 4057059
C84: 47813 | D84: Net Income Attributable to Parent | F84: 206434 | G84: 196412 | H84: 186749 | I84: 172234 | J84: 162995 | S84: CenterPoint Energy Resources Corp. | T84: 4057141
S85: CenterPoint Energy, Inc. | T85: 4074390
D86: BALANCE SHEET HIGHLIGHTS ($000) | S86: Central Hudson Gas & Electric Corporation | T86: 4057076
C87: 6359 | D87: Total Current Assets | F87: 2224564 | G87: 539869 | H87: 506202 | I87: 543287 | J87: 588994 | S87: Central Maine Power Company | T87: 4056978
C88: 18807 | D88: Net PP&E | F88: 5221735 | G88: 4904257 | H88: 4599426 | I88: 4283712 | J88: 4007585 | S88: CH Energy Group, Inc. | T88: 4057039
C89: 18851 | D89: Long-term Energy Risk-mgmt Asset | F89: NA | G89: NA | H89: NA | I89: NA | J89: NA | S89: Chesapeake Utilities Corporation | T89: 4057113
C90: 18823 | D90: Total Noncurrent Investments | F90: 0 | G90: 0 | H90: 0 | I90: 0 | J90: 0 | S90: Clearway Energy, Inc. | T90: 4393379
C91: 3706 | D91: Total Intangible Assets | F91: 157953 | G91: 157953 | H91: 157953 | I91: 157953 | J91: 157953 | S91: Cleco Corporate Holdings LLC | T91: 4056937
C92: 220 | D92: Total Assets | F92: 8402120 | G92: 6028712 | H92: 5708300 | I92: 5468642 | J92: 5206878 | S92: Cleco Power LLC | T92: 4056982
C93: 6361 | D93: Total Current Liabilities | F93: 980493 | G93: 797079 | H93: 872737 | I93: 698891 | J93: 673330 | S93: CMS Energy Corporation | T93: 4004172
C94: 6148 | D94: Non-current Long-term Debt | F94: 3707778 | G94: 1613228 | H94: 1314064 | I94: 1285483 | J94: 1193257 | S94: Commonwealth Edison Company | T94: 4000672
C95: 18082 | D95: Other Liabilities | F95: 80879 | G95: 83088 | H95: 90302 | I95: 89600 | J95: 87778 | S95: Connecticut Natural Gas Corporation | T95: 4059402
C96: 845 | D96: Total Debt | F96: 4208578 | G96: 2038453 | H96: 1837064 | I96: 1584983 | J96: 1550480 | S96: Consolidated Edison Company of New York, Inc. | T96: 4057080
C97: 49691 | D97: Equity Attributable to Parent Company | F97: 2349532 | G97: 2233311 | H97: 2129390 | I97: 2042656 | J97: 1960209 | S97: Consolidated Edison, Inc. | T97: 4057041
C98: 47772 | D98: Non-Controlling Interests | F98: 0 | G98: 0 | H98: 0 | I98: 0 | J98: 0 | S98: Constellation Energy Corporation | T98: 4072145
C99: 3800 | D99: Total Equity | F99: 2349532 | G99: 2233311 | H99: 2129390 | I99: 2042656 | J99: 1960209 | S99: Consumers Energy Company | T99: 4057081
C100: 18081 | D100: Total Mezzanine Level Items | F100: 0 | G100: 0 | H100: 0 | I100: 0 | J100: 0 | S100: Corning Natural Gas Holding Corporation | T100: 4420429
C101: 17860 | D101: Total Capitalization, at Book | F101: 6558110 | G101: 4271764 | H101: 3966454 | I101: 3627639 | J101: 3510689 | S101: Covanta Holding Corporation | T101: 103347
S102: Delmarva Power & Light Company | T102: 4057082
D103: CASH FLOW HIGHLIGHTS ($000) | S103: Dominion Energy South Carolina, Inc. | T103: 4057099
C104: 4991 | D104: Operating Cash Flow | F104: -1535657 | G104: 364500 | H104: 310345 | I104: 467694 | J104: 253800 | S104: Dominion Energy, Inc. | T104: 4001616
C105: 4993 | D105: Investing Cash Flow | F105: -501083 | G105: -470372 | H105: -422932 | I105: -394450 | J105: -355743 | S105: DPL Inc. | T105: 4057043
C106: 4992 | D106: Financing Cash Flow | F106: 2037599 | G106: 96012 | H106: 109117 | I106: -66334 | J106: 101693 | S106: DTE Electric Company | T106: 4057083
C107: 4994 | D107: Other Cash Flow | F107: 0 | G107: 0 | H107: 0 | I107: 0 | J107: 0 | S107: DTE Energy Company | T107: 4057044
C108: 4995 | D108: Net Increase in Cash | F108: 859 | G108: -9860 | H108: -3470 | I108: 6910 | J108: -250 | S108: DTE Gas Company | T108: 4057126
S109: Duke Energy Carolinas, LLC | T109: 4004320
D110: PROFITABILITY RATIOS (%) | S110: Duke Energy Corporation | T110: 4121470
C111: 281 | D111: ROAA | F111: 2.56337161 | G111: 3.417526988 | H111: 3.381212372 | I111: 3.325345167 | J111: 3.291348589 | S111: Duke Energy Florida, LLC | T111: 4056998
C112: 284 | D112: ROAE | F112: 8.955548437 | G112: 8.96616228 | H112: 8.891595398 | I112: 8.546163213 | J112: 8.429928691 | S112: Duke Energy Indiana, LLC | T112: 4062444
C113: 18791 | D113: Return on Capital | F113: 3.306180354 | G113: 4.860589235 | H113: 4.958682239 | I113: 4.937290938 | J113: 4.978837763 | S113: Duke Energy Kentucky, Inc. | T113: 4057103
B114: =COUNT(C:C)-72 -> 5 | S114: Duke Energy Ohio, Inc. | T114: 4057079
B115: =[1]!SNLQUERY("PendingCases",D118:O118) -> SNLQuery | S115: Duke Energy Progress, LLC | T115: 4004192
D116: Pending Rate Cases | J116: Requested | S116: Eastern Energy Gas Holdings, LLC | T116: 4430002
B117: Docket Number | C117: Rate Case OID | D117: State | E117: Company Name | F117: Ultimate Parent Ticker | G117: Docket Number | H117: Service Type | I117: Initial Filing Date (mm/dd/yyyy) | J117: Rate Change Amount ($000) | K117: Rate Change/Revenue (%) | L117: Return on Rate Base (%) | M117: Return on Equity (%) | N117: Equity Ratio (% of Total Capital) | O117: Rate Base ($000) | S117: Edison International | T117: 4056943
D118: 238539 | E118: 238108 | F118: 238112 | G118: =HYPERLINK("http://www.snl.com/interactivex/RateCaseProfile.aspx?ID="&C118,B118) -> 0 | H118: 238116 | I118: 238118 | J118: 238121 | K118: 238122 | L118: 238124 | M118: 238123 | N118: 238125 | O118: 238127 | S118: El Paso Electric Company | T118: 4056994
D119: PENDING RATE CASES | J119: REQUESTED | S119: Emera Incorporated | T119: 4072693
B120: Docket Number | C120: Rate Case OID | D120: State | E120: Company Name | F120: Ultimate Parent Ticker | G120: Docket Number | H120: Service Type | I120: Initial Filing Date (mm/dd/yyyy) | J120: Rate Change Amount ($000) | K120: Rate Change/Revenue (%) | L120: Return on Rate Base (%) | M120: Return on Equity (%) | N120: Equity Ratio (% of Total Capital) | O120: Rate Base ($000) | S120: Enbridge Gas Inc. | T120: 13585952
B121: D-22-ATMG-203-TAR (GSRS) | C121: 3913 | D121: KS | E121: Atmos Energy Corporation | G121: =HYPERLINK("http://www.snl.com/interactivex/RateCaseProfile.aspx?ID="&C121,B121) -> D-22-ATMG-203-TAR (GSRS) | H121: Natural Gas | I121: 2021-11-04 | J121: 1829.05 | K121: NA | L121: NA | M121: NA | N121: NA | O121: 35886.643 | S121: Enphase Energy, Inc. | T121: 4990825
B122: D-22-ATMG-299-TAR (SIP) | C122: 3940 | D122: KS | E122: Atmos Energy Corporation | H122: Natural Gas | I122: 2022-01-14 | J122: 622.905 | K122: NA | L122: NA | M122: NA | N122: NA | O122: 5880.503 | S122: Entergy Arkansas, LLC | T122: 4056995
B123: C-2021-00214 | C123: 3824 | D123: KY | E123: Atmos Energy Corporation | H123: Natural Gas | I123: 2021-06-30 | J123: 21798.399 | K123: 12.56 | L123: 7.66 | M123: 10.35 | N123: 57.05 | O123: 596130.007 | S123: Entergy Corporation | T123: 4007889
B124: C-2021-00304 (PRP) | C124: 3868 | D124: KY | E124: Atmos Energy Corporation | H124: Natural Gas | I124: 2021-07-30 | J124: 8101.291 | K124: NA | L124: 7.66 | M124: 10.35 | N124: 57.05 | O124: 67868.665 | S124: Entergy Louisiana, LLC | T124: 4112564
B125: D-22-00010 | C125: 3951 | D125: TN | E125: Atmos Energy Corporation | H125: Natural Gas | I125: 2022-02-01 | J125: 3662.16 | K125: NA | L125: 7.53 | M125: NA | N125: 60.59 | O125: 453913.889 | S125: Entergy Mississippi, LLC | T125: 4008616
S126: Entergy New Orleans, LLC | T126: 4057085
S127: Entergy Texas, Inc. | T127: 4199135
S128: Evergy Kansas Central, Inc. | T128: 4057066
S129: Evergy Metro, Inc. | T129: 4072456
S130: Evergy, Inc. | T130: 8603803
S131: Eversource Energy | T131: 4057052
S132: Exelon Corporation | T132: 4057056
S133: First Solar, Inc. | T133: 4211343
S134: FirstEnergy Corp. | T134: 4056944
S135: FirstEnergy Transmission, LLC | T135: 4346021
S136: Florida Power & Light Company | T136: 4056997
S137: Fortis Inc. | T137: 4082871
S138: FortisAlberta Inc. | T138: 4103468
S139: FortisBC Energy Inc. | T139: 4095656
S140: FortisBC Inc. | T140: 4100140
S141: Georgia Power Company | T141: 4004152
S142: Gulf Power Company | T142: 4057000
S143: Hawaiian Electric Company, Inc. | T143: 4057001
S144: Hawaiian Electric Industries, Inc. | T144: 1031123
S145: IDACORP, Inc. | T145: 4056949
S146: Idaho Power Company | T146: 4057002
S147: Indiana Michigan Power Company | T147: 4057003
S148: Innergex Renewable Energy Inc. | T148: 4215345
S149: Integrys Holding, Inc. | T149: 4057067
S150: Interstate Power and Light Company | T150: 4057087
S151: IPALCO Enterprises, Inc. | T151: 4010657
S152: ITC Holdings Corp. | T152: 4099990
S153: Itron, Inc. | T153: 4092673
S154: Jersey Central Power & Light Company | T154: 4057004
S155: Just Energy Group Inc. | T155: 4302830
S156: Kentucky Power Company | T156: 4057006
S157: Kentucky Utilities Company | T157: 4042397
S158: LG&E and KU Energy LLC | T158: 4057048
S159: Louisville Gas and Electric Company | T159: 4057090
S160: Macquarie Infrastructure Holdings, LLC | T160: 4824125
S161: Madison Gas and Electric Company | T161: 4008754
S162: Maxim Power Corp. | T162: 4100090
S163: MDU Resources Group, Inc. | T163: 4010692
S164: Metropolitan Edison Company | T164: 4057009
S165: MGE Energy, Inc. | T165: 4072883
S166: Michigan Gas Utilities Corporation | T166: 4122218
S167: MidAmerican Energy Company | T167: 4057091
S168: MidAmerican Funding, LLC | T168: 4081927
S169: Mid-Atlantic Interstate Transmission, LLC | T169: 4604463
S170: Minnesota Energy Resources Corporation | T170: 4140737
S171: Mississippi Power Company | T171: 4057010
S172: Monongahela Power Company | T172: 4057011
S173: MYR Group Inc. | T173: 4120398
S174: National Fuel Gas Company | T174: 4010821
S175: Net Zero Renewable Energy Inc. | T175: 4560041
S176: Nevada Power Company | T176: 4061726
S177: New Jersey Natural Gas Company | T177: 4061755
S178: New Jersey Resources Corporation | T178: 4057128
S179: New York State Electric & Gas Corporation | T179: 4004389
S180: Newfoundland Power Inc. | T180: 4099655
S181: NextEra Energy Partners, LP | T181: 4550347
S182: NextEra Energy Resources, LLC | T182: 4060103
S183: NextEra Energy, Inc. | T183: 3010401
S184: NiSource Inc. | T184: 4057051
S185: North Shore Gas Company | T185: 4057130
S186: Northern States Power Company | T186: 4057754
S187: Northern States Power Company | T187: 4061925
S188: Northland Power Inc. | T188: 4156778
S189: Northwest Natural Gas Company | T189: 10344596
S190: Northwest Natural Holding Company | T190: 4057132
S191: NorthWestern Corporation | T191: 4057053
S192: Nova Scotia Power Inc. | T192: 4061963
S193: NRG Energy, Inc. | T193: 4057436
S194: NSTAR Electric Company | T194: 4008369
S195: Ocean Power Technologies, Inc. | T195: 4153733
S196: OGE Energy Corp. | T196: 4057055
S197: Ohio Edison Company | T197: 4014480
S198: Ohio Power Company | T198: 4057015
S199: Oklahoma Gas and Electric Company | T199: 4057016
S200: Oncor Electric Delivery Company LLC | T200: 4080589
S201: ONE Gas, Inc. | T201: 4427129
S202: Orange and Rockland Utilities, Inc. | T202: 4057093
S203: Ormat Technologies, Inc. | T203: 4087066
S204: Otter Tail Corporation | T204: 4057017
S205: Pacific Gas and Electric Company | T205: 4004218
... 88 more rows

Sheet Balance Sheet
A2: South Jersey Industries, Inc. | Balance Sheet
A3: NYSE:SJI (MI KEY: 4057145; SPCIQ KEY: 303963)
A5: Source: SNL Financial
A6: Period Category: Fiscal
A7: Period Type: Quarters
A8: Reporting Basis: Current/Restated
A9: Sort Order: Latest on Right
A10: Currency: Reported Currency
A11: Magnitude: Thousands (K)
A14: SNL Financial | B14: 2018 FQ1 | C14: 2018 FQ2 | D14: 2018 FQ3 | E14: 2018 FQ4 | F14: 2019 FQ1 | G14: 2019 FQ2 | H14: 2019 FQ3 | I14: 2019 FQ4 | J14: 2020 FQ1 | K14: 2020 FQ2 | L14: 2020 FQ3 | M14: 2020 FQ4 | N14: 2021 FQ1 | O14: 2021 FQ2 | P14: 2021 FQ3 | Q14: 2021 FQ4
B15: Current/Restated | C15: Current/Restated | D15: Current/Restated | E15: Current/Restated | F15: Current/Restated | G15: Current/Restated | H15: Current/Restated | I15: Current/Restated | J15: Current/Restated | K15: Current/Restated | L15: Current/Restated | M15: Current/Restated | N15: Current/Restated | O15: Current/Restated | P15: Current/Restated | Q15: Current/Restated
A16: Fiscal Period Ended | B16: 2018-03-31 | C16: 2018-06-30 | D16: 2018-09-30 | E16: 2018-12-31 | F16: 2019-03-31 | G16: 2019-06-30 | H16: 2019-09-30 | I16: 2019-12-31 | J16: 2020-03-31 | K16: 2020-06-30 | L16: 2020-09-30 | M16: 2020-12-31 | N16: 2021-03-31 | O16: 2021-06-30 | P16: 2021-09-30 | Q16: 2021-12-31
A17: Period Restated? | B17: No | C17: No | D17: No | E17: No | F17: No | G17: No | H17: No | I17: No | J17: No | K17: No | L17: No | M17: No | N17: No | O17: No | P17: No | Q17: No
A18: Restatement Date | B18: NA | C18: NA | D18: NA | E18: NA | F18: NA | G18: NA | H18: NA | I18: NA | J18: NA | K18: NA | L18: NA | M18: NA | N18: NA | O18: NA | P18: NA | Q18: NA
A19: Accounting Principle | B19: U.S. GAAP | C19: U.S. GAAP | D19: U.S. GAAP | E19: U.S. GAAP | F19: U.S. GAAP | G19: U.S. GAAP | H19: U.S. GAAP | I19: U.S. GAAP | J19: U.S. GAAP | K19: U.S. GAAP | L19: U.S. GAAP | M19: U.S. GAAP | N19: U.S. GAAP | O19: U.S. GAAP | P19: U.S. GAAP | Q19: U.S. GAAP
A20: Financials Reported Currency Code | B20: USD | C20: USD | D20: USD | E20: USD | F20: USD | G20: USD | H20: USD | I20: USD | J20: USD | K20: USD | L20: USD | M20: USD | N20: USD | O20: USD | P20: USD | Q20: USD
A22: Current Assets ($000)
A23: Cash and Cash Equivalents | B23: 6312 | C23: 22420 | D23: 3314 | E23: 30030 | F23: 10360 | G23: 12193 | H23: 4602 | I23: 6417 | J23: 10339 | K23: 7267 | L23: 10103 | M23: 34045 | N23: 30386 | O23: 87899 | P23: 25415 | Q23: 28754
A24: Gross Trade Accounts Receivable | B24: 243395 | C24: 196601 | D24: 220561 | E24: 337502 | F24: 317917 | G24: 223314 | H24: 179108 | I24: 253661 | J24: 262850 | K24: 231434 | L24: 167534 | M24: 278723 | N24: 327832 | O24: 259045 | P24: 272286 | Q24: 343835
A25: Trade Accounts Receivable Allowance | B25: 14684 | C25: 13983 | D25: 20292 | E25: 18842 | F25: 20753 | G25: 20508 | H25: 20954 | I25: 19829 | J25: 23533 | K25: 30410 | L25: 33017 | M25: 30582 | N25: 35855 | O25: 42233 | P25: 43065 | Q25: 41763
A26: Net Customer and Trade Accounts Receivable | B26: 228711 | C26: 182618 | D26: 200269 | E26: 318660 | F26: 297164 | G26: 202806 | H26: 158154 | I26: 233832 | J26: 239317 | K26: 201024 | L26: 134517 | M26: 248141 | N26: 291977 | O26: 216812 | P26: 229221 | Q26: 302072
A27: Other Accounts Receivable | B27: 3848 | C27: 2907 | D27: 3552 | E27: 1945 | F27: 2566 | G27: 2804 | H27: 3847 | I27: 5379 | J27: 2799 | K27: 2649 | L27: 2875 | M27: 2847 | N27: 2536 | O27: 1957 | P27: 4340 | Q27: 5695
A28: Accounts Receivable | B28: 232559 | C28: 185525 | D28: 203821 | E28: 320605 | F28: 299730 | G28: 205610 | H28: 162001 | I28: 239211 | J28: 242116 | K28: 203673 | L28: 137392 | M28: 250988 | N28: 294513 | O28: 218769 | P28: 233561 | Q28: 307767
A29: Unbilled Revenue | B29: 62601 | C29: 24464 | D29: 29313 | E29: 79538 | F29: 68155 | G29: 21253 | H29: 18714 | I29: 84821 | J29: 51973 | K29: 16148 | L29: 22712 | M29: 85423 | N29: 68155 | O29: 30800 | P29: 26783 | Q29: 87357
A30: Current Inventories | B30: 37655 | C30: 48286 | D30: 88947 | E30: 62168 | F30: 28357 | G30: 51182 | H30: 66202 | I30: 55317 | J30: 32214 | K30: 41622 | L30: 52667 | M30: 42001 | N30: 20549 | O30: 41580 | P30: 66391 | Q30: 60797
A31: Prepaid Expense | B31: 49993 | C31: 49947 | D31: 54888 | E31: 57242 | F31: 47393 | G31: 75038 | H31: 79039 | I31: 70410 | J31: 54705 | K31: 82091 | L31: 75415 | M31: 52932 | N31: 36771 | O31: 64459 | P31: 77816 | Q31: 59246
A32: Current Investments | B32: 0 | C32: 0 | D32: 0 | E32: 0 | F32: 0 | G32: 0 | H32: 0 | I32: 0 | J32: 0 | K32: 0 | L32: 0 | M32: 0 | N32: 0 | O32: 0 | P32: 0 | Q32: 0
A33: Short-term Energy Risk-mgmt Assets | B33: 0 | C33: 0 | D33: 0 | E33: 0 | F33: 0 | G33: 0 | H33: 0 | I33: 0 | J33: 0 | K33: 0 | L33: 0 | M33: 0 | N33: 0 | O33: 0 | P33: 0 | Q33: 0
A34: Deferred Taxes, Current | B34: 0 | C34: 0 | D34: 0 | E34: 0 | F34: 0 | G34: 0 | H34: 0 | I34: 0 | J34: 0 | K34: 0 | L34: 0 | M34: 0 | N34: 0 | O34: 0 | P34: 0 | Q34: 0
A35: Other Current Assets | B35: 24386 | C35: 2093894 | D35: 357036 | E35: 113609 | F35: 66712 | G35: 63684 | H35: 74538 | I35: 196332 | J35: 70949 | K35: 71969 | L35: 56538 | M35: 41439 | N35: 38541 | O35: 83511 | P35: 141690 | Q35: 95041
A37: Current Assets | B37: 413506 | C37: 2424536 | D37: 737319 | E37: 663192 | F37: 520707 | G37: 428960 | H37: 405096 | I37: 652508 | J37: 462296 | K37: 422770 | L37: 354827 | M37: 506828 | N37: 488915 | O37: 527018 | P37: 571656 | Q37: 638962
A39: Property, Plant and Equipment ($000)
A40: Gas PP&E in Service, Gross | B40: 2696087 | C40: 2748076 | D40: 4200565 | E40: 4192240 | F40: 4427438 | G40: 4660845 | H40: 4776014 | I40: 4704200 | J40: 5000554 | K40: 5040204 | L40: 5150209 | M40: 5192098 | N40: 5350943 | O40: 5451720 | P40: 5566423 | Q40: 5565083
A41: Gas and Oil Properties | B41: 0 | C41: 0 | D41: 0 | E41: 0 | F41: 0 | G41: 0 | H41: 0 | I41: 0 | J41: 0 | K41: 0 | L41: 0 | M41: 0 | N41: 0 | O41: 0 | P41: 0 | Q41: 0
A42: Gas in Storage | B42: 0 | C42: 0 | D42: 0 | E42: 0 | F42: 0 | G42: 0 | H42: 0 | I42: 0 | J42: 0 | K42: 0 | L42: 0 | M42: 0 | N42: 0 | O42: 0 | P42: 0 | Q42: 0
A43: Other PP&E in Service, Gross | B43: 745826 | C43: 171983 | D43: 161250 | E43: 152232 | F43: 152270 | G43: 151628 | H43: 151826 | I43: 25991 | J43: 26571 | K43: 29086 | L43: 88911 | M43: 147764 | N43: 149606 | O43: 168514 | P43: 183294 | Q43: 240503
A44: PP&E in Service, Gross | B44: 3441913 | C44: 2920059 | D44: 4361815 | E44: 4344472 | F44: 4579708 | G44: 4812473 | H44: 4927840 | I44: 4730191 | J44: 5027125 | K44: 5069290 | L44: 5239120 | M44: 5339862 | N44: 5500549 | O44: 5620234 | P44: 5749717 | Q44: 5805586
A45: Total Accumulated Depreciation | B45: 710166 | C45: 558751 | D45: 831712 | E45: 839872 | F45: 853629 | G45: 870832 | H45: 898955 | I45: 857805 | J45: 874212 | K45: 895506 | L45: 921573 | M45: 949191 | N45: 975551 | O45: 986570 | P45: 1008288 | Q45: 1010986
A46: Net PP&E in Service | B46: 2731747 | C46: 2361308 | D46: 3530103 | E46: 3504600 | F46: 3726079 | G46: 3941641 | H46: 4028885 | I46: 3872386 | J46: 4152913 | K46: 4173784 | L46: 4317547 | M46: 4390671 | N46: 4524998 | O46: 4633664 | P46: 4741429 | Q46: 4794600
A47: Construction Work in Progress | B47: NA | C47: NA | D47: NA | E47: 148873 | F47: NA | G47: NA | H47: NA | I47: 201150 | J47: NA | K47: NA | L47: NA | M47: 73563 | N47: NA | O47: NA | P47: NA | Q47: 117722
A48: Other Net PP&E | B48: 0 | C48: 0 | D48: 0 | E48: 0 | F48: 2700 | G48: 2300 | H48: 1900 | I48: 1863 | J48: 2000 | K48: 1900 | L48: 1600 | M48: 1929 | N48: NA | O48: NA | P48: NA | Q48: 16733
A50: Net PP&E | B50: 2731747 | C50: 2361308 | D50: 3530103 | E50: 3653473 | F50: 3728779 | G50: 3943941 | H50: 4030785 | I50: 4075399 | J50: 4154913 | K50: 4175684 | L50: 4319147 | M50: 4466163 | N50: 4524998 | O50: 4633664 | P50: 4741429 | Q50: 4929055
A52: Other Assets ($000)
A53: Securities - Noncurrent | B53: 36 | C53: 36 | D53: 36 | E53: 41 | F53: 41 | G53: 41 | H53: 41 | I53: 40 | J53: 40 | K53: 40 | L53: 40 | M53: 32 | N53: 32 | O53: 32 | P53: 32 | Q53: 37
A54: Other Investments | B54: 16713 | C54: 10664 | D54: 10002 | E54: 1649 | F54: 7649 | G54: 19019 | H54: 16271 | I54: 21964 | J54: 21694 | K54: 11402 | L54: 199 | M54: 7786 | N54: 1482 | O54: 34 | P54: 34 | Q54: 686
A55: Investment in Partnerships | B55: 66970 | C55: 72426 | D55: 74811 | E55: 76122 | F55: 79243 | G55: 81759 | H55: 84162 | I55: 87087 | J55: 89952 | K55: 91323 | L55: 92945 | M55: 106230 | N55: 112936 | O55: 32509 | P55: 36157 | Q55: 38509
A56: Noncurrent Investments | B56: 83719 | C56: 83126 | D56: 84849 | E56: 77812 | F56: 86933 | G56: 100819 | H56: 100474 | I56: 109091 | J56: 111686 | K56: 102765 | L56: 93184 | M56: 114048 | N56: 114450 | O56: 32575 | P56: 36223 | Q56: 39232
A57: Goodwill | B57: 3578 | C57: 3578 | D57: 759826 | E57: 734607 | F57: 734607 | G57: 703864 | H57: 705707 | I57: 702070 | J57: 702070 | K57: 702070 | L57: 706960 | M57: 706960 | N57: 706960 | O57: 706960 | P57: 706960 | Q57: 706960
A58: Intangible Assets other than Goodwill | B58: 12240 | C58: 12000 | D58: NA | E58: 28160 | F58: 26700 | G58: 25100 | H58: 26000 | I58: 13867 | J58: 12547 | K58: 11227 | L58: 14357 | M58: 17258 | N58: 15701 | O58: 16118 | P58: 14731 | Q58: 14043
A59: Total Intangible Assets | B59: 15818 | C59: 15578 | D59: NA | E59: 762767 | F59: 761307 | G59: 728964 | H59: 731707 | I59: 715937 | J59: 714617 | K59: 713297 | L59: 721317 | M59: 724218 | N59: 722661 | O59: 723078 | P59: 721691 | Q59: 721003
A60: Long-term Energy Risk-mgmt Assets | B60: 0 | C60: 0 | D60: 0 | E60: 0 | F60: 0 | G60: 0 | H60: 0 | I60: 0 | J60: 0 | K60: 0 | L60: 0 | M60: 0 | N60: 0 | O60: 0 | P60: 0 | Q60: 0
A61: Deferred Taxes, Noncurrent | B61: NA | C61: NA | D61: NA | E61: NA | F61: NA | G61: NA | H61: NA | I61: NA | J61: NA | K61: NA | L61: NA | M61: NA | N61: NA | O61: NA | P61: NA | Q61: NA
A62: Regulatory Assets | B62: 491629 | C62: 476635 | D62: 628977 | E62: 662969 | F62: 624187 | G62: 682264 | H62: 719426 | I62: 665932 | J62: 699426 | K62: 648769 | L62: 659724 | M62: 673992 | N62: 650710 | O62: 670176 | P62: 669487 | Q62: 672416
A63: Total Other Assets | B63: 153661 | C63: 148314 | D63: 173448 | E63: 136364 | F63: 141449 | G63: 143314 | H63: 142565 | I63: 146473 | J63: 151552 | K63: 153669 | L63: 160724 | M63: 203899 | N63: 212774 | O63: 246598 | P63: 283525 | Q63: 308004
A65: Total Assets | B65: 3890080 | C65: 5509497 | D65: 5914522 | E65: 5956577 | F65: 5863362 | G65: 6028262 | H65: 6130053 | I65: 6365340 | J65: 6294490 | K65: 6216954 | L65: 6308923 | M65: 6689148 | N65: 6714508 | O65: 6833109 | P65: 7024011 | Q65: 7308672
A66: Tangible Assets | B66: 3874262 | C66: 5493919 | D66: NA | E66: 5193810 | F66: 5102055 | G66: 5299298 | H66: 5398346 | I66: 5649403 | J66: 5579873 | K66: 5503657 | L66: 5587606 | M66: 5964930 | N66: 5991847 | O66: 6110031 | P66: 6302320 | Q66: 6587669
A68: Current Liabilities ($000)
A69: Short-term Debt | B69: 248100 | C69: 336400 | D69: 421400 | E69: 270500 | F69: 355121 | G69: 680002 | H69: 812300 | I69: 848700 | J69: 697300 | K69: 452800 | L69: 597000 | M69: 596400 | N69: 171300 | O69: 24700 | P69: 142500 | Q69: 334000
A70: Current Portion of Long-term Debt | B70: 263809 | C70: 1368809 | D70: 1482734 | E70: 733909 | F70: 335553 | G70: 480428 | H70: 340235 | I70: 469079 | J70: 471370 | K70: 118668 | L70: 143390 | M70: 143420 | N70: 142801 | O70: 90976 | P70: 66076 | Q70: 66834
A71: Short-term and Current Long-term Debt | B71: 511909 | C71: 1705209 | D71: 1904134 | E71: 1004409 | F71: 690674 | G71: 1160430 | H71: 1152535 | I71: 1317779 | J71: 1168670 | K71: 571468 | L71: 740390 | M71: 739820 | N71: 314101 | O71: 115676 | P71: 208576 | Q71: 400834
A72: Current Portion of Preferred Equity | B72: 0 | C72: 0 | D72: 0 | E72: 0 | F72: 0 | G72: 0 | H72: 0 | I72: 0 | J72: 0 | K72: 0 | L72: 0 | M72: 0 | N72: 0 | O72: 0 | P72: 0 | Q72: 0
A73: Accrued Interest Payable | B73: 7790 | C73: 13016 | D73: 12125 | E73: 14208 | F73: 13962 | G73: 13895 | H73: 18242 | I73: 13580 | J73: 19305 | K73: 16455 | L73: 27187 | M73: 21140 | N73: 31664 | O73: 23384 | P73: 36442 | Q73: 23611
A74: Income Taxes Payable | B74: NA | C74: NA | D74: NA | E74: NA | F74: NA | G74: NA | H74: NA | I74: NA | J74: NA | K74: NA | L74: NA | M74: NA | N74: NA | O74: NA | P74: NA | Q74: NA
A75: Customer Security Deposits | B75: 29356 | C75: 28913 | D75: 35109 | E75: 32058 | F75: 26434 | G75: 33427 | H75: 37975 | I75: 35004 | J75: 26604 | K75: 29049 | L75: 37697 | M75: 35899 | N75: 29039 | O75: 29072 | P75: 37833 | Q75: 40355
A76: Other Accounts Payable and Accrued Expense | B76: 288832 | C76: 288560 | D76: 411331 | E76: 416344 | F76: 370153 | G76: 318114 | H76: 274943 | I76: 234477 | J76: 224229 | K76: 190697 | L76: 197361 | M76: 262614 | N76: 263091 | O76: 268274 | P76: 340442 | Q76: 335101
A77: Accounts Payable and Accrued Expense | B77: 325978 | C77: 330489 | D77: 458565 | E77: 462610 | F77: 410549 | G77: 365436 | H77: 331160 | I77: 283061 | J77: 270138 | K77: 236201 | L77: 262245 | M77: 319653 | N77: 323794 | O77: 320730 | P77: 414717 | Q77: 399067
A78: Short-term Energy Risk-mgmt Liabilities | B78: 0 | C78: 0 | D78: 0 | E78: 0 | F78: 0 | G78: 0 | H78: 0 | I78: 0 | J78: 0 | K78: 0 | L78: 0 | M78: 0 | N78: 0 | O78: 0 | P78: 0 | Q78: 0
A79: Other Current Liabilities | B79: 86293 | C79: 79120 | D79: 108455 | E79: 113819 | F79: 103832 | G79: 120202 | H79: 124055 | I79: 131055 | J79: 126871 | K79: 118535 | L79: 101070 | M79: 104159 | N79: 114804 | O79: 153195 | P79: 195487 | Q79: 155781
A81: Current Liabilities | B81: 924180 | C81: 2114818 | D81: 2471154 | E81: 1580838 | F81: 1205055 | G81: 1646068 | H81: 1607750 | I81: 1731895 | J81: 1565679 | K81: 926204 | L81: 1103705 | M81: 1163632 | N81: 752699 | O81: 589601 | P81: 818780 | Q81: 955682
A83: Other Liabilities ($000)
A84: Postretirement Benefits | B84: 104262 | C84: 105789 | D84: 114765 | E84: 110112 | F84: 110049 | G84: 111134 | H84: 112061 | I84: 114055 | J84: 114101 | K84: 114422 | L84: 114764 | M84: 135023 | N84: 132199 | O84: 130615 | P84: 128984 | Q84: NA
A85: Deferred Income Tax Liability | B85: 123239 | C85: 91690 | D85: 85840 | E85: 85836 | F85: 111614 | G85: 89450 | H85: 80736 | I85: 92166 | J85: 133452 | K85: 134611 | L85: 116321 | M85: 149534 | N85: 188800 | O85: 181215 | P85: 173242 | Q85: 198901
A86: Deferred Tax Credit | B86: 0 | C86: 0 | D86: 0 | E86: 0 | F86: 0 | G86: 0 | H86: 0 | I86: 0 | J86: 0 | K86: 0 | L86: 0 | M86: 0 | N86: 0 | O86: 0 | P86: 0 | Q86: 0
A87: Deferred Tax Liability | B87: 123239 | C87: 91690 | D87: 85840 | E87: 85836 | F87: 111614 | G87: 89450 | H87: 80736 | I87: 92166 | J87: 133452 | K87: 134611 | L87: 116321 | M87: 149534 | N87: 188800 | O87: 181215 | P87: 173242 | Q87: 198901
A88: Non-current Long-term Debt | B88: 974749 | C88: 1403802 | D88: 1281000 | E88: 2106863 | F88: 2118984 | G88: 1799326 | H88: 2023325 | I88: 2070767 | J88: 2068215 | K88: 2567498 | L88: 2535671 | M88: 2777698 | N88: 3063394 | O88: 3177353 | P88: 3195869 | Q88: 3205068
A89: Long-term Energy Risk-mgmt Liabilities | B89: 0 | C89: 0 | D89: 0 | E89: 0 | F89: 0 | G89: 0 | H89: 0 | I89: 0 | J89: 0 | K89: 0 | L89: 0 | M89: 0 | N89: 0 | O89: 0 | P89: 0 | Q89: 0
A90: Regulatory Liabilities | B90: 300358 | C90: 299382 | D90: 481512 | E90: 478499 | F90: 478592 | G90: 457958 | H90: 442164 | I90: 442918 | J90: 430498 | K90: 434148 | L90: 428939 | M90: 420577 | N90: 418089 | O90: 404826 | P90: 418422 | Q90: 398951
A91: Total Other Liabilities | B91: 181795 | C91: 190299 | D91: 245419 | E91: 327407 | F91: 324514 | G91: 447854 | H91: 447230 | I91: 489754 | J91: 485262 | K91: 373742 | L91: 377570 | M91: 375808 | N91: 416085 | O91: 454675 | P91: 452670 | Q91: 550629
A93: Total Liabilities | B93: 2608583 | C93: 4205780 | D93: 4679690 | E93: 4689555 | F93: 4348808 | G93: 4551790 | H93: 4713266 | I93: 4941555 | J93: 4797207 | K93: 4550625 | L93: 4676970 | M93: 5022272 | N93: 4971266 | O93: 4938285 | P93: 5187967 | Q93: 5309231
A95: Equity ($000)
A96: Total Preferred Equity | B96: 0 | C96: 0 | D96: 0 | E96: 0 | F96: 0 | G96: 0 | H96: 0 | I96: 0 | J96: 0 | K96: 0 | L96: 0 | M96: 0 | N96: 0 | O96: 0 | P96: 0 | Q96: 0
A97: Common Equity | B97: 1281497 | C97: 1303717 | D97: 1234832 | E97: 1267022 | F97: 1514554 | G97: 1476472 | H97: 1416787 | I97: 1423785 | J97: 1497283 | K97: 1666329 | L97: 1631953 | M97: 1660881 | N97: 1737118 | O97: 1887399 | P97: 1828587 | Q97: 1989152
A98: Equity Attributable to Parent Company | B98: 1281497 | C98: 1303717 | D98: 1234832 | E98: 1267022 | F98: 1514554 | G98: 1476472 | H98: 1416787 | I98: 1423785 | J98: 1497283 | K98: 1666329 | L98: 1631953 | M98: 1660881 | N98: 1737118 | O98: 1887399 | P98: 1828587 | Q98: 1989152
A99: Noncontrolling Interests | B99: 0 | C99: 0 | D99: 0 | E99: 0 | F99: 0 | G99: 0 | H99: 0 | I99: 0 | J99: 0 | K99: 0 | L99: 0 | M99: 5995 | N99: 6124 | O99: 7425 | P99: 7457 | Q99: 10289
A101: Total Equity | B101: 1281497 | C101: 1303717 | D101: 1234832 | E101: 1267022 | F101: 1514554 | G101: 1476472 | H101: 1416787 | I101: 1423785 | J101: 1497283 | K101: 1666329 | L101: 1631953 | M101: 1666876 | N101: 1743242 | O101: 1894824 | P101: 1836044 | Q101: 1999441
A103: Tangible Common Equity | B103: 1265679 | C103: 1288139 | D103: NA | E103: 504255 | F103: 753247 | G103: 747508 | H103: 685080 | I103: 707848 | J103: 782666 | K103: 953032 | L103: 910636 | M103: 936663 | N103: 1014457 | O103: 1164321 | P103: 1106896 | Q103: 1268149
A104: Tangible Equity | B104: 1265679 | C104: 1288139 | D104: NA | E104: 504255 | F104: 753247 | G104: 747508 | H104: 685080 | I104: 707848 | J104: 782666 | K104: 953032 | L104: 910636 | M104: 942658 | N104: 1020581 | O104: 1171746 | P104: 1114353 | Q104: 1278438
A106: Capitalization ($000)
A107: Equity & Mezzanine Preferred | B107: 1281497 | C107: 1303717 | D107: 1234832 | E107: 1267022 | F107: 1514554 | G107: 1476472 | H107: 1416787 | I107: 1423785 | J107: 1497283 | K107: 1666329 | L107: 1631953 | M107: 1666876 | N107: 1743242 | O107: 1894824 | P107: 1836044 | Q107: 1999441
A108: Total Debt | B108: 1486658 | C108: 3109011 | D108: 3185134 | E108: 3111272 | F108: 2809658 | G108: 2959756 | H108: 3175860 | I108: 3388546 | J108: 3236885 | K108: 3138966 | L108: 3276061 | M108: 3517518 | N108: 3377495 | O108: 3293029 | P108: 3404445 | Q108: 3605902
A109: Total Capitalization, at Book Value | B109: 2768155 | C109: 4412728 | D109: 4419966 | E109: 4378294 | F109: 4324212 | G109: 4436228 | H109: 4592647 | I109: 4812331 | J109: 4734168 | K109: 4805295 | L109: 4908014 | M109: 5184394 | N109: 5120737 | O109: 5187853 | P109: 5240489 | Q109: 5605343
A111: Share Information
A112: Shares Issued | B112: 79832025 | C112: 85731319 | D112: 85735440 | E112: 85739700 | F112: 92609015 | G112: 92616594 | H112: 92620302 | I112: 92625669 | J112: 92663061 | K112: 100834461 | L112: 100839436 | M112: 100848312 | N112: NA | O112: NA | P112: NA | Q112: 117570471
A113: Treasury Shares | B113: 219136 | C113: 225333 | D113: 229222 | E113: 233482 | F113: 220339 | G113: 226245 | H113: 227426 | I113: 231514 | J113: 219136 | K113: 248411 | L113: 251524 | M113: 256372 | N113: NA | O113: NA | P113: NA | Q113: 229978
A114: Common Shares Outstanding (actual) | B114: 79612889 | C114: 85505986 | D114: 85506218 | E114: 85506218 | F114: 92388676 | G114: 92390349 | H114: 92392876 | I114: 92394155 | J114: 92443925 | K114: 100586050 | L114: 100587912 | M114: 100591940 | N114: 102571850 | O114: 112445978 | P114: 112448495 | Q114: 117340493
A116: S&P Global Market Intelligence uses a variety of sources to retrieve financial information for each company we cover. For Energy companies, S&P Global Market Intelligence mines data from documents filed by the company, surveys, and other sources of public information.

Sheet SJI
G2: Utility Financial Profile
D3: Core functionality: | K3: Contact:
D4: This template allows users to look at SEC Financial Data and Ratios for a selected Company. | K4: Please contact Market Intelligence Support with any questions or comments:
D5: Settings: | K5: phone: | L5: +1 (888) 275 2822 (US & Canada)
D6: 1) Select MI Office Add-In manual refresh option. | L6: +44 20 7283 8887 (Europe, Middle East & Africa)
D7: 2) Enable macros while opening the template. | L7: +1 (434) 951-7788 (Latin America)
D8: 3) For best performance, save this file to your computer, close and then reopen. | L8: +852-3177-3727 (Asia-Pacific)
D9: Instructions: | K9: email: | L9: support.MI@spglobal.com
D10: Step 1: Select company in cell G10. | G10: South Jersey Industries, Inc. | K10: Disclaimer: Copyright © 2019 S&P Global Market Intelligence LLC (and its affiliates as applicable) – All rights reserved. This model and/or any data in it are provided subject to the written agreement of S&P Global Market Intelligence LLC governing the subscription service to which this model is applied.
D12: Step 2: Enter period in Cell G12. | G12: 2021Y
D13: (Format: yyyyY/yyyyQq, 2008Y/2009Q1)
D14: Step 3: Click "REFRESH" button. | K14: Note :
K15: If you receive a pop up message "there were no results for your query", Click OK.
D17: =IF(X56="","",X56) -> South Jersey Industries, Inc.
D18: ="Industry : " & X55 -> Industry : Gas Utility
C20: =[1]!SNLTable(1,SJI!F20:G20,SJI!C24:C35,SJI!F21:G21,,"Options:Curr=USD,Mag=SNLstandard,ConvMethod=SNLrecommended") -> SNLTable | F20: =VLOOKUP(V40,S:T,2,FALSE) -> 4057145 | G20: =F20 -> 4057145
F21: 3000325 | G21: 108462
D23: CREDIT RATINGS | F23: S&P | G23: Moody's
C24: 44941 | D24: LT Issuer Rating | F24: BBB | V24: =SUBSTITUTE(Company_Name,"&","&amp;") -> South Jersey Industries, Inc.
C25: 44942 | D25: Direction
C26: 44944 | D26: Date | F26: 2022-02-25
C27: 44949 | D27: Senior Unsecured Rating
C28: 44950 | D28: Direction | F28: Remove
C29: 44952 | D29: Date | F29: 2017-09-06
C30: 44965 | D30: Senior Secured Rating | S30: Intermediate Calculations:
C31: 44966 | D31: Direction | S31: Please do not Edit or Delete Cells in this portion.
C32: 44968 | D32: Date
C33: 44945 | D33: Short-Term/ CP Rating
C34: 44946 | D34: Direction
C35: 44948 | D35: Date
C36: =[1]!SNLTable(1,SJI!F36:J36,SJI!C41:C113,SJI!F37:J37,,"Options:Curr=USD,Mag=SNLstandard,ConvMethod=SNLrecommended") -> SNLTable | F36: =F20 -> 4057145 | G36: =F20 -> 4057145 | H36: =F20 -> 4057145 | I36: =F20 -> 4057145 | J36: =F20 -> 4057145
F37: =IF(RIGHT(G12,1)="Y",G12,REPLACE(G12,5,1,"L")) -> 2021Y | G37: =LEFT(F37,4)-1 & "Y" -> 2020Y | H37: =LEFT(G37,4)-1&"Y" -> 2019Y | I37: =LEFT(H37,4)-1&"Y" -> 2018Y | J37: =LEFT(I37,4)-1&"Y" -> 2017Y
F38: 1 | G38: 1 | H38: 1 | I38: 1 | J38: 1
S39: =[1]!SNLQUERY("Company_Listed") -> SNLQuery
D40: CREDIT RATIOS | F40: =IF(RIGHT(G12,1)="Y",G12,"LTM") -> 2021Y | G40: =G37 -> 2020Y | H40: =H37 -> 2019Y | I40: =I37 -> 2018Y | J40: =J37 -> 2017Y | S40: Advanced Energy Industries, Inc. | T40: 4306705 | V40: =G10 -> South Jersey Industries, Inc.
C41: 151 | D41: Period End Date | F41: 2021-12-31 | G41: 2020-12-31 | H41: 2019-12-31 | I41: 2018-12-31 | J41: 2017-12-31 | S41: AEP Generating Company | T41: 4056954 | V41: ="Debt Maturity Schedule ($000)" & " ("&X43& ")" -> Debt Maturity Schedule ($000) (2021Y)
C42: 18857 | D42: Common Equity/ Total Capital (%) | F42: 35.4867133 | G42: 32.03616469 | H42: 29.58618183 | I42: 28.93871449 | J42: 43.74822288 | S42: AEP Texas Inc. | T42: 4056935 | V42: =[1]!SNLTable(1,SJI!X42,SJI!W48:W56,SJI!X43,,"Options:Curr=USD,Mag=SNLstandard,ConvMethod=SNLrecommended") -> SNLTable | X42: =F36 -> 4057145
C43: 18869 | D43: Total Preferred/ Total Capital (%) | F43: 0 | G43: 0 | H43: 0 | I43: 0 | J43: 0 | S43: AEP Transmission Company, LLC | T43: 4341449 | X43: =IF(OR(RIGHT(G12,1)="Y",RIGHT(G12,1)="4"),LEFT(G12,4)&"Y",G37) -> 2021Y
C44: 17861 | D44: Debt/ Total Capital (%) | F44: 64.32972969 | G44: 67.84819981 | H44: 70.41381817 | I44: 71.06128551 | J44: 56.25177712 | S44: AES Indiana | T44: 4024697 | X44: 1
C45: 18861 | D45: Long-term Debt/ Total Capital (%) | F45: 57.17880244 | G45: 53.57806525 | H45: 43.03043577 | I45: 48.12063786 | J45: 41.20164352 | S45: AES Ohio | T45: 4017451
S46: Alabama Power Company | T46: 4014956
C47: 18768 | D47: Pre-Tax Interest Coverage (x) | F47: 2.746165343 | G47: 2.380937115 | H47: 1.757601964 | I47: 1.115719412 | J47: 0.157786739 | S47: Algonquin Power & Utilities Corp. | T47: 4142273
C48: 18778 | D48: Pre-Tax Int Coverage + Pref Divs (x) | F48: 2.746165343 | G48: 2.380937115 | H48: 1.757601964 | I48: 1.115719412 | J48: 0.157786739 | S48: Allegheny Generating Company | T48: 4056955 | V48: Current Year | W48: 7597 | X48: 400076
C49: 7270 | D49: EBITDA/ Interest Expense (x) | F49: 3.731636907 | G49: 3.957868628 | H49: 3.023419552 | I49: 2.676464074 | J49: 2.761324719 | S49: ALLETE, Inc. | T49: 4022309 | V49: Next Year | W49: 7598 | X49: 40334
C50: 11512 | D50: Rec EBITDA / (Int Exp + Prf Div) (x) | F50: 3.731636907 | G50: 3.919491454 | H50: 3.089913258 | I50: 3.672089572 | J50: 4.451452267 | S50: Alliant Energy Corporation | T50: 4057038 | V50: 2Yrs Out | W50: 7599 | X50: 65336
S51: AltaGas Ltd. | T51: 4135391 | V51: 3Yrs Out | W51: 7600 | X51: 66337
C52: 18788 | D52: Average Debt/ EBITDA (x) | F52: 7.186231432 | G52: 6.983463429 | H52: 8.80869704 | I52: 10.45110666 | J52: 9.387544917 | S52: AltaLink, L.P. | T52: 4097358 | V52: 4Yrs Out | W52: 7601 | X52: 41430
C53: 18794 | D53: Cash Flow Int + Pref Coverage (x) | F53: 3.189168568 | G53: 3.617257496 | H53: 2.396804598 | I53: 2.345696376 | J53: 3.66253301 | S53: Ameren Corporation | T53: 4007308 | V53: Thereafter | W53: 7602 | X53: 2985938
C54: 18792 | D54: Cash Flow/ Avg Total Debt (%) | F54: 8.163541871 | G54: 9.469220166 | H54: 5.244759345 | I54: 4.810867379 | J54: 10.65634019 | S54: Ameren Illinois Company | T54: 4272394 | V54: Other
C55: 11576 | D55: Cash Interest Coverage (x) | F55: 3.148297019 | G55: 3.629110635 | H55: 2.057435118 | I55: 2.590136883 | J55: 4.52322331 | S55: American Electric Power Company, Inc. | T55: 4006321 | V55: Industry Type | W55: 6252 | X55: Gas Utility
S56: American Superconductor Corporation | T56: 4991374 | V56: Company Name | W56: 9 | X56: South Jersey Industries, Inc.
C57: 6419 | D57: Current Ratio (x) | F57: 0.6685926909 | G57: 0.4355569458 | H57: 0.3767595611 | I57: 0.4195192676 | J57: 0.4971146507 | S57: American Transmission Systems, Incorporated | T57: 4076262
C58: 4963 | D58: Total Debt/ Total Equity (x) | F58: 1.803455066 | G58: 2.110245753 | H58: 2.379956243 | I58: 2.455578514 | J58: 1.285807135 | S58: Amtech Systems, Inc. | T58: 4963960 | V58: Chart Data
S59: Appalachian Power Company | T59: 4056972 | V59: EBITDA & Interest Coverage Chart
D60: DEBT MATURITY SCHEDULE ($000) | S60: Arizona Public Service Company | T60: 4056974 | V60: EBITDA ($000)
C61: 7597 | D61: Debt Maturing-Current FY | F61: 400076 | G61: 739201 | H61: 1316609 | I61: 1004409 | J61: 410209 | S61: Ascent Solar Technologies, Inc. | T61: 4229719 | V61: EBITDA/ Interest Expense (x) | X61: =IF(ISNUMBER(F49),F49,NA()) -> 3.731636907 | Y61: =IF(ISNUMBER(G49),G49,NA()) -> 3.957868628 | Z61: =IF(ISNUMBER(H49),H49,NA()) -> 3.023419552 | AA61: =IF(ISNUMBER(I49),I49,NA()) -> 2.676464074 | AB61: =IF(ISNUMBER(J49),J49,NA()) -> 2.761324719
C62: 7598 | D62: Debt Maturing-Next FY | F62: 40334 | G62: 66229 | H62: 405409 | I62: 377909 | J62: 458909 | S62: ATCO Ltd. | T62: 4086899 | V62: Liquidity
C63: 7599 | D63: Debt Maturing-FY2 | F63: 65336 | G63: 40229 | H63: 66084 | I63: 405409 | J63: 67909 | S63: Atlantic City Electric Company | T63: 4056975 | V63: Current Assets ($000)
C64: 7600 | D64: Debt Maturing-FY3 | F64: 66337 | G64: 65229 | H64: 40084 | I64: 66084 | J64: 27909 | S64: Atlantic Power Corporation | T64: 4098671 | V64: Current Liabilities ($000)
C65: 7601 | D65: Debt Maturing-FY4 | F65: 41430 | G65: 66229 | H65: 65084 | I65: 40084 | J65: 66084 | S65: Atlantica Sustainable Infrastructure plc | T65: 4545218 | V65: Current Ratio (x) | X65: =IF(ISNUMBER(F57),F57,NA()) -> 0.6685926909 | Y65: =IF(ISNUMBER(G57),G57,NA()) -> 0.4355569458 | Z65: =IF(ISNUMBER(H57),H57,NA()) -> 0.3767595611 | AA65: =IF(ISNUMBER(I57),I57,NA()) -> 0.4195192676 | AB65: =IF(ISNUMBER(J57),J57,NA()) -> 0.4971146507
C66: 7602 | D66: Debt Maturing-Thereafter | F66: 2985938 | G66: 2544896 | H66: 1493425 | I66: 1217377 | J66: 502188 | S66: Atmos Energy Corporation | T66: 4057157 | V66: ="Capital Structure " &"("&F40&")" -> Capital Structure (2021Y)
S67: Avangrid, Inc. | T67: 4057045 | V67: ="Commom Equity -" -> Commom Equity - | X67: =F42 -> 35.4867133
D68: INCOME STATEMENT HIGHLIGHTS ($000) | S68: Avista Corporation | T68: 4057075 | V68: ="Total Preferred -" -> Total Preferred - | X68: =F43 -> 0
C69: 18626 | D69: Energy Operating Revenues | F69: 1991996 | G69: 1541383 | H69: 1628626 | I69: 1641338 | J69: 1243068 | S69: Baltimore Gas and Electric Company | T69: 4007784 | V69: ="Total Debt -" -> Total Debt - | X69: =F44 -> 64.32972969
C70: 18630 | D70: Total Electrical Generation Cost | F70: NA | G70: NA | H70: NA | I70: NA | J70: NA | S70: Berkshire Hathaway Energy Company | T70: 4057049 | V70: Leverage Ratios
C71: 18631 | D71: Gas Cost | F71: 296356 | G71: 297094 | H71: 351284 | I71: 258781 | J71: 199660 | S71: Black Hills Corporation | T71: 4010420 | V71: Average Debt/ EBITDA (x) | X71: =IF(ISNUMBER(F52),F52,NA()) -> 7.186231432 | Y71: =IF(ISNUMBER(G52),G52,NA()) -> 6.983463429 | Z71: =IF(ISNUMBER(H52),H52,NA()) -> 8.80869704 | AA71: =IF(ISNUMBER(I52),I52,NA()) -> 10.45110666 | AB71: =IF(ISNUMBER(J52),J52,NA()) -> 9.387544917
C72: 18632 | D72: O&M Expense | F72: 265140 | G72: 272171 | H72: 276093 | I72: 289024 | J72: 189494 | S72: Black Hills Power, Inc. | T72: 4065694
C73: 18636 | D73: Operating DD&A | F73: 131778 | G73: 118715 | H73: 99753 | I73: 96723 | J73: 100718 | S73: Boralex Inc. | T73: 4082886
C74: 18635 | D74: Other Operating Expenses | F74: 948167 | G74: 561841 | H74: 680683 | I74: 796627 | J74: 646567 | S74: Broadwind, Inc. | T74: 4235589
C75: 18634 | D75: Energy Operating Expenses | F75: 1642876 | G75: 1261739 | H75: 1419809 | I75: 1450692 | J75: 1142926 | S75: Brookfield Renewable Partners L.P. | T75: 4304864
C76: 6200 | D76: EBITDA | F76: 474403 | G76: 469142 | H76: 346112 | I76: 241674 | J76: 149164 | S76: Calpine Corporation | T76: 4056958
C77: 28017 | D77: Recurring EBITDA | F77: 474403 | G77: 464593 | H77: 353724 | I77: 331575 | J77: 240463 | S77: Canadian Solar Inc. | T77: 4246977
C78: 4424 | D78: Net Income before Taxes | F78: 135621 | G78: 179961 | H78: 98250 | I78: 18464 | J78: -28341 | S78: Canadian Utilities Limited | T78: 4142320
C79: 4427 | D79: Income Taxes | F79: 47107 | G79: 22664 | H79: 21061 | I79: 561 | J79: -24937 | S79: Capital Power Corporation | T79: 4237697
C80: 4429 | D80: Total Minority Interest Expense | F80: 0 | G80: 0 | H80: 0 | I80: 0 | J80: 0 | S80: Capstone Green Energy Corporation | T80: 4103085
C81: 4430 | D81: Net Income before Extraordinary | F81: 88514 | G81: 157297 | H81: 77189 | I81: 17903 | J81: -3404 | S81: Capstone Infrastructure Corporation | T81: 4166117
C82: 833 | D82: Net Income | F82: 88565 | G82: 157042 | H82: 76917 | I82: 17663 | J82: -3490 | S82: Caribbean Utilities Company, Ltd. | T82: 4276419
C83: 47814 | D83: Net Income Attributable to Noncontrolling Int | F83: 474 | G83: -42 | H83: 0 | I83: 0 | J83: 0 | S83: CenterPoint Energy Houston Electric, LLC | T83: 4057059
C84: 47813 | D84: Net Income Attributable to Parent | F84: 88091 | G84: 157084 | H84: 76917 | I84: 17663 | J84: -3490 | S84: CenterPoint Energy Resources Corp. | T84: 4057141
S85: CenterPoint Energy, Inc. | T85: 4074390
D86: BALANCE SHEET HIGHLIGHTS ($000) | S86: Central Hudson Gas & Electric Corporation | T86: 4057076
C87: 6359 | D87: Total Current Assets | F87: 638962 | G87: 506828 | H87: 652508 | I87: 663192 | J87: 438993 | S87: Central Maine Power Company | T87: 4056978
C88: 18807 | D88: Net PP&E | F88: 4929055 | G88: 4466163 | H88: 4075399 | I88: 3653473 | J88: 2700197 | S88: CH Energy Group, Inc. | T88: 4057039
C89: 18851 | D89: Long-term Energy Risk-mgmt Asset | F89: 0 | G89: 0 | H89: 0 | I89: 0 | J89: 0 | S89: Chesapeake Utilities Corporation | T89: 4057113
C90: 18823 | D90: Total Noncurrent Investments | F90: 39232 | G90: 114048 | H90: 109091 | I90: 77812 | J90: 94204 | S90: Clearway Energy, Inc. | T90: 4393379
C91: 3706 | D91: Total Intangible Assets | F91: 721003 | G91: 724218 | H91: 715937 | I91: 762767 | J91: 16058 | S91: Cleco Corporate Holdings LLC | T91: 4056937
C92: 220 | D92: Total Assets | F92: 7308672 | G92: 6689148 | H92: 6365340 | I92: 5956577 | J92: 3865086 | S92: Cleco Power LLC | T92: 4056982
C93: 6361 | D93: Total Current Liabilities | F93: 955682 | G93: 1163632 | H93: 1731895 | I93: 1580838 | J93: 883082 | S93: CMS Energy Corporation | T93: 4004172
C94: 6148 | D94: Non-current Long-term Debt | F94: 3205068 | G94: 2777698 | H94: 2070767 | I94: 2106863 | J94: 1122999 | S94: Commonwealth Edison Company | T94: 4000672
C95: 18082 | D95: Other Liabilities | F95: 550629 | G95: 375808 | H95: 489754 | I95: 327407 | J95: 191063 | S95: Connecticut Natural Gas Corporation | T95: 4059402
C96: 845 | D96: Total Debt | F96: 3605902 | G96: 3517518 | H96: 3388546 | I96: 3111272 | J96: 1533208 | S96: Consolidated Edison Company of New York, Inc. | T96: 4057080
C97: 49691 | D97: Equity Attributable to Parent Company | F97: 1989152 | G97: 1660881 | H97: 1423785 | I97: 1267022 | J97: 1192409 | S97: Consolidated Edison, Inc. | T97: 4057041
C98: 47772 | D98: Non-Controlling Interests | F98: 10289 | G98: 5995 | H98: 0 | I98: 0 | J98: 0 | S98: Constellation Energy Corporation | T98: 4072145
C99: 3800 | D99: Total Equity | F99: 1999441 | G99: 1666876 | H99: 1423785 | I99: 1267022 | J99: 1192409 | S99: Consumers Energy Company | T99: 4057081
C100: 18081 | D100: Total Mezzanine Level Items | F100: 0 | G100: 0 | H100: 0 | I100: 0 | J100: 0 | S100: Corning Natural Gas Holding Corporation | T100: 4420429
C101: 17860 | D101: Total Capitalization, at Book | F101: 5605343 | G101: 5184394 | H101: 4812331 | I101: 4378294 | J101: 2725617 | S101: Covanta Holding Corporation | T101: 103347
S102: Delmarva Power & Light Company | T102: 4057082
D103: CASH FLOW HIGHLIGHTS ($000) | S103: Dominion Energy South Carolina, Inc. | T103: 4057099
C104: 4991 | D104: Operating Cash Flow | F104: 273113 | G104: 311639 | H104: 121052 | I104: 143583 | J104: 190321 | S104: Dominion Energy, Inc. | T104: 4001616
C105: 4993 | D105: Investing Cash Flow | F105: -645497 | G105: -507751 | H105: -477648 | I105: -1788785 | J105: -287264 | S105: DPL Inc. | T105: 4057043
C106: 4992 | D106: Financing Cash Flow | F106: 359993 | G106: 209562 | H106: 353298 | I106: 1637186 | J106: 104728 | S106: DTE Electric Company | T106: 4057083
C107: 4994 | D107: Other Cash Flow | F107: 0 | G107: 0 | H107: 0 | I107: 0 | J107: 0 | S107: DTE Energy Company | T107: 4057044
C108: 4995 | D108: Net Increase in Cash | F108: -12391 | G108: 13450 | H108: -3298 | I108: -8016 | J108: 7785 | S108: DTE Gas Company | T108: 4057126
S109: Duke Energy Carolinas, LLC | T109: 4004320
D110: PROFITABILITY RATIOS (%) | S110: Duke Energy Corporation | T110: 4121470
C111: 281 | D111: ROAA | F111: 1.284922333 | G111: 2.478213825 | H111: 1.272268277 | I111: 0.3493312375 | J111: -0.09289880163 | S111: Duke Energy Florida, LLC | T111: 4056998
C112: 284 | D112: ROAE | F112: 4.848049582 | G112: 9.906613348 | H112: 5.347756338 | I112: 1.399115582 | J112: -0.2764727895 | S112: Duke Energy Indiana, LLC | T112: 4062444
C113: 18791 | D113: Return on Capital | F113: 1.691467189 | G113: 3.230346522 | H113: 1.714180699 | I113: 0.4662635224 | J113: -0.1310741939 | S113: Duke Energy Kentucky, Inc. | T113: 4057103
B114: =COUNT(C:C)-72 -> 5 | S114: Duke Energy Ohio, Inc. | T114: 4057079
B115: =[1]!SNLQUERY("PendingCases",D118:O118) -> SNLQuery | S115: Duke Energy Progress, LLC | T115: 4004192
D116: Pending Rate Cases | J116: Requested | S116: Eastern Energy Gas Holdings, LLC | T116: 4430002
B117: Docket Number | C117: Rate Case OID | D117: State | E117: Company Name | F117: Ultimate Parent Ticker | G117: Docket Number | H117: Service Type | I117: Initial Filing Date (mm/dd/yyyy) | J117: Rate Change Amount ($000) | K117: Rate Change/Revenue (%) | L117: Return on Rate Base (%) | M117: Return on Equity (%) | N117: Equity Ratio (% of Total Capital) | O117: Rate Base ($000) | S117: Edison International | T117: 4056943
D118: 238539 | E118: 238108 | F118: 238112 | G118: =HYPERLINK("http://www.snl.com/interactivex/RateCaseProfile.aspx?ID="&C118,B118) -> 0 | H118: 238116 | I118: 238118 | J118: 238121 | K118: 238122 | L118: 238124 | M118: 238123 | N118: 238125 | O118: 238127 | S118: El Paso Electric Company | T118: 4056994
D119: PENDING RATE CASES | J119: REQUESTED | S119: Emera Incorporated | T119: 4072693
B120: Docket Number | C120: Rate Case OID | D120: State | E120: Company Name | F120: Ultimate Parent Ticker | G120: Docket Number | H120: Service Type | I120: Initial Filing Date (mm/dd/yyyy) | J120: Rate Change Amount ($000) | K120: Rate Change/Revenue (%) | L120: Return on Rate Base (%) | M120: Return on Equity (%) | N120: Equity Ratio (% of Total Capital) | O120: Rate Base ($000) | S120: Enbridge Gas Inc. | T120: 13585952
B121: D-22-ATMG-203-TAR (GSRS) | C121: 3913 | D121: KS | E121: Atmos Energy Corporation | G121: =HYPERLINK("http://www.snl.com/interactivex/RateCaseProfile.aspx?ID="&C121,B121) -> D-22-ATMG-203-TAR (GSRS) | H121: Natural Gas | I121: 2021-11-04 | J121: 1829.05 | K121: NA | L121: NA | M121: NA | N121: NA | O121: 35886.643 | S121: Enphase Energy, Inc. | T121: 4990825
B122: D-22-ATMG-299-TAR (SIP) | C122: 3940 | D122: KS | E122: Atmos Energy Corporation | H122: Natural Gas | I122: 2022-01-14 | J122: 622.905 | K122: NA | L122: NA | M122: NA | N122: NA | O122: 5880.503 | S122: Entergy Arkansas, LLC | T122: 4056995
B123: C-2021-00214 | C123: 3824 | D123: KY | E123: Atmos Energy Corporation | H123: Natural Gas | I123: 2021-06-30 | J123: 21798.399 | K123: 12.56 | L123: 7.66 | M123: 10.35 | N123: 57.05 | O123: 596130.007 | S123: Entergy Corporation | T123: 4007889
B124: C-2021-00304 (PRP) | C124: 3868 | D124: KY | E124: Atmos Energy Corporation | H124: Natural Gas | I124: 2021-07-30 | J124: 8101.291 | K124: NA | L124: 7.66 | M124: 10.35 | N124: 57.05 | O124: 67868.665 | S124: Entergy Louisiana, LLC | T124: 4112564
B125: D-22-00010 | C125: 3951 | D125: TN | E125: Atmos Energy Corporation | H125: Natural Gas | I125: 2022-02-01 | J125: 3662.16 | K125: NA | L125: 7.53 | M125: NA | N125: 60.59 | O125: 453913.889 | S125: Entergy Mississippi, LLC | T125: 4008616
S126: Entergy New Orleans, LLC | T126: 4057085
S127: Entergy Texas, Inc. | T127: 4199135
S128: Evergy Kansas Central, Inc. | T128: 4057066
S129: Evergy Metro, Inc. | T129: 4072456
S130: Evergy, Inc. | T130: 8603803
S131: Eversource Energy | T131: 4057052
S132: Exelon Corporation | T132: 4057056
S133: First Solar, Inc. | T133: 4211343
S134: FirstEnergy Corp. | T134: 4056944
S135: FirstEnergy Transmission, LLC | T135: 4346021
S136: Florida Power & Light Company | T136: 4056997
S137: Fortis Inc. | T137: 4082871
S138: FortisAlberta Inc. | T138: 4103468
S139: FortisBC Energy Inc. | T139: 4095656
S140: FortisBC Inc. | T140: 4100140
S141: Georgia Power Company | T141: 4004152
S142: Gulf Power Company | T142: 4057000
S143: Hawaiian Electric Company, Inc. | T143: 4057001
S144: Hawaiian Electric Industries, Inc. | T144: 1031123
S145: IDACORP, Inc. | T145: 4056949
S146: Idaho Power Company | T146: 4057002
S147: Indiana Michigan Power Company | T147: 4057003
S148: Innergex Renewable Energy Inc. | T148: 4215345
S149: Integrys Holding, Inc. | T149: 4057067
S150: Interstate Power and Light Company | T150: 4057087
S151: IPALCO Enterprises, Inc. | T151: 4010657
S152: ITC Holdings Corp. | T152: 4099990
S153: Itron, Inc. | T153: 4092673
S154: Jersey Central Power & Light Company | T154: 4057004
S155: Just Energy Group Inc. | T155: 4302830
S156: Kentucky Power Company | T156: 4057006
S157: Kentucky Utilities Company | T157: 4042397
S158: LG&E and KU Energy LLC | T158: 4057048
S159: Louisville Gas and Electric Company | T159: 4057090
S160: Macquarie Infrastructure Holdings, LLC | T160: 4824125
S161: Madison Gas and Electric Company | T161: 4008754
S162: Maxim Power Corp. | T162: 4100090
S163: MDU Resources Group, Inc. | T163: 4010692
S164: Metropolitan Edison Company | T164: 4057009
S165: MGE Energy, Inc. | T165: 4072883
S166: Michigan Gas Utilities Corporation | T166: 4122218
S167: MidAmerican Energy Company | T167: 4057091
S168: MidAmerican Funding, LLC | T168: 4081927
S169: Mid-Atlantic Interstate Transmission, LLC | T169: 4604463
S170: Minnesota Energy Resources Corporation | T170: 4140737
S171: Mississippi Power Company | T171: 4057010
S172: Monongahela Power Company | T172: 4057011
S173: MYR Group Inc. | T173: 4120398
S174: National Fuel Gas Company | T174: 4010821
S175: Net Zero Renewable Energy Inc. | T175: 4560041
S176: Nevada Power Company | T176: 4061726
S177: New Jersey Natural Gas Company | T177: 4061755
S178: New Jersey Resources Corporation | T178: 4057128
S179: New York State Electric & Gas Corporation | T179: 4004389
S180: Newfoundland Power Inc. | T180: 4099655
S181: NextEra Energy Partners, LP | T181: 4550347
S182: NextEra Energy Resources, LLC | T182: 4060103
S183: NextEra Energy, Inc. | T183: 3010401
S184: NiSource Inc. | T184: 4057051
S185: North Shore Gas Company | T185: 4057130
S186: Northern States Power Company | T186: 4057754
S187: Northern States Power Company | T187: 4061925
S188: Northland Power Inc. | T188: 4156778
S189: Northwest Natural Gas Company | T189: 10344596
S190: Northwest Natural Holding Company | T190: 4057132
S191: NorthWestern Corporation | T191: 4057053
S192: Nova Scotia Power Inc. | T192: 4061963
S193: NRG Energy, Inc. | T193: 4057436
S194: NSTAR Electric Company | T194: 4008369
S195: Ocean Power Technologies, Inc. | T195: 4153733
S196: OGE Energy Corp. | T196: 4057055
S197: Ohio Edison Company | T197: 4014480
S198: Ohio Power Company | T198: 4057015
S199: Oklahoma Gas and Electric Company | T199: 4057016
S200: Oncor Electric Delivery Company LLC | T200: 4080589
S201: ONE Gas, Inc. | T201: 4427129
S202: Orange and Rockland Utilities, Inc. | T202: 4057093
S203: Ormat Technologies, Inc. | T203: 4087066
S204: Otter Tail Corporation | T204: 4057017
S205: Pacific Gas and Electric Company | T205: 4004218
... 88 more rows

Sheet SWX
G2: Utility Financial Profile
D3: Core functionality: | K3: Contact:
D4: This template allows users to look at SEC Financial Data and Ratios for a selected Company. | K4: Please contact Market Intelligence Support with any questions or comments:
D5: Settings: | K5: phone: | L5: +1 (888) 275 2822 (US & Canada)
D6: 1) Select MI Office Add-In manual refresh option. | L6: +44 20 7283 8887 (Europe, Middle East & Africa)
D7: 2) Enable macros while opening the template. | L7: +1 (434) 951-7788 (Latin America)
D8: 3) For best performance, save this file to your computer, close and then reopen. | L8: +852-3177-3727 (Asia-Pacific)
D9: Instructions: | K9: email: | L9: support.MI@spglobal.com
D10: Step 1: Select company in cell G10. | G10: Southwest Gas Holdings, Inc. | K10: Disclaimer: Copyright © 2019 S&P Global Market Intelligence LLC (and its affiliates as applicable) – All rights reserved. This model and/or any data in it are provided subject to the written agreement of S&P Global Market Intelligence LLC governing the subscription service to which this model is applied.
D12: Step 2: Enter period in Cell G12. | G12: 2021Y
D13: (Format: yyyyY/yyyyQq, 2008Y/2009Q1)
D14: Step 3: Click "REFRESH" button. | K14: Note :
K15: If you receive a pop up message "there were no results for your query", Click OK.
D17: =IF(X56="","",X56) -> Southwest Gas Holdings, Inc.
D18: ="Industry : " & X55 -> Industry : Gas Utility
C20: =[1]!SNLTable(1,SWX!F20:G20,SWX!C24:C35,SWX!F21:G21,,"Options:Curr=USD,Mag=SNLstandard,ConvMethod=SNLrecommended") -> SNLTable | F20: =VLOOKUP(V40,S:T,2,FALSE) -> 4884928 | G20: =F20 -> 4884928
F21: 3000325 | G21: 108462
D23: CREDIT RATINGS | F23: S&P | G23: Moody's
C24: 44941 | D24: LT Issuer Rating | F24: BBB- | G24: Baa2 | V24: =SUBSTITUTE(Company_Name,"&","&amp;") -> Southwest Gas Holdings, Inc.
C25: 44942 | D25: Direction | G25: Downgrade
C26: 44944 | D26: Date | F26: 2022-03-02 | G26: 2021-01-29
C27: 44949 | D27: Senior Unsecured Rating
C28: 44950 | D28: Direction
C29: 44952 | D29: Date
C30: 44965 | D30: Senior Secured Rating | S30: Intermediate Calculations:
C31: 44966 | D31: Direction | S31: Please do not Edit or Delete Cells in this portion.
C32: 44968 | D32: Date
C33: 44945 | D33: Short-Term/ CP Rating
C34: 44946 | D34: Direction
C35: 44948 | D35: Date
C36: =[1]!SNLTable(1,SWX!F36:J36,SWX!C41:C113,SWX!F37:J37,,"Options:Curr=USD,Mag=SNLstandard,ConvMethod=SNLrecommended") -> SNLTable | F36: =F20 -> 4884928 | G36: =F20 -> 4884928 | H36: =F20 -> 4884928 | I36: =F20 -> 4884928 | J36: =F20 -> 4884928
F37: =IF(RIGHT(G12,1)="Y",G12,REPLACE(G12,5,1,"L")) -> 2021Y | G37: =LEFT(F37,4)-1 & "Y" -> 2020Y | H37: =LEFT(G37,4)-1&"Y" -> 2019Y | I37: =LEFT(H37,4)-1&"Y" -> 2018Y | J37: =LEFT(I37,4)-1&"Y" -> 2017Y
F38: 1 | G38: 1 | H38: 1 | I38: 1 | J38: 1
S39: =[1]!SNLQUERY("Company_Listed") -> SNLQuery
D40: CREDIT RATIOS | F40: =IF(RIGHT(G12,1)="Y",G12,"LTM") -> 2021Y | G40: =G37 -> 2020Y | H40: =H37 -> 2019Y | I40: =I37 -> 2018Y | J40: =J37 -> 2017Y | S40: Advanced Energy Industries, Inc. | T40: 4306705 | V40: =G10 -> Southwest Gas Holdings, Inc.
C41: 151 | D41: Period End Date | F41: 2021-12-31 | G41: 2020-12-31 | H41: 2019-12-31 | I41: 2018-12-31 | J41: 2017-12-31 | S41: AEP Generating Company | T41: 4056954 | V41: ="Debt Maturity Schedule ($000)" & " ("&X43& ")" -> Debt Maturity Schedule ($000) (2021Y)
C42: 18857 | D42: Common Equity/ Total Capital (%) | F42: 30.80358027 | G42: 46.05226981 | H42: 46.72422309 | I42: 48.68502092 | J42: 47.12673258 | S42: AEP Texas Inc. | T42: 4056935 | V42: =[1]!SNLTable(1,SWX!X42,SWX!W48:W56,SWX!X43,,"Options:Curr=USD,Mag=SNLstandard,ConvMethod=SNLrecommended") -> SNLTable | X42: =F36 -> 4884928
C43: 18869 | D43: Total Preferred/ Total Capital (%) | F43: 0 | G43: 0 | H43: 0 | I43: 0 | J43: 0 | S43: AEP Transmission Company, LLC | T43: 4341449 | X43: =IF(OR(RIGHT(G12,1)="Y",RIGHT(G12,1)="4"),LEFT(G12,4)&"Y",G37) -> 2021Y
C44: 17861 | D44: Debt/ Total Capital (%) | F44: 67.14497857 | G44: 51.09474625 | H44: 51.69944218 | I44: 49.55571423 | J44: 52.93468283 | S44: AES Indiana | T44: 4024697 | X44: 1
C45: 18861 | D45: Long-term Debt/ Total Capital (%) | F45: 43.91080183 | G45: 48.36904097 | H45: 44.28120445 | I45: 45.55505618 | J45: 46.70625126 | S45: AES Ohio | T45: 4017451
S46: Alabama Power Company | T46: 4014956
C47: 18768 | D47: Pre-Tax Interest Coverage (x) | F47: 3.073309271 | G47: 3.688591634 | H47: 3.267691415 | I47: 3.576654826 | J47: 4.303574564 | S47: Algonquin Power & Utilities Corp. | T47: 4142273
C48: 18778 | D48: Pre-Tax Int Coverage + Pref Divs (x) | F48: 3.073309271 | G48: 3.688591634 | H48: 3.267691415 | I48: 3.576654826 | J48: 4.303574564 | S48: Allegheny Generating Company | T48: 4056955 | V48: Current Year | W48: 7597 | X48: 2215182
C49: 7270 | D49: EBITDA/ Interest Expense (x) | F49: 6.183736304 | G49: 6.712075137 | H49: 6.272618241 | I49: 6.095095737 | J49: 7.532857655 | S49: ALLETE, Inc. | T49: 4022309 | V49: Next Year | W49: 7598 | X49: 7940
C50: 11512 | D50: Rec EBITDA / (Int Exp + Prf Div) (x) | F50: 6.125799091 | G50: 6.695497726 | H50: 6.222511124 | I50: 6.077479285 | J50: 7.479106887 | S50: Alliant Energy Corporation | T50: 4057038 | V50: 2Yrs Out | W50: 7599 | X50: 6476
S51: AltaGas Ltd. | T51: 4135391 | V51: 3Yrs Out | W51: 7600 | X51: 133987
C52: 18788 | D52: Average Debt/ EBITDA (x) | F52: 5.099946377 | G52: 3.728928442 | H52: 3.651389402 | I52: 3.602906984 | J52: 2.974184374 | S52: AltaLink, L.P. | T52: 4097358 | V52: 4Yrs Out | W52: 7601 | X52: 77108
C53: 18794 | D53: Cash Flow Int + Pref Coverage (x) | F53: 5.662150372 | G53: 5.756236713 | H53: 5.962655412 | I53: 6.365187078 | J53: 7.357680877 | S53: Ameren Corporation | T53: 4007308 | V53: Thereafter | W53: 7602 | X53: 3910758
C54: 18792 | D54: Cash Flow/ Avg Total Debt (%) | F54: 14.75541696 | G54: 19.0575682 | H54: 21.65154629 | I54: 24.4486643 | J54: 28.41332185 | S54: Ameren Illinois Company | T54: 4272394 | V54: Other
C55: 11576 | D55: Cash Interest Coverage (x) | F55: 1.934436819 | G55: 6.616225769 | H55: 5.581070441 | I55: 6.470678901 | J55: 5.739124308 | S55: American Electric Power Company, Inc. | T55: 4006321 | V55: Industry Type | W55: 6252 | X55: Gas Utility
S56: American Superconductor Corporation | T56: 4991374 | V56: Company Name | W56: 9 | X56: Southwest Gas Holdings, Inc.
C57: 6419 | D57: Current Ratio (x) | F57: 0.5188758275 | G57: 0.9550926733 | H57: 0.7962654453 | I57: 0.8946609208 | J57: 0.8053037146 | S57: American Transmission Systems, Incorporated | T57: 4076262
C58: 4963 | D58: Total Debt/ Total Equity (x) | F58: 2.179778389 | G58: 1.109494634 | H58: 1.10648051 | I58: 1.018088551 | J58: 1.124706812 | S58: Amtech Systems, Inc. | T58: 4963960 | V58: Chart Data
S59: Appalachian Power Company | T59: 4056972 | V59: EBITDA & Interest Coverage Chart
D60: DEBT MATURITY SCHEDULE ($000) | S60: Arizona Public Service Company | T60: 4056974 | V60: EBITDA ($000)
C61: 7597 | D61: Debt Maturing-Current FY | F61: 2215182 | G61: 147635 | H61: 388281 | I61: 185060 | J61: 239846 | S61: Ascent Solar Technologies, Inc. | T61: 4229719 | V61: EBITDA/ Interest Expense (x) | X61: =IF(ISNUMBER(F49),F49,NA()) -> 6.183736304 | Y61: =IF(ISNUMBER(G49),G49,NA()) -> 6.712075137 | Z61: =IF(ISNUMBER(H49),H49,NA()) -> 6.272618241 | AA61: =IF(ISNUMBER(I49),I49,NA()) -> 6.095095737 | AB61: =IF(ISNUMBER(J49),J49,NA()) -> 7.532857655
C62: 7598 | D62: Debt Maturing-Next FY | F62: 7940 | G62: 320674 | H62: 33928 | I62: 163296 | J62: 26707 | S62: ATCO Ltd. | T62: 4086899 | V62: Liquidity
C63: 7599 | D63: Debt Maturing-FY2 | F63: 6476 | G63: 219913 | H63: 460937 | I63: 33571 | J63: 152955 | S63: Atlantic City Electric Company | T63: 4056975 | V63: Current Assets ($000)
C64: 7600 | D64: Debt Maturing-FY3 | F64: 133987 | G64: 11285 | H64: 240768 | I64: 460515 | J64: 25140 | S64: Atlantic Power Corporation | T64: 4098671 | V64: Current Liabilities ($000)
C65: 7601 | D65: Debt Maturing-FY4 | F65: 77108 | G65: 159076 | H65: 1 | I65: 178614 | J65: 619577 | S65: Atlantica Sustainable Infrastructure plc | T65: 4545218 | V65: Current Ratio (x) | X65: =IF(ISNUMBER(F57),F57,NA()) -> 0.5188758275 | Y65: =IF(ISNUMBER(G57),G57,NA()) -> 0.9550926733 | Z65: =IF(ISNUMBER(H57),H57,NA()) -> 0.7962654453 | AA65: =IF(ISNUMBER(I57),I57,NA()) -> 0.8946609208 | AB65: =IF(ISNUMBER(J57),J57,NA()) -> 0.8053037146
C66: 7602 | D66: Debt Maturing-Thereafter | F66: 3910758 | G66: 2021742 | H66: 1565203 | I66: 1271262 | J66: 974197 | S66: Atmos Energy Corporation | T66: 4057157 | V66: ="Capital Structure " &"("&F40&")" -> Capital Structure (2021Y)
S67: Avangrid, Inc. | T67: 4057045 | V67: ="Commom Equity -" -> Commom Equity - | X67: =F42 -> 30.80358027
D68: INCOME STATEMENT HIGHLIGHTS ($000) | S68: Avista Corporation | T68: 4057075 | V68: ="Total Preferred -" -> Total Preferred - | X68: =F43 -> 0
C69: 18626 | D69: Energy Operating Revenues | F69: 3680451 | G69: 3298873 | H69: 3119917 | I69: 2880013 | J69: 2548792 | S69: Baltimore Gas and Electric Company | T69: 4007784 | V69: ="Total Debt -" -> Total Debt - | X69: =F44 -> 67.14497857
C70: 18630 | D70: Total Electrical Generation Cost | F70: NA | G70: NA | H70: NA | I70: NA | J70: NA | S70: Berkshire Hathaway Energy Company | T70: 4057049 | V70: Leverage Ratios
C71: 18631 | D71: Gas Cost | F71: 430907 | G71: 342837 | H71: 385164 | I71: 419388 | J71: 355045 | S71: Black Hills Corporation | T71: 4010420 | V71: Average Debt/ EBITDA (x) | X71: =IF(ISNUMBER(F52),F52,NA()) -> 5.099946377 | Y71: =IF(ISNUMBER(G52),G52,NA()) -> 3.728928442 | Z71: =IF(ISNUMBER(H52),H52,NA()) -> 3.651389402 | AA71: =IF(ISNUMBER(I52),I52,NA()) -> 3.602906984 | AB71: =IF(ISNUMBER(J52),J52,NA()) -> 2.974184374
C72: 18632 | D72: O&M Expense | F72: 473146 | G72: 408116 | H72: 424150 | I72: 406393 | J72: 392763 | S72: Black Hills Power, Inc. | T72: 4065694
C73: 18636 | D73: Operating DD&A | F73: 371041 | G73: 332027 | H73: 303237 | I73: 249212 | J73: 250951 | S73: Boralex Inc. | T73: 4082886
C74: 18635 | D74: Other Operating Expenses | F74: 1962373 | G74: 1731277 | H74: 1578700 | I74: 1389392 | J74: 1153159 | S74: Broadwind, Inc. | T74: 4235589
C75: 18634 | D75: Energy Operating Expenses | F75: 3317810 | G75: 2877717 | H75: 2753579 | I75: 2524283 | J75: 2209864 | S75: Brookfield Renewable Partners L.P. | T75: 4304864
C76: 6200 | D76: EBITDA | F76: 737089 | G76: 748242 | H76: 685133 | I76: 589219 | J76: 588045 | S76: Calpine Corporation | T76: 4056958
C77: 28017 | D77: Recurring EBITDA | F77: 730183 | G77: 746394 | H77: 679660 | I77: 587516 | J77: 583849 | S77: Canadian Solar Inc. | T77: 4246977
C78: 4424 | D78: Net Income before Taxes | F78: 246850 | G78: 304738 | H78: 272670 | I78: 243336 | J78: 259030 | S78: Canadian Utilities Limited | T78: 4142320
C79: 4427 | D79: Income Taxes | F79: 39648 | G79: 65753 | H79: 56023 | I79: 61684 | J79: 65088 | S79: Capital Power Corporation | T79: 4237697
C80: 4429 | D80: Total Minority Interest Expense | F80: 0 | G80: 0 | H80: 0 | I80: 0 | J80: 0 | S80: Capstone Green Energy Corporation | T80: 4103085
C81: 4430 | D81: Net Income before Extraordinary | F81: 207202 | G81: 238985 | H81: 216647 | I81: 181652 | J81: 193942 | S81: Capstone Infrastructure Corporation | T81: 4166117
C82: 833 | D82: Net Income | F82: 207202 | G82: 238985 | H82: 216647 | I82: 181652 | J82: 193942 | S82: Caribbean Utilities Company, Ltd. | T82: 4276419
C83: 47814 | D83: Net Income Attributable to Noncontrolling Int | F83: 6423 | G83: 6661 | H83: 2711 | I83: -625 | J83: 101 | S83: CenterPoint Energy Houston Electric, LLC | T83: 4057059
C84: 47813 | D84: Net Income Attributable to Parent | F84: 200779 | G84: 232324 | H84: 213936 | I84: 182277 | J84: 193841 | S84: CenterPoint Energy Resources Corp. | T84: 4057141
S85: CenterPoint Energy, Inc. | T85: 4074390
D86: BALANCE SHEET HIGHLIGHTS ($000) | S86: Central Hudson Gas & Electric Corporation | T86: 4057076
C87: 6359 | D87: Total Current Assets | F87: 1614767 | G87: 871013 | H87: 859856 | I87: 839769 | J87: 657032 | S87: Central Maine Power Company | T87: 4056978
C88: 18807 | D88: Net PP&E | F88: 7705365 | G88: 6257843 | H88: 5778415 | I88: 5093238 | J88: 4523650 | S88: CH Energy Group, Inc. | T88: 4057039
C89: 18851 | D89: Long-term Energy Risk-mgmt Asset | F89: 0 | G89: 0 | H89: 0 | I89: 0 | J89: 0 | S89: Chesapeake Utilities Corporation | T89: 4057113
C90: 18823 | D90: Total Noncurrent Investments | F90: 778631 | G90: 612299 | H90: 540444 | I90: 463730 | J90: 428180 | S90: Clearway Energy, Inc. | T90: 4393379
C91: 3706 | D91: Total Intangible Assets | F91: 2207837 | G91: 485368 | H91: 493534 | I91: 518866 | J91: 179314 | S91: Cleco Corporate Holdings LLC | T91: 4056937
C92: 220 | D92: Total Assets | F92: 12765257 | G92: 8735853 | H92: 8170048 | I92: 7357729 | J92: 6237066 | S92: Cleco Power LLC | T92: 4056982
C93: 6361 | D93: Total Current Liabilities | F93: 3112049 | G93: 911967 | H93: 1079861 | I93: 938645 | J93: 815881 | S93: CMS Energy Corporation | T93: 4004172
C94: 6148 | D94: Non-current Long-term Debt | F94: 4210699 | G94: 2809523 | H94: 2374890 | I94: 2107258 | J94: 1798576 | S94: Commonwealth Edison Company | T94: 4000672
C95: 18082 | D95: Other Liabilities | F95: 1523104 | G95: 1526241 | H95: 1525001 | I95: 1449204 | J95: 1333246 | S95: Connecticut Natural Gas Corporation | T95: 4059402
C96: 845 | D96: Total Debt | F96: 6438673 | G96: 2967846 | H96: 2772745 | I96: 2292318 | J96: 2038422 | S96: Consolidated Edison Company of New York, Inc. | T96: 4057080
C97: 49691 | D97: Equity Attributable to Parent Company | F97: 2953820 | G97: 2674953 | H97: 2505914 | I97: 2252042 | J97: 1814768 | S97: Consolidated Edison, Inc. | T97: 4057041
C98: 47772 | D98: Non-Controlling Interests | F98: 0 | G98: 0 | H98: 0 | I98: -452 | J98: -2365 | S98: Constellation Energy Corporation | T98: 4072145
C99: 3800 | D99: Total Equity | F99: 2953820 | G99: 2674953 | H99: 2505914 | I99: 2251590 | J99: 1812403 | S99: Consumers Energy Company | T99: 4057081
C100: 18081 | D100: Total Mezzanine Level Items | F100: 196717 | G100: 165716 | H100: 84542 | I100: 81831 | J100: 0 | S100: Corning Natural Gas Holding Corporation | T100: 4420429
C101: 17860 | D101: Total Capitalization, at Book | F101: 9589210 | G101: 5808515 | H101: 5363201 | I101: 4625739 | J101: 3850825 | S101: Covanta Holding Corporation | T101: 103347
S102: Delmarva Power & Light Company | T102: 4057082
D103: CASH FLOW HIGHLIGHTS ($000) | S103: Dominion Energy South Carolina, Inc. | T103: 4057099
C104: 4991 | D104: Operating Cash Flow | F104: 111383 | G104: 626080 | H104: 500372 | I104: 528856 | J104: 369955 | S104: Dominion Energy, Inc. | T104: 4001616
C105: 4993 | D105: Investing Cash Flow | F105: -3035656 | G105: -802069 | H105: -951632 | I105: -999483 | J105: -700885 | S105: DPL Inc. | T105: 4057043
C106: 4992 | D106: Financing Cash Flow | F106: 3063458 | G106: 209574 | H106: 415280 | I106: 512574 | J106: 346185 | S106: DTE Electric Company | T106: 4057083
C107: 4994 | D107: Other Cash Flow | F107: 160 | G107: 228 | H107: 158 | I107: -208 | J107: 301 | S107: DTE Energy Company | T107: 4057044
C108: 4995 | D108: Net Increase in Cash | F108: 139345 | G108: 33813 | H108: -35822 | I108: 41739 | J108: 15556 | S108: DTE Gas Company | T108: 4057126
S109: Duke Energy Carolinas, LLC | T109: 4004320
D110: PROFITABILITY RATIOS (%) | S110: Duke Energy Corporation | T110: 4121470
C111: 281 | D111: ROAA | F111: 2.120372063 | G111: 2.861935788 | H111: 2.809910171 | I111: 2.767395873 | J111: 3.375646253 | S111: Duke Energy Florida, LLC | T111: 4056998
C112: 284 | D112: ROAE | F112: 7.305616654 | G112: 9.219334254 | H112: 9.056795758 | I112: 9.331373843 | J112: 11.27961767 | S112: Duke Energy Indiana, LLC | T112: 4062444
C113: 18791 | D113: Return on Capital | F113: 3.052492775 | G113: 4.358303481 | H113: 4.352908751 | I113: 4.452461974 | J113: 5.56968696 | S113: Duke Energy Kentucky, Inc. | T113: 4057103
B114: =COUNT(C:C)-72 -> 5 | S114: Duke Energy Ohio, Inc. | T114: 4057079
B115: =[1]!SNLQUERY("PendingCases",D118:O118) -> SNLQuery | S115: Duke Energy Progress, LLC | T115: 4004192
D116: Pending Rate Cases | J116: Requested | S116: Eastern Energy Gas Holdings, LLC | T116: 4430002
B117: Docket Number | C117: Rate Case OID | D117: State | E117: Company Name | F117: Ultimate Parent Ticker | G117: Docket Number | H117: Service Type | I117: Initial Filing Date (mm/dd/yyyy) | J117: Rate Change Amount ($000) | K117: Rate Change/Revenue (%) | L117: Return on Rate Base (%) | M117: Return on Equity (%) | N117: Equity Ratio (% of Total Capital) | O117: Rate Base ($000) | S117: Edison International | T117: 4056943
D118: 238539 | E118: 238108 | F118: 238112 | G118: =HYPERLINK("http://www.snl.com/interactivex/RateCaseProfile.aspx?ID="&C118,B118) -> 0 | H118: 238116 | I118: 238118 | J118: 238121 | K118: 238122 | L118: 238124 | M118: 238123 | N118: 238125 | O118: 238127 | S118: El Paso Electric Company | T118: 4056994
D119: PENDING RATE CASES | J119: REQUESTED | S119: Emera Incorporated | T119: 4072693
B120: Docket Number | C120: Rate Case OID | D120: State | E120: Company Name | F120: Ultimate Parent Ticker | G120: Docket Number | H120: Service Type | I120: Initial Filing Date (mm/dd/yyyy) | J120: Rate Change Amount ($000) | K120: Rate Change/Revenue (%) | L120: Return on Rate Base (%) | M120: Return on Equity (%) | N120: Equity Ratio (% of Total Capital) | O120: Rate Base ($000) | S120: Enbridge Gas Inc. | T120: 13585952
B121: D-22-ATMG-203-TAR (GSRS) | C121: 3913 | D121: KS | E121: Atmos Energy Corporation | G121: =HYPERLINK("http://www.snl.com/interactivex/RateCaseProfile.aspx?ID="&C121,B121) -> D-22-ATMG-203-TAR (GSRS) | H121: Natural Gas | I121: 2021-11-04 | J121: 1829.05 | K121: NA | L121: NA | M121: NA | N121: NA | O121: 35886.643 | S121: Enphase Energy, Inc. | T121: 4990825
B122: D-22-ATMG-299-TAR (SIP) | C122: 3940 | D122: KS | E122: Atmos Energy Corporation | H122: Natural Gas | I122: 2022-01-14 | J122: 622.905 | K122: NA | L122: NA | M122: NA | N122: NA | O122: 5880.503 | S122: Entergy Arkansas, LLC | T122: 4056995
B123: C-2021-00214 | C123: 3824 | D123: KY | E123: Atmos Energy Corporation | H123: Natural Gas | I123: 2021-06-30 | J123: 21798.399 | K123: 12.56 | L123: 7.66 | M123: 10.35 | N123: 57.05 | O123: 596130.007 | S123: Entergy Corporation | T123: 4007889
B124: C-2021-00304 (PRP) | C124: 3868 | D124: KY | E124: Atmos Energy Corporation | H124: Natural Gas | I124: 2021-07-30 | J124: 8101.291 | K124: NA | L124: 7.66 | M124: 10.35 | N124: 57.05 | O124: 67868.665 | S124: Entergy Louisiana, LLC | T124: 4112564
B125: D-22-00010 | C125: 3951 | D125: TN | E125: Atmos Energy Corporation | H125: Natural Gas | I125: 2022-02-01 | J125: 3662.16 | K125: NA | L125: 7.53 | M125: NA | N125: 60.59 | O125: 453913.889 | S125: Entergy Mississippi, LLC | T125: 4008616
S126: Entergy New Orleans, LLC | T126: 4057085
S127: Entergy Texas, Inc. | T127: 4199135
S128: Evergy Kansas Central, Inc. | T128: 4057066
S129: Evergy Metro, Inc. | T129: 4072456
S130: Evergy, Inc. | T130: 8603803
S131: Eversource Energy | T131: 4057052
S132: Exelon Corporation | T132: 4057056
S133: First Solar, Inc. | T133: 4211343
S134: FirstEnergy Corp. | T134: 4056944
S135: FirstEnergy Transmission, LLC | T135: 4346021
S136: Florida Power & Light Company | T136: 4056997
S137: Fortis Inc. | T137: 4082871
S138: FortisAlberta Inc. | T138: 4103468
S139: FortisBC Energy Inc. | T139: 4095656
S140: FortisBC Inc. | T140: 4100140
S141: Georgia Power Company | T141: 4004152
S142: Gulf Power Company | T142: 4057000
S143: Hawaiian Electric Company, Inc. | T143: 4057001
S144: Hawaiian Electric Industries, Inc. | T144: 1031123
S145: IDACORP, Inc. | T145: 4056949
S146: Idaho Power Company | T146: 4057002
S147: Indiana Michigan Power Company | T147: 4057003
S148: Innergex Renewable Energy Inc. | T148: 4215345
S149: Integrys Holding, Inc. | T149: 4057067
S150: Interstate Power and Light Company | T150: 4057087
S151: IPALCO Enterprises, Inc. | T151: 4010657
S152: ITC Holdings Corp. | T152: 4099990
S153: Itron, Inc. | T153: 4092673
S154: Jersey Central Power & Light Company | T154: 4057004
S155: Just Energy Group Inc. | T155: 4302830
S156: Kentucky Power Company | T156: 4057006
S157: Kentucky Utilities Company | T157: 4042397
S158: LG&E and KU Energy LLC | T158: 4057048
S159: Louisville Gas and Electric Company | T159: 4057090
S160: Macquarie Infrastructure Holdings, LLC | T160: 4824125
S161: Madison Gas and Electric Company | T161: 4008754
S162: Maxim Power Corp. | T162: 4100090
S163: MDU Resources Group, Inc. | T163: 4010692
S164: Metropolitan Edison Company | T164: 4057009
S165: MGE Energy, Inc. | T165: 4072883
S166: Michigan Gas Utilities Corporation | T166: 4122218
S167: MidAmerican Energy Company | T167: 4057091
S168: MidAmerican Funding, LLC | T168: 4081927
S169: Mid-Atlantic Interstate Transmission, LLC | T169: 4604463
S170: Minnesota Energy Resources Corporation | T170: 4140737
S171: Mississippi Power Company | T171: 4057010
S172: Monongahela Power Company | T172: 4057011
S173: MYR Group Inc. | T173: 4120398
S174: National Fuel Gas Company | T174: 4010821
S175: Net Zero Renewable Energy Inc. | T175: 4560041
S176: Nevada Power Company | T176: 4061726
S177: New Jersey Natural Gas Company | T177: 4061755
S178: New Jersey Resources Corporation | T178: 4057128
S179: New York State Electric & Gas Corporation | T179: 4004389
S180: Newfoundland Power Inc. | T180: 4099655
S181: NextEra Energy Partners, LP | T181: 4550347
S182: NextEra Energy Resources, LLC | T182: 4060103
S183: NextEra Energy, Inc. | T183: 3010401
S184: NiSource Inc. | T184: 4057051
S185: North Shore Gas Company | T185: 4057130
S186: Northern States Power Company | T186: 4057754
S187: Northern States Power Company | T187: 4061925
S188: Northland Power Inc. | T188: 4156778
S189: Northwest Natural Gas Company | T189: 10344596
S190: Northwest Natural Holding Company | T190: 4057132
S191: NorthWestern Corporation | T191: 4057053
S192: Nova Scotia Power Inc. | T192: 4061963
S193: NRG Energy, Inc. | T193: 4057436
S194: NSTAR Electric Company | T194: 4008369
S195: Ocean Power Technologies, Inc. | T195: 4153733
S196: OGE Energy Corp. | T196: 4057055
S197: Ohio Edison Company | T197: 4014480
S198: Ohio Power Company | T198: 4057015
S199: Oklahoma Gas and Electric Company | T199: 4057016
S200: Oncor Electric Delivery Company LLC | T200: 4080589
S201: ONE Gas, Inc. | T201: 4427129
S202: Orange and Rockland Utilities, Inc. | T202: 4057093
S203: Ormat Technologies, Inc. | T203: 4087066
S204: Otter Tail Corporation | T204: 4057017
S205: Pacific Gas and Electric Company | T205: 4004218
... 88 more rows

Sheet SWG
G2: Utility Financial Profile
D3: Core functionality: | K3: Contact:
D4: This template allows users to look at SEC Financial Data and Ratios for a selected Company. | K4: Please contact Market Intelligence Support with any questions or comments:
D5: Settings: | K5: phone: | L5: +1 (888) 275 2822 (US & Canada)
D6: 1) Select MI Office Add-In manual refresh option. | L6: +44 20 7283 8887 (Europe, Middle East & Africa)
D7: 2) Enable macros while opening the template. | L7: +1 (434) 951-7788 (Latin America)
D8: 3) For best performance, save this file to your computer, close and then reopen. | L8: +852-3177-3727 (Asia-Pacific)
D9: Instructions: | K9: email: | L9: support.MI@spglobal.com
D10: Step 1: Select company in cell G10. | G10: Southwest Gas Corporation | K10: Disclaimer: Copyright © 2019 S&P Global Market Intelligence LLC (and its affiliates as applicable) – All rights reserved. This model and/or any data in it are provided subject to the written agreement of S&P Global Market Intelligence LLC governing the subscription service to which this model is applied.
D12: Step 2: Enter period in Cell G12. | G12: 2019Y
D13: (Format: yyyyY/yyyyQq, 2008Y/2009Q1)
D14: Step 3: Click "REFRESH" button. | K14: Note :
K15: If you receive a pop up message "there were no results for your query", Click OK.
D17: =IF(X56="","",X56) -> Southwest Gas Corporation
D18: ="Industry : " & X55 -> Industry : Gas Utility
C20: =[1]!SNLTable(1,SWG!F20:G20,SWG!C24:C35,SWG!F21:G21,,"Options:Curr=USD,Mag=SNLstandard,ConvMethod=SNLrecommended") -> SNLTable | F20: =VLOOKUP(V40,S:T,2,FALSE) -> 4041957 | G20: =F20 -> 4041957
F21: 3000325 | G21: 108462
D23: CREDIT RATINGS | F23: S&P | G23: Moody's
C24: 44941 | D24: LT Issuer Rating | F24: BBB | V24: =SUBSTITUTE(Company_Name,"&","&amp;") -> Southwest Gas Corporation
C25: 44942 | D25: Direction
C26: 44944 | D26: Date | F26: 2022-03-02
C27: 44949 | D27: Senior Unsecured Rating | F27: BBB | G27: Baa1
C28: 44950 | D28: Direction | F28: Downgrade | G28: Downgrade
C29: 44952 | D29: Date | F29: 2021-08-27 | G29: 2021-01-29
C30: 44965 | D30: Senior Secured Rating | S30: Intermediate Calculations:
C31: 44966 | D31: Direction | S31: Please do not Edit or Delete Cells in this portion.
C32: 44968 | D32: Date
C33: 44945 | D33: Short-Term/ CP Rating
C34: 44946 | D34: Direction
C35: 44948 | D35: Date
C36: =[1]!SNLTable(1,SWG!F36:J36,SWG!C41:C113,SWG!F37:J37,,"Options:Curr=USD,Mag=SNLstandard,ConvMethod=SNLrecommended") -> SNLTable | F36: =F20 -> 4041957 | G36: =F20 -> 4041957 | H36: =F20 -> 4041957 | I36: =F20 -> 4041957 | J36: =F20 -> 4041957
F37: =IF(RIGHT(G12,1)="Y",G12,REPLACE(G12,5,1,"L")) -> 2019Y | G37: =LEFT(F37,4)-1 & "Y" -> 2018Y | H37: =LEFT(G37,4)-1&"Y" -> 2017Y | I37: =LEFT(H37,4)-1&"Y" -> 2016Y | J37: =LEFT(I37,4)-1&"Y" -> 2015Y
F38: 1 | G38: 1 | H38: 1 | I38: 1 | J38: 1
S39: =[1]!SNLQUERY("Company_Listed") -> SNLQuery
D40: CREDIT RATIOS | F40: =IF(RIGHT(G12,1)="Y",G12,"LTM") -> 2019Y | G40: =G37 -> 2018Y | H40: =H37 -> 2017Y | I40: =I37 -> 2016Y | J40: =J37 -> 2015Y | S40: Advanced Energy Industries, Inc. | T40: 4306705 | V40: =G10 -> Southwest Gas Corporation
C41: 151 | D41: Period End Date | F41: 2019-12-31 | G41: 2018-12-31 | H41: 2017-12-31 | I41: 2016-12-31 | S41: AEP Generating Company | T41: 4056954 | V41: ="Debt Maturity Schedule ($000)" & " ("&X43& ")" -> Debt Maturity Schedule ($000) (2019Y)
C42: 18857 | D42: Common Equity/ Total Capital (%) | F42: 46.44847806 | G42: 47.49263881 | H42: 48.46431248 | I42: 54.60097674 | J42: NA | S42: AEP Texas Inc. | T42: 4056935 | V42: =[1]!SNLTable(1,SWG!X42,SWG!W48:W56,SWG!X43,,"Options:Curr=USD,Mag=SNLstandard,ConvMethod=SNLrecommended") -> SNLTable | X42: =F36 -> 4041957
C43: 18869 | D43: Total Preferred/ Total Capital (%) | F43: 0 | G43: 0 | H43: 0 | I43: 0 | J43: NA | S43: AEP Transmission Company, LLC | T43: 4341449 | X43: =IF(OR(RIGHT(G12,1)="Y",RIGHT(G12,1)="4"),LEFT(G12,4)&"Y",G37) -> 2019Y
C44: 17861 | D44: Debt/ Total Capital (%) | F44: 53.55152194 | G44: 52.50736119 | H44: 51.53568752 | I44: 45.39902326 | J44: NA | S44: AES Indiana | T44: 4024697 | X44: 1
C45: 18861 | D45: Long-term Debt/ Total Capital (%) | F45: 46.14527705 | G45: 48.45740714 | H45: 45.78619097 | I45: 44.58837274 | J45: NA | S45: AES Ohio | T45: 4017451
S46: Alabama Power Company | T46: 4014956
C47: 18768 | D47: Pre-Tax Interest Coverage (x) | F47: 2.848379258 | G47: 3.315291045 | H47: 4.146752756 | I47: 3.762365781 | J47: NA | S47: Algonquin Power & Utilities Corp. | T47: 4142273
C48: 18778 | D48: Pre-Tax Int Coverage + Pref Divs (x) | F48: 2.848379258 | G48: 3.315291045 | H48: 4.146752756 | I48: 3.762365781 | J48: NA | S48: Allegheny Generating Company | T48: 4056955 | V48: Current Year | W48: 7597 | X48: 319000
C49: 7270 | D49: EBITDA/ Interest Expense (x) | F49: 5.354218845 | G49: 5.583423049 | H49: 7.049861615 | I49: 7.141618281 | J49: NA | S49: ALLETE, Inc. | T49: 4022309 | V49: Next Year | W49: 7598 | X49: 143
C50: 11512 | D50: Rec EBITDA / (Int Exp + Prf Div) (x) | F50: 5.354218845 | G50: 5.583423049 | H50: 7.049861615 | I50: 7.141618281 | J50: NA | S50: Alliant Energy Corporation | T50: 4057038 | V50: 2Yrs Out | W50: 7599 | X50: 275154
S51: AltaGas Ltd. | T51: 4135391 | V51: 3Yrs Out | W51: 7600 | X51: 87
C52: 18788 | D52: Average Debt/ EBITDA (x) | F52: 4.084744934 | G52: 3.884992846 | H52: 3.055133613 | I52: NA | J52: NA | S52: AltaLink, L.P. | T52: 4097358 | V52: 4Yrs Out | W52: 7601 | X52: 1
C53: 18794 | D53: Cash Flow Int + Pref Coverage (x) | F53: 4.924052365 | G53: 6.006961096 | H53: 6.953995956 | I53: 8.67968715 | J53: NA | S53: Ameren Corporation | T53: 4007308 | V53: Thereafter | W53: 7602 | X53: 1715948
C54: 18792 | D54: Cash Flow/ Avg Total Debt (%) | F54: 17.92301665 | G54: 23.10300564 | H54: 27.68574561 | I54: NA | J54: NA | S54: Ameren Illinois Company | T54: 4272394 | V54: Other
C55: 11576 | D55: Cash Interest Coverage (x) | F55: 4.870456507 | G55: 5.679495963 | H55: 5.434285059 | I55: 9.963207308 | J55: NA | S55: American Electric Power Company, Inc. | T55: 4006321 | V55: Industry Type | W55: 6252 | X55: Gas Utility
S56: American Superconductor Corporation | T56: 4991374 | V56: Company Name | W56: 9 | X56: Southwest Gas Corporation
C57: 6419 | D57: Current Ratio (x) | F57: 0.6368011913 | G57: 0.7730630778 | H57: 0.6725148728 | I57: 0.7059583344 | J57: NA | S57: American Transmission Systems, Incorporated | T57: 4076262
C58: 4963 | D58: Total Debt/ Total Equity (x) | F58: 1.15292307 | G58: 1.105589466 | H58: 1.063373952 | I58: 0.8314690684 | J58: NA | S58: Amtech Systems, Inc. | T58: 4963960 | V58: Chart Data
S59: Appalachian Power Company | T59: 4056972 | V59: EBITDA & Interest Coverage Chart
D60: DEBT MATURITY SCHEDULE ($000) | S60: Arizona Public Service Company | T60: 4056974 | V60: EBITDA ($000)
C61: 7597 | D61: Debt Maturing-Current FY | F61: 319000 | G61: 152000 | H61: 191000 | I61: 25000 | J61: NA | S61: Ascent Solar Technologies, Inc. | T61: 4229719 | V61: EBITDA/ Interest Expense (x) | X61: =IF(ISNUMBER(F49),F49,NA()) -> 5.354218845 | Y61: =IF(ISNUMBER(G49),G49,NA()) -> 5.583423049 | Z61: =IF(ISNUMBER(H49),H49,NA()) -> 7.049861615 | AA61: =IF(ISNUMBER(I49),I49,NA()) -> 7.141618281 | AB61: =IF(ISNUMBER(J49),J49,NA()) -> 
C62: 7598 | D62: Debt Maturing-Next FY | F62: 143 | G62: 125000 | H62: 0 | I62: 0 | J62: NA | S62: ATCO Ltd. | T62: 4086899 | V62: Liquidity
C63: 7599 | D63: Debt Maturing-FY2 | F63: 275154 | G63: 0 | H63: 125000 | I63: 0 | J63: NA | S63: Atlantic City Electric Company | T63: 4056975 | V63: Current Assets ($000)
C64: 7600 | D64: Debt Maturing-FY3 | F64: 87 | G64: 275000 | H64: 0 | I64: 125000 | J64: NA | S64: Atlantic Power Corporation | T64: 4098671 | V64: Current Liabilities ($000)
C65: 7601 | D65: Debt Maturing-FY4 | F65: 1 | G65: 0 | H65: 275000 | I65: 0 | J65: NA | S65: Atlantica Sustainable Infrastructure plc | T65: 4545218 | V65: Current Ratio (x) | X65: =IF(ISNUMBER(F57),F57,NA()) -> 0.6368011913 | Y65: =IF(ISNUMBER(G57),G57,NA()) -> 0.7730630778 | Z65: =IF(ISNUMBER(H57),H57,NA()) -> 0.6725148728 | AA65: =IF(ISNUMBER(I57),I57,NA()) -> 0.7059583344 | AB65: =IF(ISNUMBER(J57),J57,NA()) -> 
C66: 7602 | D66: Debt Maturing-Thereafter | F66: 1715948 | G66: 1418669 | H66: 1121031 | I66: 1250080 | J66: NA | S66: Atmos Energy Corporation | T66: 4057157 | V66: ="Capital Structure " &"("&F40&")" -> Capital Structure (2019Y)
S67: Avangrid, Inc. | T67: 4057045 | V67: ="Commom Equity -" -> Commom Equity - | X67: =F42 -> 46.44847806
D68: INCOME STATEMENT HIGHLIGHTS ($000) | S68: Avista Corporation | T68: 4057075 | V68: ="Total Preferred -" -> Total Preferred - | X68: =F43 -> 0
C69: 18626 | D69: Energy Operating Revenues | F69: 1368939 | G69: 1357728 | H69: 1302308 | I69: 1321412 | J69: NA | S69: Baltimore Gas and Electric Company | T69: 4007784 | V69: ="Total Debt -" -> Total Debt - | X69: =F44 -> 53.55152194
C70: 18630 | D70: Total Electrical Generation Cost | F70: NA | G70: NA | H70: NA | I70: NA | J70: NA | S70: Berkshire Hathaway Energy Company | T70: 4057049 | V70: Leverage Ratios
C71: 18631 | D71: Gas Cost | F71: 385164 | G71: 419388 | H71: 355045 | I71: 397121 | J71: NA | S71: Black Hills Corporation | T71: 4010420 | V71: Average Debt/ EBITDA (x) | X71: =IF(ISNUMBER(F52),F52,NA()) -> 4.084744934 | Y71: =IF(ISNUMBER(G52),G52,NA()) -> 3.884992846 | Z71: =IF(ISNUMBER(H52),H52,NA()) -> 3.055133613 | AA71: =IF(ISNUMBER(I52),I52,NA()) ->  | AB71: =IF(ISNUMBER(J52),J52,NA()) -> 
C72: 18632 | D72: O&M Expense | F72: 422174 | G72: 404813 | H72: 391321 | I72: 381964 | J72: NA | S72: Black Hills Power, Inc. | T72: 4065694
C73: 18636 | D73: Operating DD&A | F73: 215620 | G73: 191816 | H73: 201922 | I73: 233463 | J73: NA | S73: Boralex Inc. | T73: 4082886
C74: 18635 | D74: Other Operating Expenses | F74: NA | G74: NA | H74: NA | I74: NA | J74: NA | S74: Broadwind, Inc. | T74: 4235589
C75: 18634 | D75: Energy Operating Expenses | F75: 1085286 | G75: 1075915 | H75: 1006234 | I75: 1064924 | J75: NA | S75: Brookfield Renewable Partners L.P. | T75: 4304864
C76: 6200 | D76: EBITDA | F76: 508790 | G76: 456389 | H76: 491608 | I76: 478467 | J76: NA | S76: Calpine Corporation | T76: 4056958
C77: 28017 | D77: Recurring EBITDA | F77: 508790 | G77: 456389 | H77: 491608 | I77: 478467 | J77: NA | S77: Canadian Solar Inc. | T77: 4246977
C78: 4424 | D78: Net Income before Taxes | F78: 198144 | G78: 182833 | H78: 219953 | I78: 178007 | J78: NA | S78: Canadian Utilities Limited | T78: 4142320
C79: 4427 | D79: Income Taxes | F79: 34973 | G79: 43991 | H79: 63135 | I79: 58584 | J79: NA | S79: Capital Power Corporation | T79: 4237697
C80: 4429 | D80: Total Minority Interest Expense | F80: 0 | G80: 0 | H80: 0 | I80: 0 | J80: NA | S80: Capstone Green Energy Corporation | T80: 4103085
C81: 4430 | D81: Net Income before Extraordinary | F81: 163171 | G81: 138842 | H81: 156818 | I81: 119423 | J81: NA | S81: Capstone Infrastructure Corporation | T81: 4166117
C82: 833 | D82: Net Income | F82: 163171 | G82: 138842 | H82: 156818 | I82: 152041 | J82: NA | S82: Caribbean Utilities Company, Ltd. | T82: 4276419
C83: 47814 | D83: Net Income Attributable to Noncontrolling Int | F83: 0 | G83: 0 | H83: 0 | I83: 1014 | J83: NA | S83: CenterPoint Energy Houston Electric, LLC | T83: 4057059
C84: 47813 | D84: Net Income Attributable to Parent | F84: 163171 | G84: 138842 | H84: 156818 | I84: 151027 | J84: NA | S84: CenterPoint Energy Resources Corp. | T84: 4057141
S85: CenterPoint Energy, Inc. | T85: 4074390
D86: BALANCE SHEET HIGHLIGHTS ($000) | S86: Central Hudson Gas & Electric Corporation | T86: 4057076
C87: 6359 | D87: Total Current Assets | F87: 506334 | G87: 497153 | H87: 404246 | I87: 340495 | J87: NA | S87: Central Maine Power Company | T87: 4056978
C88: 18807 | D88: Net PP&E | F88: 5428898 | G88: 4852080 | H88: 4293620 | I88: 3907711 | J88: NA | S88: CH Energy Group, Inc. | T88: 4057039
C89: 18851 | D89: Long-term Energy Risk-mgmt Asset | F89: 0 | G89: 0 | H89: 0 | I89: 0 | J89: NA | S89: Chesapeake Utilities Corporation | T89: 4057113
C90: 18823 | D90: Total Noncurrent Investments | F90: 133787 | G90: 116146 | H90: 119114 | I90: 108569 | J90: NA | S90: Clearway Energy, Inc. | T90: 4393379
C91: 3706 | D91: Total Intangible Assets | F91: 266394 | G91: 251253 | H91: 240125 | I91: 234355 | J91: NA | S91: Cleco Corporate Holdings LLC | T91: 4056937
C92: 220 | D92: Total Assets | F92: 6798746 | G92: 6141584 | H92: 5482669 | I92: 5581126 | J92: NA | S92: Cleco Power LLC | T92: 4056982
C93: 6361 | D93: Total Current Liabilities | F93: 795121 | G93: 643095 | H93: 601096 | I93: 482316 | J93: NA | S93: CMS Energy Corporation | T93: 4004172
C94: 6148 | D94: Non-current Long-term Debt | F94: 1992063 | G94: 1818669 | H94: 1521031 | I94: 1375080 | J94: NA | S94: Commonwealth Edison Company | T94: 4000672
C95: 18082 | D95: Other Liabilities | F95: 1467360 | G95: 1406902 | H95: 990300 | I95: 925758 | J95: NA | S95: Connecticut Natural Gas Corporation | T95: 4059402
C96: 845 | D96: Total Debt | F96: 2311786 | G96: 1970669 | H96: 1712031 | I96: 1400080 | J96: NA | S96: Consolidated Edison Company of New York, Inc. | T96: 4057080
C97: 49691 | D97: Equity Attributable to Parent Company | F97: 2005152 | G97: 1782460 | H97: 1609999 | I97: 1683863 | J97: NA | S97: Consolidated Edison, Inc. | T97: 4057041
C98: 47772 | D98: Non-Controlling Interests | F98: 0 | G98: 0 | H98: 0 | I98: 0 | J98: NA | S98: Constellation Energy Corporation | T98: 4072145
C99: 3800 | D99: Total Equity | F99: 2005152 | G99: 1782460 | H99: 1609999 | I99: 1683863 | J99: NA | S99: Consumers Energy Company | T99: 4057081
C100: 18081 | D100: Total Mezzanine Level Items | F100: 0 | G100: 0 | H100: 0 | I100: 0 | J100: NA | S100: Corning Natural Gas Holding Corporation | T100: 4420429
C101: 17860 | D101: Total Capitalization, at Book | F101: 4316938 | G101: 3753129 | H101: 3322030 | I101: 3083943 | J101: NA | S101: Covanta Holding Corporation | T101: 103347
S102: Delmarva Power & Light Company | T102: 4057082
D103: CASH FLOW HIGHLIGHTS ($000) | S103: Dominion Energy South Carolina, Inc. | T103: 4057099
C104: 4991 | D104: Operating Cash Flow | F104: 367794 | G104: 382502 | H104: 309216 | I104: 600508 | J104: NA | S104: Dominion Energy, Inc. | T104: 4001616
C105: 4993 | D105: Investing Cash Flow | F105: -759842 | G105: -669392 | H105: -557384 | I105: -525592 | J105: NA | S105: DPL Inc. | T105: 4057043
C106: 4992 | D106: Financing Cash Flow | F106: 400575 | G106: 280906 | H106: 267090 | I106: -82653 | J106: NA | S106: DTE Electric Company | T106: 4057083
C107: 4994 | D107: Other Cash Flow | F107: 0 | G107: 0 | H107: 0 | I107: -194 | J107: NA | S107: DTE Energy Company | T107: 4057044
C108: 4995 | D108: Net Increase in Cash | F108: 8527 | G108: -5984 | H108: 18922 | I108: -7931 | J108: NA | S108: DTE Gas Company | T108: 4057126
S109: Duke Energy Carolinas, LLC | T109: 4004320
D110: PROFITABILITY RATIOS (%) | S110: Duke Energy Corporation | T110: 4121470
C111: 281 | D111: ROAA | F111: 2.553602814 | G111: 2.431244598 | H111: 3.022192959 | I111: NA | J111: NA | S111: Duke Energy Florida, LLC | T111: 4056998
C112: 284 | D112: ROAE | F112: 8.521193905 | G112: 8.150045195 | H112: 10.0054376 | I112: NA | J112: NA | S112: Duke Energy Indiana, LLC | T112: 4062444
C113: 18791 | D113: Return on Capital | F113: 4.086260846 | G113: 3.993566923 | H113: 5.109316603 | I113: NA | J113: NA | S113: Duke Energy Kentucky, Inc. | T113: 4057103
B114: =COUNT(C:C)-72 -> 5 | S114: Duke Energy Ohio, Inc. | T114: 4057079
B115: =[1]!SNLQUERY("PendingCases",D118:O118) -> SNLQuery | S115: Duke Energy Progress, LLC | T115: 4004192
D116: Pending Rate Cases | J116: Requested | S116: Eastern Energy Gas Holdings, LLC | T116: 4430002
B117: Docket Number | C117: Rate Case OID | D117: State | E117: Company Name | F117: Ultimate Parent Ticker | G117: Docket Number | H117: Service Type | I117: Initial Filing Date (mm/dd/yyyy) | J117: Rate Change Amount ($000) | K117: Rate Change/Revenue (%) | L117: Return on Rate Base (%) | M117: Return on Equity (%) | N117: Equity Ratio (% of Total Capital) | O117: Rate Base ($000) | S117: Edison International | T117: 4056943
D118: 238539 | E118: 238108 | F118: 238112 | G118: =HYPERLINK("http://www.snl.com/interactivex/RateCaseProfile.aspx?ID="&C118,B118) -> 0 | H118: 238116 | I118: 238118 | J118: 238121 | K118: 238122 | L118: 238124 | M118: 238123 | N118: 238125 | O118: 238127 | S118: El Paso Electric Company | T118: 4056994
D119: PENDING RATE CASES | J119: REQUESTED | S119: Emera Incorporated | T119: 4072693
B120: Docket Number | C120: Rate Case OID | D120: State | E120: Company Name | F120: Ultimate Parent Ticker | G120: Docket Number | H120: Service Type | I120: Initial Filing Date (mm/dd/yyyy) | J120: Rate Change Amount ($000) | K120: Rate Change/Revenue (%) | L120: Return on Rate Base (%) | M120: Return on Equity (%) | N120: Equity Ratio (% of Total Capital) | O120: Rate Base ($000) | S120: Enbridge Gas Inc. | T120: 13585952
B121: D-22-ATMG-203-TAR (GSRS) | C121: 3913 | D121: KS | E121: Atmos Energy Corporation | G121: =HYPERLINK("http://www.snl.com/interactivex/RateCaseProfile.aspx?ID="&C121,B121) -> D-22-ATMG-203-TAR (GSRS) | H121: Natural Gas | I121: 2021-11-04 | J121: 1829.05 | K121: NA | L121: NA | M121: NA | N121: NA | O121: 35886.643 | S121: Enphase Energy, Inc. | T121: 4990825
B122: D-22-ATMG-299-TAR (SIP) | C122: 3940 | D122: KS | E122: Atmos Energy Corporation | H122: Natural Gas | I122: 2022-01-14 | J122: 622.905 | K122: NA | L122: NA | M122: NA | N122: NA | O122: 5880.503 | S122: Entergy Arkansas, LLC | T122: 4056995
B123: C-2021-00214 | C123: 3824 | D123: KY | E123: Atmos Energy Corporation | H123: Natural Gas | I123: 2021-06-30 | J123: 21798.399 | K123: 12.56 | L123: 7.66 | M123: 10.35 | N123: 57.05 | O123: 596130.007 | S123: Entergy Corporation | T123: 4007889
B124: C-2021-00304 (PRP) | C124: 3868 | D124: KY | E124: Atmos Energy Corporation | H124: Natural Gas | I124: 2021-07-30 | J124: 8101.291 | K124: NA | L124: 7.66 | M124: 10.35 | N124: 57.05 | O124: 67868.665 | S124: Entergy Louisiana, LLC | T124: 4112564
B125: D-22-00010 | C125: 3951 | D125: TN | E125: Atmos Energy Corporation | H125: Natural Gas | I125: 2022-02-01 | J125: 3662.16 | K125: NA | L125: 7.53 | M125: NA | N125: 60.59 | O125: 453913.889 | S125: Entergy Mississippi, LLC | T125: 4008616
S126: Entergy New Orleans, LLC | T126: 4057085
S127: Entergy Texas, Inc. | T127: 4199135
S128: Evergy Kansas Central, Inc. | T128: 4057066
S129: Evergy Metro, Inc. | T129: 4072456
S130: Evergy, Inc. | T130: 8603803
S131: Eversource Energy | T131: 4057052
S132: Exelon Corporation | T132: 4057056
S133: First Solar, Inc. | T133: 4211343
S134: FirstEnergy Corp. | T134: 4056944
S135: FirstEnergy Transmission, LLC | T135: 4346021
S136: Florida Power & Light Company | T136: 4056997
S137: Fortis Inc. | T137: 4082871
S138: FortisAlberta Inc. | T138: 4103468
S139: FortisBC Energy Inc. | T139: 4095656
S140: FortisBC Inc. | T140: 4100140
S141: Georgia Power Company | T141: 4004152
S142: Gulf Power Company | T142: 4057000
S143: Hawaiian Electric Company, Inc. | T143: 4057001
S144: Hawaiian Electric Industries, Inc. | T144: 1031123
S145: IDACORP, Inc. | T145: 4056949
S146: Idaho Power Company | T146: 4057002
S147: Indiana Michigan Power Company | T147: 4057003
S148: Innergex Renewable Energy Inc. | T148: 4215345
S149: Integrys Holding, Inc. | T149: 4057067
S150: Interstate Power and Light Company | T150: 4057087
S151: IPALCO Enterprises, Inc. | T151: 4010657
S152: ITC Holdings Corp. | T152: 4099990
S153: Itron, Inc. | T153: 4092673
S154: Jersey Central Power & Light Company | T154: 4057004
S155: Just Energy Group Inc. | T155: 4302830
S156: Kentucky Power Company | T156: 4057006
S157: Kentucky Utilities Company | T157: 4042397
S158: LG&E and KU Energy LLC | T158: 4057048
S159: Louisville Gas and Electric Company | T159: 4057090
S160: Macquarie Infrastructure Holdings, LLC | T160: 4824125
S161: Madison Gas and Electric Company | T161: 4008754
S162: Maxim Power Corp. | T162: 4100090
S163: MDU Resources Group, Inc. | T163: 4010692
S164: Metropolitan Edison Company | T164: 4057009
S165: MGE Energy, Inc. | T165: 4072883
S166: Michigan Gas Utilities Corporation | T166: 4122218
S167: MidAmerican Energy Company | T167: 4057091
S168: MidAmerican Funding, LLC | T168: 4081927
S169: Mid-Atlantic Interstate Transmission, LLC | T169: 4604463
S170: Minnesota Energy Resources Corporation | T170: 4140737
S171: Mississippi Power Company | T171: 4057010
S172: Monongahela Power Company | T172: 4057011
S173: MYR Group Inc. | T173: 4120398
S174: National Fuel Gas Company | T174: 4010821
S175: Net Zero Renewable Energy Inc. | T175: 4560041
S176: Nevada Power Company | T176: 4061726
S177: New Jersey Natural Gas Company | T177: 4061755
S178: New Jersey Resources Corporation | T178: 4057128
S179: New York State Electric & Gas Corporation | T179: 4004389
S180: Newfoundland Power Inc. | T180: 4099655
S181: NextEra Energy Partners, LP | T181: 4550347
S182: NextEra Energy Resources, LLC | T182: 4060103
S183: NextEra Energy, Inc. | T183: 3010401
S184: NiSource Inc. | T184: 4057051
S185: North Shore Gas Company | T185: 4057130
S186: Northern States Power Company | T186: 4057754
S187: Northern States Power Company | T187: 4061925
S188: Northland Power Inc. | T188: 4156778
S189: Northwest Natural Gas Company | T189: 10344596
S190: Northwest Natural Holding Company | T190: 4057132
S191: NorthWestern Corporation | T191: 4057053
S192: Nova Scotia Power Inc. | T192: 4061963
S193: NRG Energy, Inc. | T193: 4057436
S194: NSTAR Electric Company | T194: 4008369
S195: Ocean Power Technologies, Inc. | T195: 4153733
S196: OGE Energy Corp. | T196: 4057055
S197: Ohio Edison Company | T197: 4014480
S198: Ohio Power Company | T198: 4057015
S199: Oklahoma Gas and Electric Company | T199: 4057016
S200: Oncor Electric Delivery Company LLC | T200: 4080589
S201: ONE Gas, Inc. | T201: 4427129
S202: Orange and Rockland Utilities, Inc. | T202: 4057093
S203: Ormat Technologies, Inc. | T203: 4087066
S204: Otter Tail Corporation | T204: 4057017
S205: Pacific Gas and Electric Company | T205: 4004218
... 88 more rows

Sheet SR
G2: Utility Financial Profile
D3: Core functionality: | K3: Contact:
D4: This template allows users to look at SEC Financial Data and Ratios for a selected Company. | K4: Please contact Market Intelligence Support with any questions or comments:
D5: Settings: | K5: phone: | L5: +1 (888) 275 2822 (US & Canada)
D6: 1) Select MI Office Add-In manual refresh option. | L6: +44 20 7283 8887 (Europe, Middle East & Africa)
D7: 2) Enable macros while opening the template. | L7: +1 (434) 951-7788 (Latin America)
D8: 3) For best performance, save this file to your computer, close and then reopen. | L8: +852-3177-3727 (Asia-Pacific)
D9: Instructions: | K9: email: | L9: support.MI@spglobal.com
D10: Step 1: Select company in cell G10. | G10: Spire Inc. | K10: Disclaimer: Copyright © 2019 S&P Global Market Intelligence LLC (and its affiliates as applicable) – All rights reserved. This model and/or any data in it are provided subject to the written agreement of S&P Global Market Intelligence LLC governing the subscription service to which this model is applied.
D12: Step 2: Enter period in Cell G12. | G12: 2021Y
D13: (Format: yyyyY/yyyyQq, 2008Y/2009Q1)
D14: Step 3: Click "REFRESH" button. | K14: Note :
K15: If you receive a pop up message "there were no results for your query", Click OK.
D17: =IF(X56="","",X56) -> Spire Inc.
D18: ="Industry : " & X55 -> Industry : Gas Utility
C20: =[1]!SNLTable(1,SR!F20:G20,SR!C24:C35,SR!F21:G21,,"Options:Curr=USD,Mag=SNLstandard,ConvMethod=SNLrecommended") -> SNLTable | F20: =VLOOKUP(V40,S:T,2,FALSE) -> 4002506 | G20: =F20 -> 4002506
F21: 3000325 | G21: 108462
D23: CREDIT RATINGS | F23: S&P | G23: Moody's
C24: 44941 | D24: LT Issuer Rating | F24: A- | V24: =SUBSTITUTE(Company_Name,"&","&amp;") -> Spire Inc.
C25: 44942 | D25: Direction
C26: 44944 | D26: Date | F26: 2014-06-13
C27: 44949 | D27: Senior Unsecured Rating | F27: BBB+ | G27: Baa2
C28: 44950 | D28: Direction | F28: Initiate | G28: Affirm
C29: 44952 | D29: Date | F29: 2014-08-13 | G29: 2014-08-12
C30: 44965 | D30: Senior Secured Rating | S30: Intermediate Calculations:
C31: 44966 | D31: Direction | S31: Please do not Edit or Delete Cells in this portion.
C32: 44968 | D32: Date
C33: 44945 | D33: Short-Term/ CP Rating | F33: A-2 | G33: P-2
C34: 44946 | D34: Direction | F34: Initiate | G34: Initiate
C35: 44948 | D35: Date | F35: 2016-12-22 | G35: 2016-12-22
C36: =[1]!SNLTable(1,SR!F36:J36,SR!C41:C113,SR!F37:J37,,"Options:Curr=USD,Mag=SNLstandard,ConvMethod=SNLrecommended") -> SNLTable | F36: =F20 -> 4002506 | G36: =F20 -> 4002506 | H36: =F20 -> 4002506 | I36: =F20 -> 4002506 | J36: =F20 -> 4002506
F37: =IF(RIGHT(G12,1)="Y",G12,REPLACE(G12,5,1,"L")) -> 2021Y | G37: =LEFT(F37,4)-1 & "Y" -> 2020Y | H37: =LEFT(G37,4)-1&"Y" -> 2019Y | I37: =LEFT(H37,4)-1&"Y" -> 2018Y | J37: =LEFT(I37,4)-1&"Y" -> 2017Y
F38: 1 | G38: 1 | H38: 1 | I38: 1 | J38: 1
S39: =[1]!SNLQUERY("Company_Listed") -> SNLQuery
D40: CREDIT RATIOS | F40: =IF(RIGHT(G12,1)="Y",G12,"LTM") -> 2021Y | G40: =G37 -> 2020Y | H40: =H37 -> 2019Y | I40: =I37 -> 2018Y | J40: =J37 -> 2017Y | S40: Advanced Energy Industries, Inc. | T40: 4306705 | V40: =G10 -> Spire Inc.
C41: 151 | D41: Period End Date | F41: 2021-09-30 | G41: 2020-09-30 | H41: 2019-09-30 | I41: 2018-09-30 | J41: 2017-09-30 | S41: AEP Generating Company | T41: 4056954 | V41: ="Debt Maturity Schedule ($000)" & " ("&X43& ")" -> Debt Maturity Schedule ($000) (2021Y)
C42: 18857 | D42: Common Equity/ Total Capital (%) | F42: 37.78205188 | G42: 39.84657592 | H42: 42.51505857 | I42: 46.09913132 | J42: 43.63441143 | S42: AEP Texas Inc. | T42: 4056935 | V42: =[1]!SNLTable(1,SR!X42,SR!W48:W56,SR!X43,,"Options:Curr=USD,Mag=SNLstandard,ConvMethod=SNLrecommended") -> SNLTable | X42: =F36 -> 4002506
C43: 18869 | D43: Total Preferred/ Total Capital (%) | F43: 3.784147238 | G43: 4.228773132 | H43: 4.471379476 | I43: 0 | J43: 0 | S43: AEP Transmission Company, LLC | T43: 4341449 | X43: =IF(OR(RIGHT(G12,1)="Y",RIGHT(G12,1)="4"),LEFT(G12,4)&"Y",G37) -> 2021Y
C44: 17861 | D44: Debt/ Total Capital (%) | F44: 58.28055855 | G44: 55.86523844 | H44: 52.95074092 | I44: 53.73939704 | J44: 56.36558857 | S44: AES Indiana | T44: 4024697 | X44: 1
C45: 18861 | D45: Long-term Debt/ Total Capital (%) | F45: 46.79832997 | G45: 43.37288343 | H45: 38.47973098 | I45: 38.8369954 | J45: 43.71548777 | S45: AES Ohio | T45: 4017451
S46: Alabama Power Company | T46: 4014956
C47: 18768 | D47: Pre-Tax Interest Coverage (x) | F47: 4.055855856 | G47: 1.854447439 | H47: 2.71852518 | I47: 2.988821138 | J47: 3.791991101 | S47: Algonquin Power & Utilities Corp. | T47: 4142273
C48: 18778 | D48: Pre-Tax Int Coverage + Pref Divs (x) | F48: 3.578696343 | G48: 1.636796193 | H48: 2.594849785 | I48: 2.988821138 | J48: 3.791991101 | S48: Allegheny Generating Company | T48: 4056955 | V48: Current Year | W48: 7597 | X48: 727800
C49: 7270 | D49: EBITDA/ Interest Expense (x) | F49: 6.19043152 | G49: 3.827488152 | H49: 4.83908046 | I49: 4.618902439 | J49: 5.414141414 | S49: ALLETE, Inc. | T49: 4022309 | V49: Next Year | W49: 7598 | X49: 281200
C50: 11512 | D50: Rec EBITDA / (Int Exp + Prf Div) (x) | F50: 5.435749588 | G50: 4.591853699 | H50: 4.605287147 | I50: 4.618902439 | J50: 5.414141414 | S50: Alliant Energy Corporation | T50: 4057038 | V50: 2Yrs Out | W50: 7599 | X50: 156600
S51: AltaGas Ltd. | T51: 4135391 | V51: 3Yrs Out | W51: 7600 | X51: 42000
C52: 18788 | D52: Average Debt/ EBITDA (x) | F52: 5.210694802 | G52: 7.61187469 | H52: 5.419041964 | I52: 5.644636964 | J52: 5.165448798 | S52: AltaLink, L.P. | T52: 4097358 | V52: 4Yrs Out | W52: 7601 | X52: 312500
C53: 18794 | D53: Cash Flow Int + Pref Coverage (x) | F53: 5.771171171 | G53: 5.171608266 | H53: 4.822841727 | I53: 5.75203252 | J53: 5.025813692 | S53: Ameren Corporation | T53: 4007308 | V53: Thereafter | W53: 7602 | X53: 2146800
C54: 18792 | D54: Cash Flow/ Avg Total Debt (%) | F54: 15.40189688 | G54: 15.10569595 | H54: 15.52763268 | I54: 18.22655538 | J54: 14.36303895 | S54: Ameren Illinois Company | T54: 4272394 | V54: Other
C55: 11576 | D55: Cash Interest Coverage (x) | F55: 3.343339587 | G55: 5.454028436 | H55: 5.318965517 | I55: 5.640243902 | J55: 4.235690236 | S55: American Electric Power Company, Inc. | T55: 4006321 | V55: Industry Type | W55: 6252 | X55: Gas Utility
S56: American Superconductor Corporation | T56: 4991374 | V56: Company Name | W56: 9 | X56: Spire Inc.
C57: 6419 | D57: Current Ratio (x) | F57: 0.8185661879 | G57: 0.4075351918 | H57: 0.4183687364 | I57: 0.4990542483 | J57: 0.6608069952 | S57: American Transmission Systems, Incorporated | T57: 4076262
C58: 4963 | D58: Total Debt/ Total Equity (x) | F58: 1.396964018 | G58: 1.265787702 | H58: 1.125431982 | I58: 1.161666593 | J58: 1.291769196 | S58: Amtech Systems, Inc. | T58: 4963960 | V58: Chart Data
S59: Appalachian Power Company | T59: 4056972 | V59: EBITDA & Interest Coverage Chart
D60: DEBT MATURITY SCHEDULE ($000) | S60: Arizona Public Service Company | T60: 4056974 | V60: EBITDA ($000)
C61: 7597 | D61: Debt Maturing-Current FY | F61: 727800 | G61: 708400 | H61: 783200 | I61: 729100 | J61: 577300 | S61: Ascent Solar Technologies, Inc. | T61: 4229719 | V61: EBITDA/ Interest Expense (x) | X61: =IF(ISNUMBER(F49),F49,NA()) -> 6.19043152 | Y61: =IF(ISNUMBER(G49),G49,NA()) -> 3.827488152 | Z61: =IF(ISNUMBER(H49),H49,NA()) -> 4.83908046 | AA61: =IF(ISNUMBER(I49),I49,NA()) -> 4.618902439 | AB61: =IF(ISNUMBER(J49),J49,NA()) -> 5.414141414
C62: 7598 | D62: Debt Maturing-Next FY | F62: 281200 | G62: 55800 | H62: 55000 | I62: 43200 | J62: 180000 | S62: ATCO Ltd. | T62: 4086899 | V62: Liquidity
C63: 7599 | D63: Debt Maturing-FY2 | F63: 156600 | G63: 336200 | H63: 150000 | I63: 57000 | J63: 40000 | S63: Atlantic City Electric Company | T63: 4056975 | V63: Current Assets ($000)
C64: 7600 | D64: Debt Maturing-FY3 | F64: 42000 | G64: 156600 | H64: 330000 | I64: 52000 | J64: 55000 | S64: Atlantic Power Corporation | T64: 4098671 | V64: Current Liabilities ($000)
C65: 7601 | D65: Debt Maturing-FY4 | F65: 312500 | G65: 42000 | H65: 150000 | I65: 332300 | J65: 50000 | S65: Atlantica Sustainable Infrastructure plc | T65: 4545218 | V65: Current Ratio (x) | X65: =IF(ISNUMBER(F57),F57,NA()) -> 0.8185661879 | Y65: =IF(ISNUMBER(G57),G57,NA()) -> 0.4075351918 | Z65: =IF(ISNUMBER(H57),H57,NA()) -> 0.4183687364 | AA65: =IF(ISNUMBER(I57),I57,NA()) -> 0.4990542483 | AB65: =IF(ISNUMBER(J57),J57,NA()) -> 0.6608069952
C66: 7602 | D66: Debt Maturing-Thereafter | F66: 2146800 | G66: 1833100 | H66: 1397600 | I66: 1415600 | J66: 1670000 | S66: Atmos Energy Corporation | T66: 4057157 | V66: ="Capital Structure " &"("&F40&")" -> Capital Structure (2021Y)
S67: Avangrid, Inc. | T67: 4057045 | V67: ="Commom Equity -" -> Commom Equity - | X67: =F42 -> 37.78205188
D68: INCOME STATEMENT HIGHLIGHTS ($000) | S68: Avista Corporation | T68: 4057075 | V68: ="Total Preferred -" -> Total Preferred - | X68: =F43 -> 3.784147238
C69: 18626 | D69: Energy Operating Revenues | F69: 2235500 | G69: 1855400 | H69: 1952400 | I69: 1965000 | J69: 1740700 | S69: Baltimore Gas and Electric Company | T69: 4007784 | V69: ="Total Debt -" -> Total Debt - | X69: =F44 -> 58.28055855
C70: 18630 | D70: Total Electrical Generation Cost | F70: NA | G70: NA | H70: NA | I70: NA | J70: NA | S70: Berkshire Hathaway Energy Company | T70: 4057049 | V70: Leverage Ratios
C71: 18631 | D71: Gas Cost | F71: 961700 | G71: 660200 | H71: 794600 | I71: NA | J71: NA | S71: Black Hills Corporation | T71: 4010420 | V71: Average Debt/ EBITDA (x) | X71: =IF(ISNUMBER(F52),F52,NA()) -> 5.210694802 | Y71: =IF(ISNUMBER(G52),G52,NA()) -> 7.61187469 | Z71: =IF(ISNUMBER(H52),H52,NA()) -> 5.419041964 | AA71: =IF(ISNUMBER(I52),I52,NA()) -> 5.644636964 | AB71: =IF(ISNUMBER(J52),J52,NA()) -> 5.165448798
C72: 18632 | D72: O&M Expense | F72: 465800 | G72: 458600 | H72: 474100 | I72: 477300 | J72: 385800 | S72: Black Hills Power, Inc. | T72: 4065694
C73: 18636 | D73: Operating DD&A | F73: 213100 | G73: 197300 | H73: 181700 | I73: 168400 | J73: 153500 | S73: Boralex Inc. | T73: 4082886
C74: 18635 | D74: Other Operating Expenses | F74: 0 | G74: 0 | H74: 0 | I74: 0 | J74: 152200 | S74: Broadwind, Inc. | T74: 4235589
C75: 18634 | D75: Energy Operating Expenses | F75: 1785300 | G75: 1500400 | H75: 1650100 | I75: 1670900 | J75: 1399800 | S75: Brookfield Renewable Partners L.P. | T75: 4304864
C76: 6200 | D76: EBITDA | F76: 659900 | G76: 403800 | H76: 505200 | I76: 454500 | J76: 482400 | S76: Calpine Corporation | T76: 4056958
C77: 28017 | D77: Recurring EBITDA | F77: 659900 | G77: 552400 | H77: 505200 | I77: 454500 | J77: 482400 | S77: Canadian Solar Inc. | T77: 4246977
C78: 4424 | D78: Net Income before Taxes | F78: 340200 | G78: 101000 | H78: 219100 | I78: 187700 | J78: 239200 | S78: Canadian Utilities Limited | T78: 4142320
C79: 4427 | D79: Income Taxes | F79: 68500 | G79: 12400 | H79: 34500 | I79: -26500 | J79: 77600 | S79: Capital Power Corporation | T79: 4237697
C80: 4429 | D80: Total Minority Interest Expense | F80: 0 | G80: 0 | H80: 0 | I80: 0 | J80: 0 | S80: Capstone Green Energy Corporation | T80: 4103085
C81: 4430 | D81: Net Income before Extraordinary | F81: 271700 | G81: 88600 | H81: 184600 | I81: 214200 | J81: 161600 | S81: Capstone Infrastructure Corporation | T81: 4166117
C82: 833 | D82: Net Income | F82: 271700 | G82: 88600 | H82: 184600 | I82: 214200 | J82: 161600 | S82: Caribbean Utilities Company, Ltd. | T82: 4276419
C83: 47814 | D83: Net Income Attributable to Noncontrolling Int | F83: 0 | G83: 0 | H83: 0 | I83: 0 | J83: 0 | S83: CenterPoint Energy Houston Electric, LLC | T83: 4057059
C84: 47813 | D84: Net Income Attributable to Parent | F84: 271700 | G84: 88600 | H84: 184600 | I84: 214200 | J84: 161600 | S84: CenterPoint Energy Resources Corp. | T84: 4057141
S85: CenterPoint Energy, Inc. | T85: 4074390
D86: BALANCE SHEET HIGHLIGHTS ($000) | S86: Central Hudson Gas & Electric Corporation | T86: 4057076
C87: 6359 | D87: Total Current Assets | F87: 1316500 | G87: 590600 | H87: 614500 | I87: 659600 | J87: 725500 | S87: Central Maine Power Company | T87: 4056978
C88: 18807 | D88: Net PP&E | F88: 5587200 | G88: 5177500 | H88: 4829800 | I88: 4145000 | J88: 3717200 | S88: CH Energy Group, Inc. | T88: 4057039
C89: 18851 | D89: Long-term Energy Risk-mgmt Asset | F89: 0 | G89: 0 | H89: 0 | I89: 0 | J89: 0 | S89: Chesapeake Utilities Corporation | T89: 4057113
C90: 18823 | D90: Total Noncurrent Investments | F90: 83100 | G90: 71700 | H90: 72300 | I90: 68700 | J90: 64200 | S90: Clearway Energy, Inc. | T90: 4393379
C91: 3706 | D91: Total Intangible Assets | F91: 1171600 | G91: 1171600 | H91: 1171600 | I91: 1171600 | J91: 1171600 | S91: Cleco Corporate Holdings LLC | T91: 4056937
C92: 220 | D92: Total Assets | F92: 9356400 | G92: 8241200 | H92: 7619200 | I92: 6843600 | J92: 6546700 | S92: Cleco Power LLC | T92: 4056982
C93: 6361 | D93: Total Current Liabilities | F93: 1608300 | G93: 1449200 | H93: 1468800 | I93: 1321700 | J93: 1097900 | S93: CMS Energy Corporation | T93: 4004172
C94: 6148 | D94: Non-current Long-term Debt | F94: 2992800 | G94: 2482100 | H94: 2082600 | I94: 1900100 | J94: 1995000 | S94: Commonwealth Edison Company | T94: 4000672
C95: 18082 | D95: Other Liabilities | F95: 618200 | G95: 620100 | H95: 406200 | I95: 387900 | J95: 360400 | S95: Connecticut Natural Gas Corporation | T95: 4059402
C96: 845 | D96: Total Debt | F96: 3727100 | G96: 3197000 | H96: 2865800 | I96: 2629200 | J96: 2572300 | S96: Consolidated Edison Company of New York, Inc. | T96: 4057080
C97: 49691 | D97: Equity Attributable to Parent Company | F97: 2658200 | G97: 2522300 | H97: 2543000 | I97: 2255400 | J97: 1991300 | S97: Consolidated Edison, Inc. | T97: 4057041
C98: 47772 | D98: Non-Controlling Interests | F98: 9800 | G98: 3400 | H98: 3400 | I98: 7900 | J98: 0 | S98: Constellation Energy Corporation | T98: 4072145
C99: 3800 | D99: Total Equity | F99: 2668000 | G99: 2525700 | H99: 2546400 | I99: 2263300 | J99: 1991300 | S99: Consumers Energy Company | T99: 4057081
C100: 18081 | D100: Total Mezzanine Level Items | F100: 0 | G100: 0 | H100: 0 | I100: 0 | J100: 0 | S100: Corning Natural Gas Holding Corporation | T100: 4420429
C101: 17860 | D101: Total Capitalization, at Book | F101: 6395100 | G101: 5722700 | H101: 5412200 | I101: 4892500 | J101: 4563600 | S101: Covanta Holding Corporation | T101: 103347
S102: Delmarva Power & Light Company | T102: 4057082
D103: CASH FLOW HIGHLIGHTS ($000) | S103: Dominion Energy South Carolina, Inc. | T103: 4057099
C104: 4991 | D104: Operating Cash Flow | F104: 249800 | G104: 469900 | H104: 450900 | I104: 456600 | J104: 288300 | S104: Dominion Energy, Inc. | T104: 4001616
C105: 4993 | D105: Investing Cash Flow | F105: -622000 | G105: -631600 | H105: -838300 | I105: -531700 | J105: -433500 | S105: DPL Inc. | T105: 4057043
C106: 4992 | D106: Financing Cash Flow | F106: 379400 | G106: 160000 | H106: 371800 | I106: 89100 | J106: 147400 | S106: DTE Electric Company | T106: 4057083
C107: 4994 | D107: Other Cash Flow | F107: 0 | G107: 0 | H107: 0 | I107: 0 | J107: 0 | S107: DTE Energy Company | T107: 4057044
C108: 4995 | D108: Net Increase in Cash | F108: 7200 | G108: -1700 | H108: -15600 | I108: 14000 | J108: 2200 | S108: DTE Gas Company | T108: 4057126
S109: Duke Energy Carolinas, LLC | T109: 4004320
D110: PROFITABILITY RATIOS (%) | S110: Duke Energy Corporation | T110: 4121470
C111: 281 | D111: ROAA | F111: 3.092375763 | G111: 1.116860689 | H111: 2.540145584 | I111: 3.224938319 | J111: 2.568080554 | S111: Duke Energy Florida, LLC | T111: 4056998
C112: 284 | D112: ROAE | F112: 10.21923205 | G112: 3.421460396 | H112: 7.606058889 | I112: 9.862786629 | J112: 8.519106706 | S112: Duke Energy Indiana, LLC | T112: 4062444
C113: 18791 | D113: Return on Capital | F113: 4.456107261 | G113: 1.564483056 | H113: 3.574255101 | I113: 4.521574846 | J113: 3.682162815 | S113: Duke Energy Kentucky, Inc. | T113: 4057103
B114: =COUNT(C:C)-72 -> 5 | S114: Duke Energy Ohio, Inc. | T114: 4057079
B115: =[1]!SNLQUERY("PendingCases",D118:O118) -> SNLQuery | S115: Duke Energy Progress, LLC | T115: 4004192
D116: Pending Rate Cases | J116: Requested | S116: Eastern Energy Gas Holdings, LLC | T116: 4430002
